Workbook

Sheet About
B3: Environmental, Social and Governance (ESG) Performance Trend Data
B5: Date Updated: | C5: 2023-04-21
B7: Freeport-McMoRan Inc. (FCX) is committed to communicating on our ESG performance regularly and transparently. We have been reporting on our sustainability performance since 2001. The data provided herein reflect our historical performance for the past five years on key ESG topics. These data are intended to be a companion to the 2022 Annual Report on Sustainability and 2021 Climate Report. Unless noted otherwise, environmental data cover all of FCX’s material operating sites including the following locations: Atlantic Copper, Bagdad, Cerro Verde, Chino (including Cobre), Climax, El Abra, El Paso, Fort Madison, Henderson, Miami, Morenci, PT Freeport Indonesia, Rotterdam, Safford (including Lone Star), Sierrita, Stowmarket and Tyrone. Unless noted otherwise, workforce (except for health and safety data, which excludes divested and closed assets), communities and governance information covers operating and non-operating sites, exploration activities, projects and divested or closed assets until the year of divestiture or closure. As a result of methodology changes, corrections, or ongoing improvements to our data collection processes and quality, prior year data may be adjusted in future years. Non-financial data contained in this report have not been prepared in conformity with U.S. generally accepted accounting principles (GAAP) and have not been audited. Our greenhouse gas (GHG) Scope 1, 2 and 3 emissions data have been third-party verified in accordance with ISO 14064 (Specifications 1 and 3) to a reasonable level of assurance. Data herein have been assured in accordance with the International Standard on Assurance ISEA3000 (revised). Historical results are not necessarily indicative of future performance. All financial figures are quoted in U.S. dollars, unless otherwise noted. Due to rounding, some figures and percentages may not add up to the total figure or 100%. Data presented cover our performance for the years ending on December 31st, which corresponds to our fiscal year. Additional information about FCX is available on our website at fcx.com. For details on our financial performance and governance structure, please refer to our Annual Report on Form 10-K for the year ended December 31, 2022, (2022 Form 10-K) filed with the SEC, which is available on our website at fcx.com.
B8: CAUTIONARY STATEMENT: This file contains forward-looking statements in which we discuss our potential future performance. Forward-looking statements are all statements other than statements of historical facts, such as plans, projections, expectations, targets, objectives, strategies or goals relating to environmental, social, safety and governance performance, including expectations regarding execution of our energy and climate strategies, and the underlying assumptions and estimated impacts on our business related thereto; our approach to lower carbon and reduced emissions; our plans and expectations in relation to our future clean energy transition, including targeted reductions of GHG emissions, implementation of technologies and emissions reduction projects, achievement of our 2030 climate targets and our 2050 net zero aspiration; our operational resiliency and climate scenarios; our expectations regarding climate-related risks and future risk mitigation; our continuing commitment to safe and reliable operations; our commitment to human rights and creating a diverse and inclusive workplace; our commitment to deliver responsibly produced copper, including plans to implement, validate, and maintain validation of our operating sites under specific frameworks. The words “anticipates,” “may,” “can,” “plans,” “believes,” “estimates,” “expects,” “endeavors,” “seeks,” “goal,” “predicts,” “strategy,” “objective,” “projects,” “targets,” “intends,” “aspires,” “likely,” “will,” “should,” “could,” “to be,” “potential,” “assumptions,” “guidance,” “forecasts,”, “future, ” “commitments,” “pursues,” “initiatives,” “opportunities,” and any similar expressions are intended to identify those assertions as forward-looking statements. We caution readers that forward-looking statements are not guarantees of future performance and actual results may differ materially from those anticipated, expected, projected or assumed in the forward-looking statements. Important factors that can cause our actual results to differ materially from those anticipated in the forward-looking statements include, but are not limited to, the factors described under the heading “Risk Factors” in our Annual Report on Form 10-K for the year-ended December 31, 2022, filed with the U.S. Securities and Exchange Commission (SEC), as updated by our subsequent filings with the SEC, and available on our website at fcx.com. Many of the assumptions upon which our forward-looking statements are based are likely to change after the forward-looking statements are made. Further, we may make changes to our business plans that could affect our results. We caution investors that we undertake no obligation to update any forward-looking statements, which speak only as of the date made, notwithstanding any changes in our assumptions, changes in business plans, actual experience or other changes. This file contains statements based on hypothetical scenarios and assumptions, and these statements should not be viewed as representative of current risks or forecasts of expected risks. Third-party scenarios discussed in this file reflect the modeling assumptions and outputs of their respective authors, and their use or inclusion herein is not an endorsement of their underlying assumptions, likelihood or probability. While certain matters discussed in this file may be significant and relevant to our investors, any significance should not be read as rising to the level of materiality for purposes of complying with the U.S. federal securities laws or the disclosure requirements of the SEC. The goals and projects described in this file are aspirational; as such, no guarantees or promises are made that these goals and projects will be met or successfully executed. Further, the data, statistics and metrics included in this file are non-audited estimates (with the exception of financial information and the GHG Scope 1, 2, and 3 emissions data, which have been third-party verified in accordance with ISO 14064 (Specifications 1 and 3) to a reasonable level of assurance), not prepared in accordance with U.S. generally accepted accounting principles (GAAP), continue to evolve and may be based on assumptions believed to be reasonable at the time of preparation, but should not be considered guarantees and are subject to future revision.

Sheet Index
A1: INDEX
A2: =HYPERLINK("#'"&J2&"'!A1",J2) -> About | I2: 1 | J2: =INDEX(SheetNames,I2) -> About
A3: =HYPERLINK("#'"&J3&"'!A1",J3) -> References | I3: 3 | J3: =INDEX(SheetNames,I3) -> References
A4: PEOPLE
A5: =HYPERLINK("#'"&J5&"'!A1",J5) -> Health & Safety | I5: =I3+1 -> 4 | J5: =INDEX(SheetNames,I5) -> Health & Safety
A6: Workforce | I6: =I5+1 -> 5 | J6: =INDEX(SheetNames,I6) -> Workforce
A7: 2022 U.S. Employee Data EEO-1 | I7: =I6+1 -> 6 | J7: =INDEX(SheetNames,I7) -> 2022 U.S. Employee Data EEO-1
A8: Communities | I8: 7 | J8: =INDEX(SheetNames,I8) -> Communities
A9: Key Economic Contributions | I9: 8 | J9: =INDEX(SheetNames,I9) -> Key Economic Contributions
A10: Cash Payments to Governments | I10: 9 | J10: =INDEX(SheetNames,I10) -> Cash Payments to Governments
A11: Economic Value Contributed | I11: =I10+1 -> 10 | J11: Economic Value Contributed
A12: GOVERNANCE
A13: Human Rights | I13: =I11+1 -> 11 | J13: Human Rights
A14: Business Ethics | I14: 12 | J14: Business Ethics
A15: Procurement Spend Distribution | I15: 13 | J15: Procurement Spend Distribution
A16: =HYPERLINK("#'"&J16&"'!A1",J16) -> Procurement - by site | I16: =I15+1 -> 14 | J16: =INDEX(SheetNames,I16) -> Procurement - by site
A17: ENVIRONMENT
A18: =HYPERLINK("#'"&J18&"'!A1",J18) -> GHG Emissions | I18: =I16+1 -> 15 | J18: GHG Emissions
A19: GHG Emissions - 2030 Targets | I19: =I18+1 -> 16 | J19: GHG Emissions - 2030 Targets
A20: Dual Reporting | I20: 17 | J20: Dual Reporting
A21: Scope 3 Inventory Development | I21: 18 | J21: Scope 3 Inventory Development
A22: Air Emissions | I22: 19 | J22: Air Emissions
A23: Energy Consumption - by site | I23: 20 | J23: Energy Consumption - by site
A24: 2022 Energy Consumption - Type | I24: 21 | J24: 2022 Energy Consumption - Type
A25: 2022 Indirect Energy - Source | I25: 22 | J25: 2022 Indirect Energy - Source
A26: 2022 Direct Energy - Source | I26: 23 | J26: 2022 Direct Energy - Source
A27: Water | I27: 24 | J27: =INDEX(SheetNames,I27) -> Water
A28: =HYPERLINK("#'"&J28&"'!A1",J28) -> Water - by region | I28: 25 | J28: Water - by region
A29: Mining.Mineral Processing Waste | I29: 26 | J29: Mining.Mineral Processing Waste
A30: Non-Mineral Waste.Recycled | I30: 27 | J30: Non-Mineral Waste.Recycled
A31: Biodiversity and Land | I31: 28 | J31: Biodiversity and Land
A32: Tailings Impoundments | I32: 29 | J32: Tailings Impoundments
A33: Environmental Compliance | I33: 30 | J33: Environmental Compliance
A34: REPORTING FRAMEWORKS
A35: =HYPERLINK("#'"&J35&"'!A1",J35) -> SASB | I35: =I33+1 -> 31 | J35: =INDEX(SheetNames,I35) -> SASB
A36: =HYPERLINK("#'"&J36&"'!A1",J36) -> GRI Index; SDGs | I36: =I35+1 -> 32 | J36: =INDEX(SheetNames,I36) -> GRI Index; SDGs
A37: =HYPERLINK("#'"&J37&"'!A1",J37) -> ICMM | I37: =I36+1 -> 33 | J37: =INDEX(SheetNames,I37) -> ICMM

Sheet References
A1: REFERENCES
A4: Below is a list of documents and webpages mentioned in this databook.
A5: DOCUMENT NAME | B5: LINK TO FCX DOCUMENT
A6: Annual Report on Sustainability | B6: 2022 Annual Report on Sustainability
A7: Sustainability Reports and Documents | B7: Sustainability Reports and Documents
A8: Audits, Assessments, Assurance | B8: Audits, Assessments, Assurance
A9: Governance: Form 10-K | B9: 2022 Form 10-K
A10: Governance: Proxy Statement | B10: 2023 Proxy Statement
A11: Governance: Corporate Governance Guidelines | B11: Corporate Governance Guidelines
A12: Governance: Corporate Responsibility Committee Charter | B12: Corporate Responsibility Committee Charter
A13: Governance: Political Activity and Spending Practices | B13: Political Activity and Spending Practices
A14: Governance: Principles of Business Conduct | B14: Principles of Business Conduct
A15: Governance: Anti-Corruption Policy | B15: Anti-Corruption Policy
A16: Supply Chain: Business Partner Code of Conduct | B16: Business Partner Code of Conduct
A17: Supply Chain: Global Supply Chain | B17: Global Suppy Chain
A18: Supply Chain: Commodity Management | B18: Commodity Management
A19: Supply Chain: Responsible Sourcing of Minerals Policy | B19: Responsible Sourcing of Minerals Policy
A20: Supply Chain: OECD Step 5 Due Diligence Report | B20: OECD Step 5 Due Diligence Report
A21: Human Rights: Due Diligence | B21: Due Diligence
A22: Human Rights: Due Diligence > HRIA Methodology | B22: HRIA Methodology
A23: Human Rights: Embedding Respect | B23: Embedding Respect
A24: Human Rights: Security | B24: Security & Human Rights
A25: Human Rights: UK Modern Slavery Act Statement | B25: 2021 UK Modern Slavery Act Statement
A26: Human Rights: Voluntary Principles Report | B26: Voluntary Principles on Security and Human Rights: 2021 Annual Report to the Plenary
A27: Human Rights: Human Rights Policy | B27: Human Rights Policy
A28: Workforce: Careers | B28: FM Jobs
A29: Workforce: North America Employee Benefits Overview | B29: 2023 North America Benefits Overview
A30: Communities & Indigenous Peoples: Grievance Mechanism | B30: Community Grievance Mechanism
A31: Communities & Indigenous Peoples: Assessing & Managing Impacts | B31: Assessing & Managing Impacts
A32: Communities & Indigenous Peoples: Public Health | B32: Public Health
A33: Communities & Indigenous Peoples: Land Use and Customary Rights at PT-FI | B33: Land Use and Customary Rights at PT-FI
A34: Communities & Indigenous Peoples: Freeport in my Community | B34: Freeport in my Community
A35: Communities & Indigenous Peoples: Economic Impact | B35: Economic Impact Reports
A36: Communities & Indigenous Peoples: Social Performance Policy | B36: Social Performance Policy
A37: Environment: Climate Report | B37: 2021 Climate Report
A38: Environment: Water Report | B38: 2019 Water Report
A39: Environment: Tailings — Americas operations | B39: Tailings - Americas operations
A40: Environment: Site-Specific Tailings Management and Information | B40: Site-Specific Tailings Management and Information
A41: Environment: Tailings — Indonesia operations | B41: Tailings - Indonesia operations
A42: Environment: PT-FI External Audits | B42: PT-FI External Audits
A43: Environment: Tailings Management Policy | B43: Tailings Management Policy
A44: Environment: Environmental Policy | B44: Environmental Policy

Sheet Health & Safety
A1: FCX - ESG PERFORMANCE DATA
A2: SOCIAL
B3: 2018 | C3: 2019 | D3: 2020 | E3: 2021 | F3: 2022
A4: Health & Safety1
A5: Total Number of Recordable Events | B5: 454 | C5: 505 | D5: 413 | E5: 457 | F5: 590
A6: % High Risk2 | B6: 0.107 | C6: 0.107 | D6: 0.067 | E6: 0.07 | F6: 0.07
A8: Number of Workforce Fatalities3
A9: Employees | B9: 1 | C9: 1 | D9: 1 | E9: 0 | F9: 0
A10: Contract Employees | B10: 0 | C10: 2 | D10: 4 | E10: 2 | F10: 1
A11: Total Workforce Fatalities | B11: 1 | C11: 3 | D11: 5 | E11: 2 | F11: 1
A13: Total Recordable Incident Rate (TRIR)4
A14: Employees | B14: 0.7 | C14: 0.78 | D14: 0.76 | E14: 0.76 | F14: 0.93
A15: Contract Employees | B15: 0.71 | C15: 0.61 | D15: 0.56 | E15: 0.62 | F15: 0.6
A16: Total Workforce - TRIR | B16: 0.7 | C16: 0.71 | D16: 0.69 | E16: 0.7 | F16: 0.77
A18: Fatality Rate5
A19: Employees | B19: 0.002 | C19: 0.002 | D19: 0.003 | E19: 0 | F19: 0
A20: Contract Employees | B20: 0 | C20: 0.007 | D20: 0.018 | E20: 0.007 | F20: 0.003
A21: Total Workforce - Fatality Rate | B21: 0.002 | C21: 0.004 | D21: 0.008 | E21: 0.003 | F21: 0.001
A23: Near Miss Frequency Rate (NMFR)6
A24: Employees | B24: 1.64 | C24: 1.72 | D24: 1.27 | E24: 1.15 | F24: 1.03
A25: Contract Employees | B25: 1.38 | C25: 1.2 | D25: 0.96 | E25: 0.92 | F25: 0.64
A26: Total Workforce - NMFR | B26: 2.26 | C26: 1.98 | D26: 1.51 | E26: 1.82 | F26: 1.17
A28: Lost Time Injury Frequency Rate (LTIR)7
A29: Employees | B29: 0.34 | C29: 0.37 | D29: 0.33 | E29: 0.31 | F29: 0.43
A30: Contract Employees | B30: 0.33 | C30: 0.28 | D30: 0.24 | E30: 0.32 | F30: 0.31
A31: Total Workforce - LTIR | B31: 0.34 | C31: 0.33 | D31: 0.3 | E31: 0.31 | F31: 0.37
A34: 1. Health and safety performance data include employees (full-time and part-time employees on a full-time equivalent basis) and contractors and exclude performance of divested and closed assets, unless otherwise noted. Rates are calculated per 200,000 hours worked, except where indicated. Metrics within this table are calculated based on employee and contractor reporting of injuries, illness and near misses.
A37: 2. Our risk matrix defines "high risk" events as incidents that have the potential to result in permanent disabilities or fatalities.
A38: 3. Two other fatalities occurred onsite in 2022; which, as of April 20, 2023, have not yet been classified by MSHA as independent medical episodes or work-related. In FCX's 2022 Form 10-K published on February 15, 2023, FCX reported three onsite fatalities in 2022. The third fatality has since been classified as an independent medical episode.
A40: 4. TRIR = ((Fatalities + Lost-time Incidents + Restricted-duty Incidents + Medical Treatment) x 200,000) / Total Hours Worked. TRIR is equivalent to MSHA All-Incidence Rate (AIR). TRIR presented here may differ from reported TRIR in FCX's Form 10-K filings because data have been adjusted to exclude disposed assets for comparison purposes.
A42: 5. Fatality Rate = (Number of Fatalities x 200,000) / Total Hours Worked.
A43: 6. NMFR = (Number of Near Miss Events x 200,000) / Total Hours Worked. Anonymously reported near miss events are accounted for in the total rate only. Prior year data has been updated following review of our data collection process.
A45: 7. LTIR = (Number of Lost Time Injuries x 200,000) / Total Hours Worked.

Sheet Workforce
A1: FCX - ESG PERFORMANCE DATA
A2: SOCIAL
B3: 2018 | C3: 2019 | D3: 2020 | E3: 2021 | F3: 2022
A4: Workforce
A5: Number of Employees1 | B5: 26900 | C5: 27500 | D5: 24600 | E5: 24700 | F5: 25600
A6: Number of Contractors1 | B6: 39900 | C6: 42200 | D6: 35300 | E6: 43900 | F6: 48900
A8: Employees Covered Under Collective Labor Agreements (CLA)2
A9: North America | B9: 0 | C9: 0 | D9: 0 | E9: 0 | F9: 0
A10: Indonesia | B10: 0.522 | C10: 0.51 | D10: 0.508 | E10: 0.487 | F10: 0.468
A11: South America | B11: 0.654 | C11: 0.653 | D11: 0.661 | E11: 0.659 | F11: 0.665
A12: Europe/Other1 | B12: 0.72 | C12: 0.664 | D12: 0.667 | E12: 0.632 | F12: 0.603
A13: Global Employees Under CLA | B13: 0.327 | C13: 0.314 | D13: 0.321 | E13: 0.306 | F13: 0.296
A15: Employee Demographics3
A16: Employees by Age Group
A17: <30 Years | B17: 0.1366858415 | C17: 0.1385226197 | D17: 0.1179358189 | E17: 0.1197830223 | F17: 0.1254593792
A18: 30-50 Years | B18: 0.6516236779 | C18: 0.6438041815 | D18: 0.664448862 | E18: 0.6539286726 | F18: 0.6431699116
A19: >50 Years | B19: 0.2116904806 | C19: 0.2176731988 | D19: 0.2176153191 | E19: 0.2262883051 | F19: 0.2313707092
A21: Employees by Nationality
A22: Local Country National | B22: 0.9904249397 | C22: 0.9902382167 | D22: 0.9901821575 | E22: 0.9909322754 | F22: 0.9905387442
A23: Expatriates/Third-Country Nationals | B23: 0.009575060308 | C23: 0.009761783347 | D23: 0.009817842509 | E23: 0.009067724568 | F23: 0.009461255767
A25: North America Consolidated Demographic Info1,4
A26: White | B26: 0.551 | C26: 0.545 | D26: 0.534 | E26: 0.524 | F26: 0.512
A27: Hispanic/Latino | B27: 0.38 | C27: 0.384 | D27: 0.395 | E27: 0.4 | F27: 0.407
A28: American Indian/Alaskan Native | B28: 0.035 | C28: 0.035 | D28: 0.038 | E28: 0.04 | F28: 0.042
A29: Asian | B29: 0.016 | C29: 0.015 | D29: 0.014 | E29: 0.014 | F29: 0.013
A30: Black or African American | B30: 0.017 | C30: 0.016 | D30: 0.014 | E30: 0.014 | F30: 0.015
A31: Native Hawaiian or Other Pacific Islander | B31: 0.002 | C31: 0.002 | D31: 0.003 | E31: 0.002 | F31: 0.002
A32: Two or more races | B32: 0 | C32: 0.003 | D32: 0.003 | E32: 0.005 | F32: 0.008
A33: Undisclosed | B33: 0 | C33: 0 | D33: 0 | E33: 0 | F33: 0
A35: PT-FI Demographic Info1
A36: Indonesian Representation | B36: 0.976 | C36: 0.974 | D36: 0.974 | E36: 0.973 | F36: 0.971
A37: Indigenous Papuan Representation | B37: 0.406 | C37: 0.4 | D37: 0.401 | E37: 0.412 | F37: 0.414
A39: Women Employed by Location1
A40: United States | B40: 0.1837354341 | C40: 0.189254902 | D40: 0.1828591877 | E40: 0.1917796391 | F40: 0.2019588797
A41: Indonesia | B41: 0.06837366348 | C41: 0.07154282391 | D41: 0.07251444208 | E41: 0.07536704731 | F41: 0.0791928099
A42: Peru | B42: 0.06520450504 | C42: 0.066741447 | D42: 0.05833333333 | E42: 0.05981308411 | F42: 0.05938580435
A43: Chile | B43: 0.1058519793 | C43: 0.1165048544 | D43: 0.1092077088 | E43: 0.1406120761 | F43: 0.1361702128
A44: Europe/Other | B44: 0.175070028 | C44: 0.1763285024 | D44: 0.1855047455 | E44: 0.1704545455 | F44: 0.174
A45: Total Women Employed by Location | B45: 0.1272221191 | C45: 0.1320390471 | D45: 0.1264960039 | E45: 0.1338298992 | F45: 0.1415278755
A47: Women Employed by Job Category
A48: Board of Directors5 | B48: 0.3333333333 | C48: 0.3333333333 | D48: 0.3333333333 | E48: 0.3636363636 | F48: 0.364
A49: Executive Management | B49: 0.1481481481 | C49: 0.1379310345 | D49: 0.1935483871 | E49: 0.2121212121 | F49: 0.2222222222
A50: Management1 | B50: 0.1194968553 | C50: 0.1240281377 | D50: 0.1244277986 | E50: 0.1212739894 | F50: 0.1216320246
A51: Non-Management1 | B51: 0.1281627936 | C51: 0.1327758927 | D51: 0.1265794325 | E51: 0.1356641469 | F51: 0.1436541144
A52: Total Women by Job Category | B52: 0.1272221191 | C52: 0.1320390471 | D52: 0.1264960039 | E52: 0.1338298992 | F52: 0.1415278755
A54: Talent Attraction and Retention
A55: New Employee Hires by Location
A56: United States | B56: 2365 | C56: 1910 | D56: 849 | E56: 1934 | F56: 2338
A57: Indonesia | B57: 32 | C57: 38 | D57: 23 | E57: 21 | F57: 35
A58: Peru | B58: 459 | C58: 474 | D58: 194 | E58: 135 | F58: 267
A59: Chile | B59: 54 | C59: 30 | D59: 18 | E59: 53 | F59: 207
A60: Europe/Other | B60: 54 | C60: 60 | D60: 20 | E60: 33 | F60: 51
A61: New Employee Hires - FCX Global | B61: 2964 | C61: 2512 | D61: 1104 | E61: 2176 | F61: 2898
A63: New Employee Hires - Percentage Women | B63: 0.2152496626 | C63: 0.2078025478 | D63: 0.2210144928 | E63: 0.2201286765 | F63: 0.2277432712
A65: Employee Turnover by Age Group1,3,6
A66: <30 Years | B66: 0.1403290903 | C66: 0.1576634056 | D66: 0.2245859292 | E66: 0.2031991563 | F66: 0.2049221497
A67: 30-50 Years | B67: 0.04653603919 | C67: 0.05970915312 | D67: 0.08964460423 | E67: 0.06745132139 | F67: 0.05754377327
A68: >50 Years | B68: 0.07765730702 | C68: 0.1057617776 | D68: 0.2580873881 | E68: 0.115498155 | F68: 0.1250437216
A70: Employee Turnover by Gender1,3,6
A71: Men | B71: 0.06128530131 | C71: 0.07858020831 | D71: 0.1346446814 | E71: 0.09175919131 | F71: 0.08721487893
A72: Women | B72: 0.09441920831 | C72: 0.1171585348 | D72: 0.2188702478 | E72: 0.1135667043 | F72: 0.1185405808
A74: Employee Turnover by Region1,6
A75: North America | B75: 0.1047111342 | C75: 0.1105871922 | D75: 0.2015861693 | E75: 0.1399100767 | F75: 0.1374674397
A76: Indonesia | B76: 0.02603347161 | C76: 0.04285191956 | D76: 0.04678098676 | E76: 0.07391064534 | F76: 0.0656641604
A77: South America | B77: 0.04046639232 | C77: 0.04454162617 | D77: 0.1446766003 | E77: 0.03137528325 | F77: 0.03433333333
A78: Europe/Other | B78: 0.03556658395 | C78: 0.2427695004 | D78: 0.1344706473 | E78: 0.06796727502 | F78: 0.03199052133
A79: Total Employee Turnover | B79: 0.06527563213 | C79: 0.08347452841 | D79: 0.1453464495 | E79: 0.09454995871 | F79: 0.09146785281
A81: Voluntary Turnover Rate | B81: 0.04306079747 | C81: 0.05098083512 | D81: 0.08906185829 | E81: 0.05858794385 | F81: 0.06938940558
A84: 1. Prior year data has been updated following review of our data collection process.
A85: 2. Data include only employees covered under CLA; previously reported Indonesia data included employees who paid union dues regardless of union membership. In North America, our hourly employees continue to elect to work directly with company management rather than through union representation using our Guiding Principles contract, which adds value to the workforce and the company.
A88: 3. Employee demographics are self-reported.
A89: 4. Reported consolidated North America diversity metrics relate to employees only and are in line with the categories set forth by U.S. Equal Employment Opportunity Commission. These metrics are based on employee data as of year end; however, employee data reported on the 2022 U.S. Employee Data EEO-1 tab of this data booklet are from dates of payroll from the period 12/1/2022 through 12/31/2022.
A92: 5. Figures are as of year end so many differ from those reported in our annual proxy statements which reflect director nominees as of the record date for our annual meeting of shareholders for the respective year. Following the appointment of Kathleen L. Quirk to FCX’s Board of Directors in February 2023, we now have 41.7% women representation on our Board.
A95: 6. Turnover rates exclude seasonal, temporary hires and interns.
A96: Note: Employee figures exclude contractors and are as of year end, except where indicated.

Sheet 2022 U.S. Employee Data EEO-1
A1: FCX - ESG PERFORMANCE DATA
A2: SOCIAL
A3: Workforce
A4: EEO-1 data presented here is limited to representational reporting in U.S. federally mandated job categories that differ across our global operations. The data in the table does not include our approximately 13,200 employees who reside outside of the U.S, nor does this data include the approximately 48,900 contractors who comprise an integral part of our global workforce.
A6: 2022 U.S. Equal Employment Opportunity (EEO-1) Disclosure
A7: JOB CATEGORIES | B7: Race/Ethnicity | P7: Overall Total
B8: Hispanic or Latino | D8: Not Hispanic or Latino
D9: Male | J9: Female
B10: Male | C10: Female | D10: White | E10: Black or African American | F10: Native Hawaiian or Other Pacific Islander | G10: Asian | H10: American Indian or Alaskan Native | I10: Two or More races | J10: White | K10: Black or African American | L10: Native Hawaiian or Other Pacific Islander | M10: Asian | N10: American Indian or Alaskan Native | O10: Two or more races
A11: Executive/Senior Level Officials and Managers | B11: 2 | C11: 0 | D11: 20 | E11: 0 | F11: 0 | G11: 1 | H11: 0 | I11: 0 | J11: 7 | K11: 0 | L11: 0 | M11: 0 | N11: 0 | O11: 0 | P11: 30
A12: First/Mid-Level Officials and Managers | B12: 425 | C12: 50 | D12: 852 | E12: 10 | F12: 3 | G12: 21 | H12: 11 | I12: 1 | J12: 147 | K12: 4 | L12: 0 | M12: 2 | N12: 1 | O12: 1 | P12: 1528
A13: Professionals | B13: 349 | C13: 180 | D13: 914 | E13: 57 | F13: 5 | G13: 76 | H13: 8 | I13: 21 | J13: 403 | K13: 13 | L13: 0 | M13: 31 | N13: 7 | O13: 2 | P13: 2066
A14: Technicians | B14: 175 | C14: 60 | D14: 161 | E14: 3 | F14: 1 | G14: 1 | H14: 8 | I14: 5 | J14: 89 | K14: 2 | L14: 0 | M14: 3 | N14: 5 | O14: 2 | P14: 515
A15: Sales Workers | B15: 0 | C15: 0 | D15: 1 | E15: 0 | F15: 0 | G15: 1 | H15: 0 | I15: 0 | J15: 1 | K15: 0 | L15: 0 | M15: 0 | N15: 0 | O15: 0 | P15: 3
A16: Administrative Support Workers | B16: 15 | C16: 117 | D16: 23 | E16: 3 | F16: 0 | G16: 1 | H16: 0 | I16: 0 | J16: 124 | K16: 10 | L16: 0 | M16: 3 | N16: 6 | O16: 4 | P16: 306
A17: Craft Workers | B17: 1117 | C17: 26 | D17: 1280 | E17: 27 | F17: 3 | G17: 8 | H17: 100 | I17: 11 | J17: 29 | K17: 0 | L17: 0 | M17: 0 | N17: 14 | O17: 1 | P17: 2616
A18: Operatives | B18: 1935 | C18: 385 | D18: 1715 | E18: 56 | F18: 12 | G18: 11 | H18: 219 | I18: 38 | J18: 445 | K18: 1 | L18: 4 | M18: 1 | N18: 130 | O18: 10 | P18: 4962
A19: Laborers and Helpers | B19: 68 | C19: 15 | D19: 29 | E19: 2 | F19: 0 | G19: 0 | H19: 9 | I19: 1 | J19: 7 | K19: 0 | L19: 0 | M19: 0 | N19: 7 | O19: 0 | P19: 138
A20: Service Workers | B20: 44 | C20: 92 | D20: 38 | E20: 1 | F20: 0 | G20: 0 | H20: 0 | I20: 1 | J20: 53 | K20: 1 | L20: 0 | M20: 0 | N20: 8 | O20: 2 | P20: 240
A21: 2022 REPORT TOTAL | B21: 4130 | C21: 925 | D21: 5033 | E21: 159 | F21: 24 | G21: 120 | H21: 355 | I21: 78 | J21: 1305 | K21: 31 | L21: 4 | M21: 40 | N21: 178 | O21: 22 | P21: 12404
A22: 2021 Report Total | B22: 3847 | C22: 803 | D22: 4894 | E22: 136 | F22: 23 | G22: 123 | H22: 337 | I22: 48 | J22: 1200 | K22: 30 | L22: 4 | M22: 37 | N22: 139 | O22: 11 | P22: 11632
A23: Note: This data has been collected on dates of payroll from the period 12/1/2022 through 12/31/2022.

Sheet Communities
A1: FCX - ESG PERFORMANCE DATA
A2: SOCIAL
B3: 2018 | C3: 2019 | D3: 2020 | E3: 2021 | F3: 2022
A4: Communities
A5: Total Community Investments ($ millions) | B5: 155 | C5: 100 | D5: 108 | E5: 164 | F5: 177
A6: Community Trust Funds | B6: 0.4 | C6: 0.29 | D6: 0.35 | E6: 0.47 | F6: 0.48
A7: Safety, Health & Environment | B7: 0.15 | C7: 0.21 | D7: 0.17 | E7: 0.16 | F7: 0.12
A8: Education & Training | B8: 0.12 | C8: 0.18 | D8: 0.12 | E8: 0.07 | F8: 0.08
A9: Economic Development & Infrastructure | B9: 0.15 | C9: 0.17 | D9: 0.15 | E9: 0.13 | F9: 0.13
A10: Other1 | B10: 0.15 | C10: 0.14 | D10: 0.17 | E10: 0.14 | F10: 0.16
A11: Administration | B11: 0.03 | C11: 0.01 | D11: 0.04 | E11: 0.03 | F11: 0.03
A13: Community Grievances2,3
A14: Community Grievances by Geography
A15: United States4 | B15: 106 | C15: 87 | D15: 59 | E15: 94 | F15: 81
A16: Indonesia | B16: 76 | C16: 60 | D16: 53 | E16: 60 | F16: 59
A17: Peru | B17: 15 | C17: 9 | D17: 10 | E17: 4 | F17: 6
A18: Chile | B18: 37 | C18: 29 | D18: 17 | E18: 10 | F18: 15
A19: Europe3 | B19: 5 | C19: 5 | D19: 1 | E19: 1 | F19: 0
A20: Total Community Grievances | B20: 239 | C20: 190 | D20: 140 | E20: 169 | F20: 161
A22: Community Grievances by Type (%)
A23: Community Engagement | B23: 0.08 | C23: 0.07 | D23: 0.11 | E23: 0.01 | F23: 0.01
A24: Community Investments | B24: 0.04 | C24: 0.12 | D24: 0.15 | E24: 0.12 | F24: 0.12
A25: Cultural Heritage | B25: 0.03 | C25: 0.05 | D25: 0.01 | E25: 0.02 | F25: 0.03
A26: Employment | B26: 0.02 | C26: 0.03 | D26: 0.04 | E26: 0.03 | F26: 0.08
A27: Environment | B27: 0.21 | C27: 0.17 | D27: 0.16 | E27: 0.15 | F27: 0.15
A28: Health & Safety | B28: 0.12 | C28: 0.12 | D28: 0.15 | E28: 0.14 | F28: 0.19
A29: Land Access | B29: 0.01 | C29: 0.02 | D29: 0 | E29: 0.01 | F29: 0
A30: Land Rights | B30: 0.09 | C30: 0.08 | D30: 0.1 | E30: 0.05 | F30: 0.03
A31: Livelihoods | B31: 0.01 | C31: 0.02 | D31: 0.01 | E31: 0.01 | F31: 0.02
A32: Local Sourcing | B32: 0.14 | C32: 0.06 | D32: 0.08 | E32: 0.08 | F32: 0.12
A33: Odor, Noise, Vibration | B33: 0.09 | C33: 0.04 | D33: 0.03 | E33: 0.08 | F33: 0.08
A34: Other5 | B34: 0.11 | C34: 0.11 | D34: 0.11 | E34: 0.13 | F34: 0.1
A35: Property Damage | B35: 0.04 | C35: 0.09 | D35: 0.04 | E35: 0.16 | F35: 0.06
A36: Resettlement | B36: 0 | C36: 0 | D36: 0.01 | E36: 0 | F36: 0
A37: Security | B37: 0.01 | C37: 0 | D37: 0 | E37: 0.01 | F37: 0
A38: Workforce Behavior | B38: 0 | C38: 0.02 | D38: 0 | E38: 0 | F38: 0.01
A41: 1. Includes arts, culture, mitigation, stakeholder engagement and employee programs such as Matching Gifts and United Way.
A42: 2. A "community grievance" is any self-reported issue / concern (perceived or actual) that an affected member or group of the communities within our area of direct or indirect operational impact and other stakeholders wants FCX or its business partners to address and resolve. Grievances reported here are managed via our community grievance mechanism, tracked within our Incident Management System and were received either anonymously or with attribution by community engagement team members through in-person engagements, in writing via physical drop boxes, or via local telephone hotlines. Grievances can relate to FCX's active mining operations, exploration projects, and reclaimed or remediated sites.
A47: 3. Prior year data has been updated following review of our data collection process.
A48: 4. Additionally, in 2018, we received 630 grievances related to a dust incident at our Sierrita operations in Arizona. These were captured as a single grievance in our system as they resulted from a single root cause. However, all complaints were addressed with stakeholders.
A50: 5. Other includes obstruction of view, light disturbance, blight, housing and other grievances not listed above.

Sheet Key Economic Contributions
A1: FCX - ESG PERFORMANCE DATA
A2: SOCIAL
A4: 2022 Summary of Key Economic Contributions by Operating Region
A5: ($ millions) | B5: United States1 | C5: Indonesia | D5: Peru | E5: Chile | F5: Europe/Other2 | G5: Total
A6: Payments to Suppliers | B6: 4437 | C6: 1809 | D6: 1466 | E6: 588 | F6: 2473 | G6: 10773
A7: Employee Wages and Benefits | B7: 1594 | C7: 431 | D7: 402 | E7: 110 | F7: 89 | G7: 2626
A8: Payments to Providers of Capital:
A9: Dividends and Distributions | B9: 866 | C9: 576 | D9: 186 | E9: 25 | F9: 53 | G9: 1706
A10: Interest | B10: 436 | C10: 106 | D10: 9 | E10: 0 | F10: 16 | G10: 567
A11: Payments to Governments3 | B11: 47 | C11: 2108 | D11: 927 | E11: 114 | F11: 1 | G11: 3197
A12: Community Investments | B12: 43 | C12: 122 | D12: 7 | E12: 4 | F12: 1 | G12: 177
A13: Total Direct Economic Contributions | B13: 7423 | C13: 5152 | D13: 2997 | E13: 841 | F13: 2633 | G13: 19046
A15: Total Capital Expenditures4 | B15: 701 | C15: 2381 | D15: 164 | E15: 140 | F15: 83 | G15: 3469
A17: 1. Includes parent company results.
A18: 2. Represents costs by FCX's other business groups that are located outside of the countries where FCX conducts its primary operations.
A19: 3. Excludes employee payroll taxes, dividends, property taxes and certain other taxes, which are included in payments to suppliers and dividends. A reconciliation to the 2022 Cash Payments to Governments schedule can be found on the Cash Payments to Governments tab of this data booklet.
A21: 4. Includes costs for capital projects, which includes additional payments to suppliers, employee wages and benefits, payments to providers of capital and payments to governments, not included in the table above.
A22: Note: These amounts were derived primarily from FCX’s publicly reported segment data. For disclosure of FCX’s segment data in accordance with U.S. GAAP, see FCX’s 2022 Form 10-K pages 170–175.

Sheet Cash Payments to Governments
A1: FCX - ESG PERFORMANCE DATA
A2: SOCIAL
A4: 2022 Cash Payments to Governments1
A5: ($ millions) | B5: United States | C5: Indonesia | D5: Peru | E5: Chile | F5: Europe/Other2 | G5: Total
A6: Corporate Income Taxes, Net of Refunds | B6: 9 | C6: 1475 | D6: 835 | E6: 92 | F6: 1 | G6: 2412
A7: Withholding Taxes on Foreign Dividends | B7: 0 | C7: 250 | D7: 29 | E7: 4 | F7: 0 | G7: 283
A8: Employee Payroll Taxes3 | B8: 466 | C8: 93 | D8: 84 | E8: 12 | F8: 30 | G8: 685
A9: Dividends | B9: 0 | C9: 576 | D9: 0 | E9: 0 | F9: 0 | G9: 576
A10: Royalties and Net Severance Taxes | B10: 38 | C10: 383 | D10: 63 | E10: 18 | F10: 0 | G10: 502
A11: Property Taxes | B11: 70.29 | C11: 68 | D11: 0 | E11: 0 | F11: 2 | G11: 140
A12: Other Taxes & Fees4 | B12: 48 | C12: 793 | D12: 80 | E12: 20 | F12: 12 | G12: 953
A13: Total Cash Payments to Governments | B13: 631.29 | C13: 3638 | D13: 1091 | E13: 146 | F13: 45 | G13: 5551
A15: 1. This schedule reflects a voluntary effort by FCX to capture its cash payments to governments (net of refunds). Amounts presented do not reflect payments on assessment under dispute. Amounts presented reflect credits from prior years, as applicable. Jurisdictions listed primarily represent taxes and payments to governments at a project-level, except for the U.S. where material country tax payments are levied at the entity level.
A17: 2. Represents cash payments to governments by FCX's other business groups that are located outside of the countries where FCX conducts its primary operations.
A18: 3. Includes payroll taxes collected on behalf of employees and paid to governments.
A19: 4. Includes customs and export duties, as well as withholding tax on foreign services.
A23: 2022 Reconciliation of Cash Payments to Governments
A24: ($ millions) | B24: United States | C24: Indonesia | D24: Peru | E24: Chile | F24: Europe/Other | G24: Total
A25: Cash Payments to Governments | B25: 631.29 | C25: 3638 | D25: 1091 | E25: 146 | F25: 45 | G25: 5551
A26: Less:
A27: Employee Payroll Taxes | B27: 466 | C27: 93 | D27: 84 | E27: 12 | F27: 30 | G27: 685
A28: Property Taxes | B28: 70.29 | C28: 68 | D28: - | E28: - | F28: 2 | G28: 140
A29: Dividends | B29: 0 | C29: 576 | D29: - | E29: - | F29: 0 | G29: 576
A30: Other Taxes and Fees | B30: 48 | C30: 793 | D30: 80 | E30: 20 | F30: 12 | G30: 953
A31: Total Payments to Governments1 | B31: 47 | C31: 2108 | D31: 927 | E31: 114 | F31: 1 | G31: 3197
A33: 1. Employee payroll taxes, dividends, property taxes and certain other taxes are included in payments to suppliers, and dividends and distributions in the summary of key economic contributions by operating region table as that data is derived primarily from FCX’s publicly reported segment data. Therefore, these taxes are excluded from cash payments to governments for purposes of reporting direct economic contributions on the Key Economic Contributions tab of this data booklet.

Sheet Economic Value Contributed
A1: FCX - ESG PERFORMANCE DATA
A2: SOCIAL
B3: 2018 | C3: 2019 | D3: 2020 | E3: 2021 | F3: 2022
A4: Economic Value Contributed ($ millions)
A5: Direct Economic Contributions1 | B5: 14917 | C5: 13697 | D5: 11423 | E5: 15564 | F5: 19046
A6: Cash Payments to Governments1,2,3 | B6: 2666 | C6: 1572 | D6: 1108 | E6: 3150 | F6: 5551
A7: Community Investments3 | B7: 155 | C7: 100 | D7: 108 | E7: 164 | F7: 177
A9: 1. For further information, please see our 2022 Annual Report on Sustainability and FCX’s 2022 Form 10-K.
A10: 2. Amounts presented reflect credits from prior years as applicable and do not reflect payments on assessments under dispute. Amounts differ from prior year reports to reflect credit for refunds due from governments that have been applied against ongoing tax liabilities.
A12: 3. Cash payments to governments and community investments are subsets of direct economic contributions.

Sheet Human Rights
A1: FCX - ESG PERFORMANCE DATA
A2: GOVERNANCE
B3: 2018 | C3: 2019 | D3: 2020 | E3: 2021 | F3: 2022
A4: Human Rights
A5: Gross Human Rights Violations1,2 | B5: 0 | C5: 0 | D5: 0 | E5: 0 | F5: 2
A7: 1. There is no uniform definition under international law; however, FCX’s ongoing data collection and review processes is guided by the United Nations Office of the High Commissioner report, “The Corporate Responsibility to Respect Human Rights – An Interpretive Guide,” to identify such types of violations. In addition, FCX uses specific interpretation guidance for certain types of violations from various international organizations such as the International Labour Organization.
A10: 2. Information on the 2022 incidents at the Manyar smelter project near Surabaya, Indonesia that were determined by FCX to be gross human rights violations can be found on page 33 in FCX's 2022 Annual Report on Sustainability.

Sheet Business Ethics
A1: FCX - ESG PERFORMANCE DATA
A2: GOVERNANCE
B3: 2018 | C3: 2019 | D3: 2020 | E3: 2021 | F3: 2022
A4: Business Ethics
A5: Principles of Business Conduct Training1 Completion Rate - FCX Global | B5: 1 | C5: 1 | D5: 0.58 | E5: 1 | F5: 1
A6: Principles of Business Conduct Training1 Completion Rate - Management Level | B6: 1 | C6: 1 | D6: 0.82 | E6: 1 | F6: 1
A7: Anti-Corruption Training1 Completion Rate | B7: 1 | C7: 1 | D7: 0.82 | E7: 1 | F7: 1
A9: Complaints Received
A10: FCX Compliance Line Reports2 | B10: 257 | C10: 285 | D10: 270 | E10: 205 | F10: 372
A12: 1. Because of operational challenges as a result of the COVID-19 pandemic, our 2020 business ethics and anti-corruption training was voluntary for employees.
A13: 2. In 2022, the FCX Compliance Line received 107 duplicate, unsubstantiated reports, which largely contributed to the year over year increase.

Sheet Procurement Spend Distribution
A1: FCX - ESG PERFORMANCE DATA
A2: GOVERNANCE
B3: 2018 | C3: 2019 | D3: 2020 | E3: 2021 | F3: 2022
A4: Procurement Spend Distribution ($ millions)
A5: Local | B5: =3201+59.9 -> 3260.9 | C5: =3552+61.3 -> 3613.3 | D5: =2923.49400424091+56.5 -> 2979.994004 | E5: 3350 | F5: 4077.001735
A6: National | B6: =5115+196.5 -> 5311.5 | C6: =5437+206.2 -> 5643.2 | D6: =4590.2961765462+213.3 -> 4803.596177 | E6: 5489 | F6: 8218.479786
A7: Outside Home Country | B7: =1288+1723.4 -> 3011.4 | C7: =1566+1289.6 -> 2855.6 | D7: =1197.61466614596+1372.3 -> 2569.914666 | E7: 2969 | F7: 2988.223066
A8: Total Procurement Spend Distribution | B8: =B5+B6+B7 -> 11583.8 | C8: =C5+C6+C7 -> 12112.1 | D8: =D5+D6+D7 -> 10353.50485 | E8: 11808 | F8: 15283.70459
A9: % Local | B9: =B5/B8 -> 0.2815052055 | C9: =C5/C8 -> 0.2983215132 | D9: =D5/D8 -> 0.2878246592 | E9: 0.2837059621 | F9: 0.27
A10: % National | B10: =B6/B8 -> 0.4585282895 | C10: =C6/C8 -> 0.465914251 | D10: =D6/D8 -> 0.4639584612 | E10: 0.464854336 | F10: 0.54
A11: % Outside Home Country | B11: =B7/B8 -> 0.2599665049 | C11: =C7/C8 -> 0.2357642358 | D11: =D7/D8 -> 0.2482168796 | E11: 0.2514397019 | F11: 0.19
A13: Number of Local Suppliers | B13: =3727+257 -> 3984 | C13: =3649+253 -> 3902 | D13: =3379+252 -> 3631 | E13: 3145 | F13: 3376

Sheet Procurement - by site
A1: FCX - ESG PERFORMANCE DATA
A2: GOVERNANCE | C2: Spend on Goods | F2: Spend on Services1 | I2: Total Procurement Spend
A3: 2022 Procurement Spend Distribution by Site ($ millions) | C3: Local | D3: % of Total | E3: Total | F3: Local | G3: % of Total | H3: Total
A4: Copper Mining | B4: North America
B5: Bagdad | C5: 139.607898 | D5: =C5/E5 -> 0.5007975934 | E5: 278.771104 | F5: 187.190414 | G5: =F5/H5 -> 0.796970575 | H5: 234.877447 | I5: =H5+E5 -> 513.648551
B6: Chino / Cobre | C6: 68.748392 | D6: =C6/E6 -> 0.4434628131 | E6: 155.026284 | F6: 77.100077 | G6: =F6/H6 -> 0.7402124617 | H6: 104.159388 | I6: =H6+E6 -> 259.185672
B7: Morenci | C7: 553.711178 | D7: 0.490404349 | E7: 1129.091084 | F7: 374.935293 | G7: 0.4579068391 | H7: 818.802562 | I7: =H7+E7 -> 1947.893646
B8: Safford / Lone Star | C8: 234.215901 | D8: 0.5234024628 | E8: 447.487197 | F8: 78.681578 | G8: 0.711852488 | H8: 110.530734 | I8: =H8+E8 -> 558.017931
B9: Sierrita | C9: 150.467807 | D9: 0.439896717 | E9: 342.05258 | F9: 139.838998 | G9: 0.7371320784 | H9: 189.706841 | I9: =H9+E9 -> 531.759421
B10: Tyrone | C10: 39.56296 | D10: 0.4560497739 | E10: 86.751408 | F10: 18.394025 | G10: 0.6997822818 | H10: 26.285354 | I10: =H10+E10 -> 113.036762
B11: South America
B12: Cerro Verde | C12: 212.917828 | D12: 0.1631075747 | E12: 1305.382833 | F12: 246.165507 | G12: 0.2834644214 | H12: 868.417651 | I12: 2173.800484
B13: El Abra | C13: 50.887036 | D13: 0.1258737206 | E13: 404.270532 | F13: 75.681486 | G13: 0.2265260502 | H13: 334.096171 | I13: =H13+E13 -> 738.366703
B14: Indonesia
B15: PT-FI (Grasberg) | C15: 175.540096 | D15: =C15/E15 -> 0.0943815059 | E15: 1859.899292 | F15: 271.817248 | G15: 0.1647429815 | H15: 1649.947364 | I15: 3509.846656
B16: Total Copper Mining | C16: =SUM(C5:C15) -> 1625.659096 | D16: =C16/E16 -> 0.2705494289 | E16: =SUM(E5:E15) -> 6008.732314 | F16: 1469.804626 | G16: 0.3389127139 | H16: =SUM(H5:H15) -> 4336.823512 | I16: 10345.55583
A17: Molybdenum Mining | B17: North America
B18: Climax | C18: 46.756424 | D18: 0.6760007887 | E18: 69.166227 | F18: 43.235702 | G18: 0.4762839663 | H18: 90.777152 | I18: =H18+E18 -> 159.943379
B19: Henderson | C19: 21.275807 | D19: 0.5382250515 | E19: 39.529574 | F19: 31.456849 | G19: 0.6179806495 | H19: 50.902644 | I19: =H19+E19 -> 90.432218
B20: Total Molybdenum Mining | C20: =SUM(C18:C19) -> 68.032231 | D20: =C20/E20 -> 0.6258956682 | E20: =SUM(E18:E19) -> 108.695801 | F20: =SUM(F18:F19) -> 74.692551 | G20: 0.5271926775 | H20: =SUM(H18:H19) -> 141.679796 | I20: 250.375597
A21: Smelting & Refining | B21: North America
B22: El Paso Refinery & Rod | C22: 13.460663 | D22: 0.2553416269 | E22: 52.716289 | F22: 66.751565 | G22: 0.5118453261 | H22: 130.413548 | I22: 183.129837
B23: Miami Smelter & Rod | C23: 45.712083 | D23: 0.4895949953 | E23: 93.367137 | F23: 137.302778 | G23: 0.6810118117 | H23: 201.615854 | I23: 294.982991
B24: Europe
B25: Atlantic Copper Smelter & Refinery | C25: 10.010615 | D25: 0.006780376856 | E25: 1476.409824 | F25: 48.015049 | G25: 0.1818556031 | H25: 264.028428 | I25: 1740.438252
B26: Total Smelting & Refining | C26: =SUM(C22:C25) -> 69.183361 | D26: 0.04264015336 | E26: =SUM(E22:E25) -> 1622.49325 | F26: =SUM(F22:F25) -> 252.069392 | G26: 0.422894188 | H26: =SUM(H22:H25) -> 596.05783 | I26: 2218.55108
A27: Other | B27: Other
B28: Fort Madison Moly Special Products | C28: 15.463477 | D28: 0.5501143009 | E28: 28.109571 | F28: 17.398778 | G28: 0.7204537819 | H28: 24.149749 | I28: 52.25932
B29: Rotterdam | C29: 0.510818 | D29: 0.04931923414 | E29: 10.357379 | F29: 3.538458 | G29: 0.1793448627 | H29: 19.72991 | I29: 30.087289
B30: Stowmarket | C30: 0.014633 | D30: 0.0007907401107 | E30: 18.505448 | F30: 0.306713 | G30: 0.0539179666 | H30: 5.688512 | I30: =H30+E30 -> 24.19396
B31: Corporate, Support & Administrative2 | C31: 25 | D31: 0.05773672055 | E31: 433 | F31: 456 | G31: 0.2362694301 | H31: 1930 | I31: =H31+E31 -> 2363
B32: Total Other | C32: =SUM(C28:C30) -> 15.988928 | D32: 0.2806434091 | E32: =SUM(E28:E30) -> 56.972398 | F32: =SUM(F28:F30) -> 21.243949 | G32: 0.4285804493 | H32: =SUM(H28:H30) -> 49.568171 | I32: =H32+E32 -> 106.540569
A34: Total - FCX Global | C34: =C32+C26+C20+C16 -> 1778.863616 | D34: =C34/E34 -> 0.2281502955 | E34: =E32+E26+E20+E16 -> 7796.893763 | F34: =F32+F26+F20+F16 -> 1817.810518 | G34: =F34/H34 -> 0.3547550049 | H34: =H32+H26+H20+H16 -> 5124.129309 | I34: =I32+I26+I20+I16 -> 12921.02307
A36: 1. Amounts include items such as utilities and unapplied credits.
A37: 2. Includes $750M of spend on Manyar smelter and precious metals refinery project in Indonesia.
A38: Note: For our North American and Chilean operations, local suppliers are identified as those located in the state / region where we have operations. For our European and Peruvian operations, local suppliers are identified as those located in the city in which we operate. For PT-FI, local suppliers are identified as those in the cities / towns surrounding our operations. National suppliers are those located in the same country as the operation. Outside home country suppliers are located in countries other than the operation.

Sheet GHG Emissions
A1: FCX - ESG PERFORMANCE DATA
A2: ENVIRONMENT
C3: 2018 | D3: 2019 | E3: 2020 | F3: 2021 | G3: 2022
A4: GHG Emissions
A5: Scope 1 (CO2e metric tons)
A6: Copper Mining | B6: North America
B7: Bagdad | C7: 148112.3342 | D7: 160559.3594 | E7: 162715.2772 | F7: 163182.06 | G7: 179776.15
B8: Chino/Cobre | C8: 167046.8931 | D8: 148576.0101 | E8: 53110.82537 | F8: 100331.16 | G8: 87189.79
B9: Morenci | C9: 615255.7409 | D9: 677159.4976 | E9: 627797.1249 | F9: 620636.35 | G9: 656639.64
B10: Safford/Lone Star | C10: 177236.3775 | D10: 217855.4219 | E10: 225196.5415 | F10: 185084.48 | G10: 202372.86
B11: Sierrita | C11: 133626.8382 | D11: 151817.507 | E11: 119190.2418 | F11: 154977.95 | G11: 145308.5
B12: Tyrone | C12: 35825.67247 | D12: 37226.99398 | E12: 41910.10735 | F12: 40622.22 | G12: 46535.36
B13: South America
B14: Cerro Verde | C14: 578103.4269 | D14: 638972.1618 | E14: 564127.3389 | F14: 644126 | G14: 664043.83
B15: El Abra | C15: 133702.954 | D15: 141452.3374 | E15: 80540 | F15: 61937.41 | G15: 84379.39
B16: Indonesia
B17: PT-FI (Grasberg) | C17: 2651587.29 | D17: 2212265.31 | E17: 2034938.728 | F17: 2284467.26 | G17: 2504659.91
B18: Total Copper Mining | C18: =SUM(C7:C17) -> 4640497.527 | D18: =SUM(D7:D17) -> 4385884.599 | E18: 3909526.185 | F18: 4255364.89 | G18: =SUM(G7:G17) -> 4570905.43
A19: Molybdenum Mining | B19: North America
B20: Climax | C20: 41949.70969 | D20: 51414.35551 | E20: 34558.29011 | F20: 29590.91 | G20: 57480
B21: Henderson | C21: 18860.25719 | D21: 19965.71811 | E21: 17232 | F21: 17817.27 | G21: 17159.14
B22: Total Molybdenum Mining | C22: =SUM(C20:C21) -> 60809.96689 | D22: =SUM(D20:D21) -> 71380.07362 | E22: 51790.29011 | F22: 47408.18 | G22: =SUM(G20:G21) -> 74639.14
A23: Smelting & Refining | B23: North America
B24: Bayway Rod & Wire1 | C24: 1115.762969 | D24: 916.129875 | E24: - | F24: - | G24: -
B25: El Paso Refinery & Rod | C25: 60472.64524 | D25: 71105.39761 | E25: 85612.88579 | F25: 100042.88 | G25: 110204.05
B26: Miami Smelter & Rod | C26: 99751.90118 | D26: 93839.6963 | E26: 98602.18932 | F26: 93234.04 | G26: 97114.39
B27: Norwich Rod1 | C27: 18463.44557 | D27: 17735.43863 | E27: - | F27: - | G27: -
B28: Europe
B29: Atlantic Copper Smelter & Refinery | C29: 57766.72129 | D29: 59298.63058 | E29: 60149.48077 | F29: 53427 | G29: 47265.75
B30: Kokkola Cobalt Refinery1 | C30: 4692.605704 | D30: 4277.105365 | E30: 3184.157191 | F30: - | G30: -
B31: Total Smelting & Refining | C31: =SUM(C24:C30) -> 242263.082 | D31: =SUM(D24:D30) -> 247172.3984 | E31: =SUM(E24:E30) -> 247548.7131 | F31: =SUM(F24:F30) -> 246703.92 | G31: =SUM(G24:G30) -> 254584.19
A32: Other | B32: Other
B33: Fort Madison Moly Special Products | C33: 14110.68227 | D33: 16708.94167 | E33: 17106.68831 | F33: 16609.82 | G33: 19855.98
B34: Rotterdam | C34: 6925.207712 | D34: 8404.189378 | E34: 8238.179735 | F34: 9365.48 | G34: 7752.02
B35: Stowmarket | C35: 113.4024769 | D35: 119.2918284 | E35: 88.28203716 | F35: 106.68 | G35: 86.23
B36: Total Other | C36: =SUM(C33:C35) -> 21149.29246 | D36: =SUM(D33:D35) -> 25232.42288 | E36: 25433.15009 | F36: 26081.98 | G36: =SUM(G33:G35) -> 27694.23
A38: Scope 1 Total - FCX Global | C38: =+C36+C31+C22+C18 -> 4964719.868 | D38: =+D36+D31+D22+D18 -> 4729669.494 | E38: =+E36+E31+E22+E18 -> 4234298.338 | F38: =+F36+F31+F22+F18 -> 4575558.97 | G38: =+G36+G31+G22+G18 -> 4927822.99
A40: Scope 22 (CO2e metric tons)
A41: Copper Mining | B41: North America
B42: Bagdad | C42: 254016 | D42: 231111.44 | E42: 239608 | F42: 160232.52 | G42: 159922.78
B43: Chino/Cobre | C43: 228615.0398 | D43: 226323.0659 | E43: 100720 | F43: 130793.3 | G43: 145537.73
B44: Morenci | C44: 985532.5327 | D44: 970178.0638 | E44: 949081 | F44: 763266.92 | G44: 815734.09
B45: Safford/Lone Star | C45: 88718.25356 | D45: 98252.26528 | E45: 138629 | F45: 156798.18 | G45: 156530
B46: Sierrita | C46: 389041.3056 | D46: 352222.0978 | E46: 408617 | F46: 356594.12 | G46: 331758.32
B47: Tyrone | C47: 100009.2347 | D47: 106392.0225 | E47: 80071.02589 | F47: 91193.68 | G47: 91193.33
B48: South America
B49: Cerro Verde | C49: 264777.6115 | D49: 275538.5815 | E49: 231339 | F49: 315557.1241 | G49: 405709.55
B50: El Abra | C50: 259702.8662 | D50: 238719.936 | E50: 224033.16 | F50: 222730.26 | G50: 189561.37
B51: Indonesia
B52: PT-FI (Grasberg)2 | C52: 0 | D52: 0 | E52: 0 | F52: 0 | G52: 0
B53: Total Copper Mining | C53: =SUM(C42:C52) -> 2570412.844 | D53: =SUM(D42:D52) -> 2498737.473 | E53: 2372098.186 | F53: 2197166.104 | G53: =SUM(G42:G52) -> 2295947.17
A54: Molybdenum Mining | B54: North America
B55: Climax | C55: 98908.59132 | D55: 96278.13657 | E55: 66230.51838 | F55: 62348.03 | G55: 74891.13
B56: Henderson | C56: 105672.1102 | D56: 110116.4975 | E56: 103584.4054 | F56: 87557.29 | G56: 86793.98
B57: Total Molybdenum Mining | C57: =SUM(C55:C56) -> 204580.7015 | D57: =SUM(D55:D56) -> 206394.6341 | E57: 169814.9237 | F57: 149905.32 | G57: =SUM(G55:G56) -> 161685.11
A58: Smelting & Refining | B58: North America
B59: Bayway Rod & Wire1 | C59: 764.3567551 | D59: 772.9644773 | E59: - | F59: - | G59: -
B60: El Paso Refinery & Rod | C60: 18843.30151 | D60: 13077.918 | E60: 18292.66286 | F60: 15492.62 | G60: 18670.03
B61: Miami Smelter & Rod | C61: 235059.0543 | D61: 204127.7568 | E61: 207312 | F61: 183425.44 | G61: 227545.01
B62: Norwich Rod1 | C62: 5448.726572 | D62: 4906.919591 | E62: - | F62: - | G62: -
B63: Europe
B64: Atlantic Copper Smelter & Refinery3 | C64: 119098 | D64: 86745 | E64: 65954 | F64: 59243.94 | G64: 42169.44
B65: Kokkola Cobalt Refinery1 | C65: 21840.28245 | D65: 22513.05 | E65: 6674.78 | F65: - | G65: -
B66: Total Smelting & Refining | C66: =SUM(C59:C65) -> 401053.7216 | D66: =SUM(D59:D65) -> 332143.6089 | E66: =SUM(E59:E65) -> 298233.4429 | F66: =SUM(F59:F65) -> 258162 | G66: =SUM(G59:G65) -> 288384.48
A67: Other | B67: Other
B68: Fort Madison Moly Special Products | C68: 21088.33227 | D68: 22136.27382 | E68: 15698 | F68: 8606.06 | G68: 11146.19
B69: Rotterdam3 | C69: 0 | D69: 0 | E69: 0 | F69: 0 | G69: 0
B70: Stowmarket | C70: 507.5473407 | D70: 447.2506 | E70: 286.29592 | F70: 315.1 | G70: 299.6
B71: Total Other | C71: =SUM(C68:C70) -> 21595.87961 | D71: =SUM(D68:D70) -> 22583.52442 | E71: 15984.29592 | F71: 8921.16 | G71: =SUM(G68:G70) -> 11445.79
A73: Scope 22 Total - FCX Global | C73: =+C71+C66+C57+C53 -> 3197643.147 | D73: =+D71+D66+D57+D53 -> 3059859.24 | E73: =+E71+E66+E57+E53 -> 2856130.848 | F73: =+F71+F66+F57+F53 -> 2614154.584 | G73: =+G71+G66+G57+G53 -> 2757462.55
A75: Scope 1 + 22 (CO2e metric tons)
A76: Copper Mining | C76: =+C18+C53 -> 7210910.371 | D76: =+D18+D53 -> 6884622.072 | E76: =+E18+E53 -> 6281624.371 | F76: =+F18+F53 -> 6452530.994 | G76: =+G18+G53 -> 6866852.6
A77: Molybdenum Mining | C77: =+C22+C57 -> 265390.6684 | D77: =+D22+D57 -> 277774.7077 | E77: =+E22+E57 -> 221605.2138 | F77: =+F22+F57 -> 197313.5 | G77: =+G22+G57 -> 236324.25
A78: Smelting & Refining | C78: =+C31+C66 -> 643316.8035 | D78: =+D31+D66 -> 579316.0072 | E78: =+E31+E66 -> 545782.1559 | F78: =+F31+F66 -> 504865.92 | G78: =+G31+G66 -> 542968.67
A79: Other | C79: =+C36+C71 -> 42745.17207 | D79: =+D36+D71 -> 47815.9473 | E79: =+E36+E71 -> 41417.44601 | F79: =+F36+F71 -> 35003.14 | G79: =+G36+G71 -> 39140.02
A80: Scope 1 + 22 Total - FCX Global | C80: =SUM(C76:C79) -> 8162363.015 | D80: =SUM(D76:D79) -> 7789528.734 | E80: 7090429.187 | F80: 7189713.554 | G80: =SUM(G76:G79) -> 7685285.54
A82: Scope 3 (CO2e metric tons)
A83: Scope 3 Total - FCX Global | C83: 750332 | D83: 692336 | E83: 1729251 | F83: 5179522 | G83: 5365440
A85: 1. In 2020, FCX closed and decommissioned its Bayway rod & wire and Norwich rod facilities, and in September 2021, FCX completed the sale of its remaining cobalt business based in Kokkola, Finland.
A87: 2. Scope 2 emissions have been calculated using a market-based method, where available. The market-based calculation of Scope 2 emissions utilizes emission factors that are available at the time of inventory close. Emission factors are determined by each market according to their reporting schedule. Therefore, certain emission factors used in market-based calculations may be up to one year in arrears due to lag time. As required by the WRI/WBCSD Greenhouse Gas Protocol (GHG Protocol), FCX’s location-based 2023 Scope 2 emissions are reported on the "Dual Reporting” tab. PT-FI generates its own electricity. As a result, there are no Scope 2 emissions associated with PT-FI operations.
A88: 3. At our Rotterdam processing facility, we purchase renewable energy certificates (RECs) for all electricity. Since 2020, at our Atlantic Copper smelter & refinery, we have purchased RECs for a portion of our electricity.
A89: Note: GHG emissions data have been prepared in accordance with the GHG Protocol. FCX reports GHG emissions on a 100% operational basis. FCX's GHG emissions verification statement is available at fcx.com/sustainability.

Sheet GHG Emissions - 2030 Targets
A1: FCX - ESG PERFORMANCE DATA
A2: ENVIRONMENT
B3: Baseline Year 2018 | C3: 2019 | D3: 2020 | E3: 2021 | F3: 2022 | G3: Target Year 2030
A4: 2030 GHG Emissions Reduction Target Performance
A5: Intensity Reduction Targets¹
A6: Americas Copper2 - 15% intensity reduction | B6: 3.72 | C6: 3.7 | D6: 3.81 | E6: 3.59 | F6: 3.63 | G6: 3.17
A7: PT-FI (Grasberg)3 - 30% intensity reduction | B7: 4.76 | C7: 7.73 | D7: 5.4 | E7: 3.71 | F7: 3.52 | G7: 3.34
A8: Absolute Reduction Targets4
A9: Atlantic Copper Smelter & Refinery - 50% absolute reduction | B9: 176865 | C9: 146044 | D9: 126103 | E9: 112671 | F9: 89435.19 | G9: 88432
A10: Primary Molybdenum Sites5 - 35% absolute reduction | B10: 308136 | C10: 325591 | D10: 263023 | E10: 232317 | F10: 275464.27 | G10: 200288
A12: 1. Intensity reduction targets (CO2e metric tons / metric ton copper) include total (Scope 1 and 2) emissions and do not include by-products in the denominator. Baseline and target are calculated and therefore may differ due to rounding.
A14: 2. Americas Copper (for target) includes Bagdad, Cerro Verde, Chino (including Cobre), El Abra, Morenci, Safford (including Lone Star), Sierrita and Tyrone mines as well as the Miami smelter and El Paso refinery. Our Americas copper target includes all payable copper, including payable copper in concentrate and cathode, but excludes rod and wire; GHG emissions associated with the production of by-product molybdenum are also included.
A16: 3. Our PT-FI intensity reduction target is based on payable copper produced in concentrate; PT-FI does not currently smelt or refine its concentrates. The majority of PT-FI concentrate is currently smelted and refined by PT Smelting (PTS) and other smelters whose emissions are accounted for as our Scope 3 emissions and therefore not included in this target. Upon completion of the PTS expansion after which PT-FI expects to have majority ownership and the construction of the Manyar smelter in Gresik, GHG emissions for smelting and refining are expected to shift from Scope 3 to Scopes 1 and/or 2, and we will adjust our target and baseline in line with the GHG Protocol at such time.
A20: 4. Absolute targets include total (Scope 1 and 2) emissions.
A21: 5. Primary Molybdenum Sites include Climax and Henderson mines located in Colorado, U.S., and downstream molybdenum processing facilities located in the U.S., U.K. and the Netherlands (Fort Madison, Stowmarket and Rotterdam, respectively).

Sheet Dual Reporting
A1: FCX - ESG PERFORMANCE DATA
A2: ENVIRONMENT
A4: 2022 GHG Emissions - Scope 2 Dual Reporting
A5: Scope 2 (CO2e metric tons) | C5: Location-Based1 | D5: Market-Based2
A6: Copper Mining | B6: North America
B7: Bagdad | C7: 171875 | D7: 159922.78
B8: Chino / Cobre | C8: 176394.2 | D8: 145537.73
B9: Morenci | C9: 771091.39 | D9: 815734.09
B10: Safford / Lone Star | C10: 147993.62 | D10: 156530
B11: Sierrita | C11: 211029.11 | D11: 331758.32
B12: Tyrone | C12: 110453.47 | D12: 91193.33
B13: South America
B14: Cerro Verde | C14: 626393.04 | D14: 405709.55
B15: El Abra | C15: 189561.37 | D15: 189561.37
B16: Indonesia
B17: PT-FI (Grasberg)3 | C17: 0 | D17: 0
B18: Total Copper Mining | C18: =SUM(C7:C17) -> 2404791.2 | D18: =SUM(D7:D17) -> 2295947.17
A19: Molybdenum Mining | B19: North America
B20: Climax | C20: 88436.1 | D20: 74891.13
B21: Henderson | C21: 102491.72 | D21: 86793.98
B22: Total Molybdenum Mining | C22: =SUM(C20:C21) -> 190927.82 | D22: =SUM(D20:D21) -> 161685.11
A23: Smelting & Refining | B23: North America
B24: El Paso Refinery & Rod | C24: 31065.27 | D24: 18670.03
B25: Miami Smelter & Rod | C25: 168738.14 | D25: 227545.01
B26: Europe
B27: Atlantic Copper Smelter & Refinery | C27: 69379.39 | D27: 42169.44
B28: Total Smelting & Refining | C28: =SUM(C24:C27) -> 269182.8 | D28: =SUM(D24:D27) -> 288384.48
A29: Other | B29: Other
B30: Fort Madison Moly Special Products | C30: 11146.15 | D30: 11146.19
B31: Rotterdam | C31: 5057.69 | D31: 0
B32: Stowmarket | C32: 299.6 | D32: 299.6
B33: Total Other | C33: =SUM(C30:C32) -> 16503.44 | D33: =SUM(D30:D32) -> 11445.79
A35: Total - FCX Global | C35: =C33+C28+C22+C18 -> 2881405.26 | D35: =D33+D28+D22+D18 -> 2757462.55
A37: 1. Location-based emission factors are sourced from publicly available regulatory or similar reports from regions where FCX operates.
A39: 2. Market-based emission factors were not applicable or available for certain markets were we operate, and therefore, location-based emission factors have been used in accordance with GHG Protocol - Scope 2 Guidance. The market-based calculation of Scope 2 emissions utilizes emission factors that are available at the time of inventory close. Emission factors are determined by each market according to their reporting schedule. Therefore, certain emission factors used in market-based calculations may be up to one year in arrears due to lag time.
A44: 3. PT-FI generates its own electricity. As a result, there are no Scope 2 emissions associated with PT-FI operations.
A45: Note: GHG emissions data have been prepared in accordance with the GHG Protocol. FCX reports GHG emissions on a 100% operational basis. FCX's GHG emissions verification statement is available at fcx.com/sustainability.

Sheet Scope 3 Inventory Development
A1: FCX - ESG PERFORMANCE DATA
A2: ENVIRONMENT | B2: INVENTORY REVIEW
B3: Estimated FY 2020 Emissions | C3: Estimated FY 2021 Emissions | D3: Estimated FY 2022 Emissions
A4: Scope 3 Emissions Inventory Development (CO2e metric tons) | B4: As of 2020 Climate Report | C4: As of 2021 Climate Report | D4: As of 2022 Annual Report on Sustainability
A5: Upstream1
A6: Category 1: Purchased goods and services | B6: 323012 | C6: 2849703 | D6: 2849703
A7: Category 2: Capital goods | B7: To be calculated | C7: Included above | D7: Included above
A8: Category 3: Fuel and energy-related activities | B8: 225358 | C8: 551616 | D8: 551616
A9: Category 4: Upstream transportation and distribution | B9: To be calculated | C9: 426360 | D9: 426360
A10: Category 5: Waste generated in operations | B10: Minor Impact | C10: 8665 | D10: 8665
A11: Category 6: Business travel | B11: 1684 | C11: 1315 | D11: 4667
A12: Category 7: Employee commuting | B12: Minor Impact | C12: 14485 | D12: 14485
A13: Category 8: Upstream leased assets | B13: Not applicable | C13: Not applicable | D13: Not applicable
A15: Downstream
A16: Category 9: Downstream transportation and distribution | B16: 336159 | C16: 442010 | D16: 399201
A17: Category 10: Processing of sold products | B17: 843038 | C17: 885367 | D17: 1110743
A18: Category 11: Use of sold products | B18: Minor Impact | C18: Minor Impact | D18: Minor Impact
A19: Category 12: End-of-life treatment of sold products | B19: Minor Impact | C19: Minor Impact | D19: Minor Impact
A20: Category 13: Downstream leased assets | B20: Not applicable | C20: Not applicable | D20: Not applicable
A21: Category 14: Franchises | B21: Not applicable | C21: Not applicable | D21: Not applicable
A22: Category 15: Investments | B22: Not applicable | C22: Not applicable | D22: Not applicable
A23: Total Scope 3 Emissions | B23: 1729251 | C23: 5179522 | D23: 5365440
A25: 1. Categories 1 to 8 (excluding Category 6 ) are based on spend data from the 2021 Climate Report, published in September 2022. We plan to update the totals for these categories in the future. Categories 6, 9 and 10 are based on industry and supplier specific emission factors and activity data from 2022.
A27: Note: GHG emissions data have been prepared in accordance with the GHG Protocol, and we have expanded our Scope 3 emissions calculations to include additional categories. A majority of Category 1 emissions data were calculated using environmentally extended input-output (EEIO) analysis, using purchasing data and the U.S. Environmental Protection Agency's emission factors. Emissions estimates for Category 1 and Category 3 have been updated to include emissions associated with lime, chemicals, reagents, tires, explosives, and all remaining mining supplies and emissions associated with extraction, refining and transportation of raw fuels sourced to FCX sites and third parties used in the generation of electricity (natural gas, gasoline, coal, and other fuels) prior to combustion, respectively. FCX reports GHG emissions on a 100% operational basis. FCX's GHG emissions verification statement is available on FCX's website at fcx.com/sustainability.
A32: SCOPE 3 CALCULATION METHODOLOGY
A33: Scope 3 estimates by nature are imprecise; they are generated by other companies in often complex supply chains. To estimate these emissions (with exception of Categories 9 & 10), Freeport uses a hybrid financial spend-based method for goods, services and other Scope 3 activities. This method uses best available emission factors – process-based Life Cycle Assessment (LCA) factors for inputs where the relationship between spend and materials are easily understood (e.g., copper concentrate or sulfuric acid) and environmentally extended input-output (EEIO) emission factors for financial spend that is more difficult to model. This method was employed for the following Scope 3 categories:
A37: 1. Category 1: Purchased goods and services (including Category 2: Capital Goods);
A38: 2. Category 3: Fuel- and energy-related activities;
A39: 3. Category 4: Upstream transportation;
A40: 4. Category 5: Waste generated in operations; and
A41: 5. Category 7: Employee commuting
A43: As described by the GHG Protocol Corporate Value Chain (Scope 3) Standard Guidance, “EEIO models are derived by allocating national GHG emissions to groups of finished products based on economic flows between industry sectors.” Spend data for specific categories are mapped to corresponding industry sectors and then multiplied by cradle-to-gate emission factors for the sector to provide estimated carbon emissions. As a result of this approach, while these emission factors are indicative in nature, the results could significantly over (or in some cases under) estimate emissions. However, they provide a first estimate which can be complemented over time with process-based LCA emission factors or actual data provided by suppliers. For copper purchases (e.g. cathode, concentrate and scrap), rather than EEIO factors, we assigned an LCA based emission factor from third-party databases. This supports a higher quality dataset for what makes up approximately 20% or more of Category 1 emissions. Most of this sub-set is incurred by Atlantic Copper, which, as noted previously, purchases around 70% of its copper concentrates externally.

Sheet Air Emissions
A1: FCX - ESG PERFORMANCE DATA
A2: ENVIRONMENT
B3: 2018 | C3: 2019 | D3: 2020 | E3: 2021 | F3: 2022
A4: Air Emissions (thousand metric tons)
A5: CO, carbon monoxide1 | B5: 109.7 | C5: 117.6 | D5: 98.184 | E5: 96.14705 | F5: 38.37861
A6: NOX (excluding N2O), oxides of nitrogen | B6: 41.5272 | C6: 47.88399 | D6: 39.88446 | E6: 47.45811 | F6: 49.72766
A7: SOX, oxides of sulfur | B7: 12.24521 | C7: 7.16914 | D7: 7.27452 | E7: 6.98785 | F7: 6.88115
A8: PM10, particulate matter | B8: 17.25662 | C8: 14.19757 | D8: 13.08317 | E8: 13.02452 | F8: 14.6474
A9: Hg, mercury | B9: 6e-05 | C9: 0.0001 | D9: 6e-05 | E9: 0.00014 | F9: 0.00015
A10: Pb, lead | B10: 0.02779 | C10: 0.02006 | D10: 0.01962 | E10: 0.01155 | F10: 0.01217
A11: VOCs, non-methane volatile organic compounds1 | B11: 9.4 | C11: 10.13219 | D11: 8.32688 | E11: 8.49096 | F11: 4.21414
A12: Ozone Depleting Substances, CFC-11 equivalent | B12: 8e-05 | C12: 2e-05 | D12: 2e-05 | E12: 2e-05 | F12: 1e-05
A14: 1. Reduced CO and VOC emissions in 2022 are largely attributable to updating haul truck engine emission factors to EPA Tier 1 standards emission factors, which better reflect the average age of FCX’s haul truck fleet.

Sheet Energy Consumption - by site
A1: FCX - ESG PERFORMANCE DATA
A2: ENVIRONMENT
C3: 2018 | D3: 2019 | E3: 2020 | F3: 2021 | G3: 2022
A4: Energy Consumption by Site
A5: Direct Energy (terajoules)
A6: Copper Mining | B6: North America
B7: Bagdad | C7: 1873 | D7: 2031 | E7: 2077 | F7: 2024.4 | G7: 2235
B8: Chino / Cobre | C8: 2131 | D8: 1803 | E8: 706 | F8: 1473.7 | G8: 1108
B9: Morenci | C9: 7938 | D9: 8749 | E9: 8088 | F9: 7975.25 | G9: 8295
B10: Safford / Lone Star | C10: 1262 | D10: 1667 | E10: 2008 | F10: 2244.03 | G10: 2491
B11: Sierrita | C11: 1699 | D11: 1924 | E11: 1513 | F11: 1954.88 | G11: 1850
B12: Tyrone | C12: 443 | D12: 456 | E12: 515 | F12: 501.65 | G12: 571
B13: South America
B14: Cerro Verde | C14: 7193 | D14: 7946 | E14: 7093 | F14: 7980.66 | G14: 8339
B15: El Abra1 | C15: 1676 | D15: 1767 | E15: 1031 | F15: 756.89 | G15: 1031
B16: Indonesia
B17: PT-FI (Grasberg) | C17: 31357 | D17: 26066 | E17: 24217 | F17: 26422.23 | G17: 28854.1
B18: Total Copper Mining | C18: =SUM(C7:C17) -> 55572 | D18: =SUM(D7:D17) -> 52409 | E18: 47248 | F18: 51333.69 | G18: =SUM(G7:G17) -> 54774.1
A19: Molybdenum Mining | B19: North America
B20: Climax | C20: 584 | D20: 694 | E20: 497 | F20: 424.49 | G20: 779
B21: Henderson | C21: 319 | D21: 324 | E21: 325 | F21: 332.88 | G21: 319
B22: Total Molybdenum Mining | C22: =SUM(C20:C21) -> 903 | D22: =SUM(D20:D21) -> 1018 | E22: 822 | F22: 757.37 | G22: =SUM(G20:G21) -> 1098
A23: Smelting & Refining | B23: North America
B24: Bayway Rod & Wire | C24: 22 | D24: 18 | E24: - | F24: - | G24: -
B25: El Paso Refinery & Rod | C25: 1197 | D25: 1408 | E25: 1694 | F25: 1981.39 | G25: 2184
B26: Miami Smelter & Rod | C26: 1921 | D26: 1795 | E26: 1910 | F26: 1790.38 | G26: 1869
B27: Norwich Rod | C27: 366 | D27: 351 | E27: - | F27: - | G27: -
B28: Europe
B29: Atlantic Copper Smelter & Refinery | C29: 846 | D29: 874 | E29: 895 | F29: 800.19 | G29: 725
B30: Kokkola Cobalt Refinery | C30: 78 | D30: 71 | E30: 53 | F30: - | G30: -
B31: Total Smelting & Refining | C31: =SUM(C24:C30) -> 4430 | D31: =SUM(D24:D30) -> 4517 | E31: =SUM(E24:E30) -> 4552 | F31: =SUM(F24:F30) -> 4571.96 | G31: =SUM(G24:G30) -> 4778
A32: Other | B32: Other
B33: Fort Madison Moly Special Products | C33: 276 | D33: 325 | E33: 339 | F33: 327.47 | G33: 393
B34: Rotterdam | C34: 137 | D34: 164 | E34: 163 | F34: 184.73 | G34: 153
B35: Stowmarket | C35: 2 | D35: 2 | E35: 1 | F35: 1.56 | G35: 1
B36: Total Other | C36: =SUM(C33:C35) -> 415 | D36: =SUM(D33:D35) -> 491 | E36: 503 | F36: 513.76 | G36: =SUM(G33:G35) -> 547
A38: Direct Energy Total - FCX Global | C38: 61318 | D38: 58436 | E38: 53127 | F38: 57177 | G38: =+G36+G31+G22+G18 -> 61197.1
A40: Indirect Energy (terajoules)
A41: Copper Mining | B41: North America
B42: Bagdad | C42: 2072 | D42: 2080 | E42: 2088 | F42: 1852.77 | G42: 1871
B43: Chino / Cobre | C43: 1724 | D43: 1641 | E43: 886 | F43: 1067.86 | G43: 1225
B44: Morenci | C44: 8608 | D44: 8521 | E44: 8251 | F44: 7844.26 | G44: 8393
B45: Safford / Lone Star | C45: 775 | D45: 863 | E45: 1203 | F45: 1610.82 | G45: 1611
B46: Sierrita | C46: 2067 | D46: 1996 | E46: 2315 | F46: 2178.98 | G46: 2297
B47: Tyrone | C47: 755 | D47: 771 | E47: 715 | F47: 749.5 | G47: 767
B48: South America
B49: Cerro Verde | C49: 12731 | D49: 12868 | E49: 11005 | F49: 12457.78 | G49: 13111
B50: El Abra1 | C50: 2233 | D50: 2119 | E50: 1988 | F50: 2052.29 | G50: 2270
B51: Indonesia
B52: PT-FI (Grasberg)2 | C52: 0 | D52: 0 | E52: 0 | F52: 0 | G52: 0
B53: Total Copper Mining | C53: =SUM(C42:C52) -> 30965 | D53: =SUM(D42:D52) -> 30859 | E53: 28451 | F53: 29814.26 | G53: =SUM(G42:G52) -> 31545
A54: Molybdenum Mining | B54: North America
B55: Climax | C55: 644 | D55: 674 | E55: 464 | F55: 472.53 | G55: 572
B56: Henderson | C56: 689 | D56: 771 | E56: 726 | F56: 663.59 | G56: 663
B57: Total Molybdenum Mining | C57: =SUM(C55:C56) -> 1333 | D57: =SUM(D55:D56) -> 1445 | E57: 1190 | F57: 1136.12 | G57: =SUM(G55:G56) -> 1235
A58: Smelting & Refining | B58: North America
B59: Bayway Rod & Wire | C59: 12 | D59: 12 | E59: - | F59: - | G59: -
B60: El Paso Refinery & Rod | C60: 278 | D60: 191 | E60: 269 | F60: 240.4 | G60: 286
B61: Miami Smelter & Rod | C61: 1917 | D61: 1729 | E61: 1889 | F61: 1665.34 | G61: 1837
B62: Norwich Rod | C62: 85 | D62: 76 | E62: - | F62: - | G62: -
B63: Europe
B64: Atlantic Copper Smelter & Refinery | C64: 1046 | D64: 1007 | E64: 1032 | F64: 1015.61 | G64: 804
B65: Kokkola Cobalt Refinery | C65: 321 | D65: 331 | E65: 98 | F65: - | G65: -
B66: Total Smelting & Refining | C66: =SUM(C59:C65) -> 3659 | D66: =SUM(D59:D65) -> 3346 | E66: =SUM(E59:E65) -> 3288 | F66: =SUM(F59:F65) -> 2921.35 | G66: =SUM(G59:G65) -> 2927
A67: Other | B67: Other
B68: Fort Madison Moly Special Products | C68: 155 | D68: 163 | E68: 145 | F68: 110.79 | G68: 114
B69: Rotterdam | C69: 64 | D69: 61 | E69: 46 | F69: 47.07 | G69: 49
B70: Stowmarket | C70: 6 | D70: 6 | E70: 4 | F70: 5.34 | G70: 5
B71: Total Other | C71: =SUM(C68:C70) -> 225 | D71: =SUM(D68:D70) -> 230 | E71: 195 | F71: 163.2 | G71: =SUM(G68:G70) -> 168
A73: Indirect Energy Total - FCX Global | C73: 36182 | D73: 35881 | E73: 33125 | F73: 34034.93 | G73: =+G71+G66+G57+G53 -> 35875
A75: Total Energy (terajoules)
A76: Copper Mining | C76: =+C18+C53 -> 86537 | D76: =+D18+D53 -> 83268 | E76: 75699 | F76: 81147.95 | G76: =+G18+G53 -> 86319.1
A77: Molybdenum Mining | C77: =+C22+C57 -> 2236 | D77: =+D22+D57 -> 2463 | E77: 2012 | F77: 1893.49 | G77: =+G22+G57 -> 2333
A78: Smelting & Refining | C78: =+C31+C66 -> 8089 | D78: =+D31+D66 -> 7863 | E78: 7840 | F78: 7493.31 | G78: =+G31+G66 -> 7705
A79: Other | C79: =+C36+C71 -> 640 | D79: =+D36+D71 -> 721 | E79: 698 | F79: 676.96 | G79: =+G36+G71 -> 715
A80: Total - FCX Global | C80: =SUM(C76:C79) -> 97502 | D80: =SUM(D76:D79) -> 94315 | E80: 86249 | F80: 91211.71 | G80: =SUM(G76:G79) -> 97072.1
A82: 1. El Abra has a regenerative downhill conveyor system that is 20km in length that generates approximately 31 TJ of electricity for use on site as it transports material for processing. This was included in Direct Energy in 2018-2020 but has not been included in 2021 or 2022 to align with the GRI definition of total energy consumption.
A84: 2. PT-FI generates its own electricity; as a result, there are no indirect energy entries in this table.
A85: Note: In 2020, FCX closed and decommissioned its Bayway rod & wire and Norwich rod facilities, and in September 2021, FCX completed the sale of its remaining cobalt business based in Kokkola, Finland.

Sheet 2022 Energy Consumption - Type
A1: FCX - ESG PERFORMANCE DATA
A2: 2022 ENERGY CONSUMPTION BY TYPE | C2: Direct Energy | F2: Indirect Energy | I2: Total Energy | L2: % Renewable
A3: (terajoules, except percentages) | C3: Renewable | D3: Nonrenewable | E3: Total | F3: Renewable | G3: Nonrenewable | H3: Total | I3: Renewable | J3: Nonrenewable | K3: Total
A4: Copper Mining | B4: North America
B5: Bagdad | C5: 0 | D5: 2235 | E5: =C5+D5 -> 2235 | F5: 450 | G5: 1421 | H5: =F5+G5 -> 1871 | I5: 450 | J5: 3655 | K5: =I5+J5 -> 4105 | L5: =I5/K5 -> 0.1096224117
B6: Chino / Cobre | C6: 0 | D6: 1108 | E6: =C6+D6 -> 1108 | F6: 73 | G6: 1152 | H6: =F6+G6 -> 1225 | I6: 73 | J6: 2260 | K6: =I6+J6 -> 2333 | L6: =I6/K6 -> 0.03129018431
B7: Morenci | C7: 0 | D7: 8295 | E7: 8295 | F7: 992 | G7: 7401 | H7: 8393 | I7: 992 | J7: 15697 | K7: 16689 | L7: 0.05944034993
B8: Safford / Lone Star | C8: 0 | D8: 2491 | E8: 2491 | F8: 191 | G8: 1420 | H8: 1611 | I8: 191 | J8: 3911 | K8: 4102 | L8: 0.04656265236
B9: Sierrita | C9: 0 | D9: 1850 | E9: 1850 | F9: 128 | G9: 2169 | H9: 2297 | I9: 128 | J9: 4019 | K9: 4147 | L9: 0.03086568604
B10: Tyrone | C10: 0 | D10: 571 | E10: 571 | F10: 46 | G10: 721 | H10: 767 | I10: 46 | J10: 1292 | K10: 1338 | L10: 0.03437967115
B11: South America
B12: Cerro Verde | C12: 416 | D12: 7924 | E12: 8340 | F12: 9516 | G12: 3595 | H12: 13111 | I12: 9931 | J12: 11519 | K12: 21450 | L12: 0.462983683
B13: El Abra | C13: 0 | D13: 1031 | E13: 1031 | F13: 1249 | G13: 1022 | H13: 2271 | I13: 1249 | J13: 2052 | K13: 3301 | L13: 0.3783701909
B14: Indonesia
B15: PT-FI (Grasberg) | C15: 129 | D15: 28725.23 | E15: =C15+D15 -> 28854.23 | F15: 0 | G15: 0 | I15: 129 | J15: 28725.23 | K15: =I15+J15 -> 28854.23 | L15: =I15/K15 -> 0.00447074831
B16: Total Copper Mining | C16: =SUM(C5:C15) -> 545 | D16: 54230.23 | E16: 54775.23 | F16: 12645 | G16: 18901 | H16: 31546 | I16: 13189 | J16: 73130.23 | K16: 86319.23 | L16: 0.1527932999
A17: Molybdenum Mining | B17: North America
B18: Climax | C18: 0 | D18: 779 | E18: =C18+D18 -> 779 | F18: 223 | G18: 349 | H18: =F18+G18 -> 572 | I18: 223 | J18: 1128 | K18: =I18+J18 -> 1351 | L18: =I18/K18 -> 0.1650629164
B19: Henderson | C19: 11 | D19: 307 | E19: 318 | F19: 259 | G19: 404 | H19: 663 | I19: 270 | J19: 711 | K19: 981 | L19: 0.2752293578
B20: Total Molybdenum Mining | C20: =C18+C19 -> 11 | D20: =D18+D19 -> 1086 | E20: 1097 | F20: =F18+F19 -> 482 | G20: =G18+G19 -> 753 | H20: 1235 | I20: =I18+I19 -> 493 | J20: =J18+J19 -> 1839 | K20: 2332 | L20: 0.211406518
A21: Smelting & Refining | B21: North America
B22: El Paso Refinery & Rod | C22: 0 | D22: 2184 | E22: 2184 | F22: 8 | G22: 278 | H22: =F22+G22 -> 286 | I22: 8 | J22: 2462 | K22: =I22+J22 -> 2470 | L22: 0.003238866397
B23: Miami Smelter & Rod | C23: 0 | D23: 1869 | E23: 1869 | F23: 290 | G23: 1547 | H23: 1837 | I23: 290 | J23: 3416 | K23: 3706 | L23: 0.07825148408
B24: Europe
B25: Atlantic Copper Smelter & Refinery | C25: 0 | D25: 725 | E25: 725 | F25: 363 | G25: 441 | H25: =F25+G25 -> 804 | I25: 363 | J25: 1167 | K25: =I25+J25 -> 1530 | L25: 0.237254902
B26: Total Smelting & Refining | C26: =SUM(C22:C25) -> 0 | D26: 4778 | E26: 4778 | F26: 661 | G26: 2266 | H26: 2927 | I26: 661 | J26: 7045 | K26: 7706 | L26: 0.08577731638
A27: Other | B27: Other
B28: Fort Madison Moly Special Products | C28: 0 | D28: 393 | E28: =C28+D28 -> 393 | F28: 65 | G28: 49 | H28: =F28+G28 -> 114 | I28: 65 | J28: 442 | K28: =I28+J28 -> 507 | L28: 0.1282051282
B29: Rotterdam | C29: 0 | D29: 153 | E29: 153 | F29: 49 | G29: 0 | H29: 49 | I29: 49 | J29: 153 | K29: 202 | L29: 0.2425742574
B30: Stowmarket | C30: 0 | D30: 1 | E30: 1 | F30: 2 | G30: 3 | H30: 5 | I30: 2 | J30: 5 | K30: 7 | L30: 0.2857142857
B31: Total Other | C31: =SUM(C28:C30) -> 0 | D31: =SUM(D28:D30) -> 547 | E31: 547 | F31: 116 | G31: 52 | H31: 168 | I31: 116 | J31: 600 | K31: 716 | L31: 0.1620111732
A33: Total - FCX Global | C33: =C31+C26+C20+C16 -> 556 | D33: =D31+D26+D20+D16 -> 60641.23 | E33: 61197.23 | F33: 13904 | G33: 21972 | H33: 35876 | I33: 14459 | J33: 82614.23 | K33: 97072 | L33: 0.1489512939

Sheet 2022 Indirect Energy - Source
A1: FCX - ESG PERFORMANCE DATA
A2: 2022 INDIRECT ENERGY CONSUMED BY SOURCE
A3: (terajoules) | C3: Geothermal | D3: Solar | E3: Wind | F3: Nuclear | G3: Hydro | H3: Biomass | I3: Other Fossil | J3: Gas | K3: Oil | L3: Coal/ Coke | M3: Other
A4: Copper Mining | B4: North America
B5: Bagdad | C5: 59.19 | D5: 104.45 | E5: 90.53 | F5: 327.28 | G5: 189.16 | H5: 6.92 | I5: 0 | J5: 814.74 | K5: 278.57 | L5: 0 | M5: 0
B6: Chino / Cobre | C6: 13.51 | D6: 23.84 | E6: 20.67 | F6: 74.7 | G6: 13.51 | H6: 1.59 | I6: 0 | J6: 1013.14 | K6: 63.59 | L6: 0.39 | M6: 0
B7: Morenci | C7: 183.22 | D7: 323.39 | E7: 280.25 | F7: 1013.22 | G7: 183.22 | H7: 21.57 | I7: 0 | J7: 5525.89 | K7: 862.31 | L7: 0 | M7: 0
B8: Safford / Lone Star | C8: 35.25 | D8: 62.2 | E8: 53.9 | F8: 194.87 | G8: 35.25 | H8: 4.14 | I8: 0 | J8: 1059.44 | K8: 165.84 | L8: 0 | M8: 0
B9: Sierrita | C9: 0 | D9: 98.77 | E9: 29.17 | F9: 0 | G9: 0 | H9: 0 | I9: 0 | J9: 1114.05 | K9: 855.18 | L9: 0 | M9: 199.84
B10: Tyrone | C10: 8.52 | D10: 15.03 | E10: 13.03 | F10: 47.1 | G10: 8.52 | H10: 1 | I10: 0 | J10: 633.53 | K10: 40.08 | L10: 0 | M10: 0
B11: South America
B12: Cerro Verde | C12: 0 | D12: 81.29 | E12: 61.62 | F12: 0 | G12: 9375.36 | H12: 18.35 | I12: 0 | J12: 3423.17 | K12: 44.58 | L12: 106.2 | M12: 0
B13: El Abra | C13: 22.7 | D13: 385.93 | E13: 249.72 | F13: 0 | G13: 544.85 | H13: 45.4 | I13: 22.7 | J13: 431.34 | K13: 522.15 | L13: 45.4 | M13: 0
B14: Indonesia
B15: PT-FI (Grasberg)1 | C15: - | D15: - | E15: - | F15: - | G15: - | H15: - | I15: - | J15: - | K15: - | L15: - | M15: -
B16: Total Copper Mining | C16: =SUM(C5:C15) -> 322.39 | D16: =SUM(D5:D15) -> 1094.9 | E16: 798.89 | F16: 1657.17 | G16: 10349.87 | H16: 98.97 | I16: 22.7 | J16: 14015.3 | K16: 2832.3 | L16: 151.99 | M16: 199.84
A17: Molybdenum Mining | B17: North America
B18: Climax | C18: 0 | D18: 28.6 | E18: 194.47 | F18: 0 | G18: 0 | H18: 0 | I18: 0 | J18: 165.87 | K18: 183.03 | L18: 0 | M18: 0
B19: Henderson | C19: 0 | D19: 33.14 | E19: 225.38 | F19: 0 | G19: 0 | H19: 0 | I19: 0 | J19: 192.24 | K19: 212.12 | L19: 0 | M19: 0
B20: Total Molybdenum Mining | C20: =SUM(C18:C19) -> 0 | D20: =SUM(D18:D19) -> 61.74 | E20: 419.85 | F20: 0 | G20: 0 | H20: 0 | I20: 0 | J20: 358.11 | K20: 395.15 | L20: 0 | M20: 0
A21: Smelting & Refining | B21: North America
B22: El Paso Refinery & Rod | C22: 0 | D22: 7.72 | E22: 0 | F22: 124.99 | G22: 0 | H22: 0 | I22: 0 | J22: 120.98 | K22: 0 | L22: 0 | M22: 32.32
B23: Miami Smelter & Rod | C23: 57.12 | D23: 169.53 | E23: 12.49 | F23: 302.5 | G23: 44.63 | H23: 6.06 | I23: 0 | J23: 777.1 | K23: 398.01 | L23: 0 | M23: 69.24
B24: Europe
B25: Atlantic Copper Smelter & Refinery2 | C25: 0 | D25: 12.87 | E25: 276.61 | F25: 186.55 | G25: 15.28 | H25: 57.9 | I25: 41.81 | J25: 155.19 | K25: 30.56 | L25: 8.04 | M25: 19.3
B26: Total Smelting & Refining | C26: =SUM(C22:C25) -> 57.12 | D26: 190.12 | E26: 289.1 | F26: 614.04 | G26: 59.91 | H26: 63.96 | I26: 41.81 | J26: 1053.27 | K26: 428.57 | L26: 8.04 | M26: 120.86
A27: Other | B27: Other
B28: Fort Madison Moly Special Products | C28: 0 | D28: 0.34 | E28: 62.92 | F28: 0 | G28: 1.6 | H28: 0.34 | I28: 0 | J28: 10.94 | K28: 37.62 | L28: 0.23 | M28: 0
B29: Rotterdam2 | C29: 0 | D29: 0 | E29: 0 | F29: 0 | G29: 0 | H29: 49.46 | I29: 0 | J29: 0 | K29: 0 | L29: 0 | M29: 0
B30: Stowmarket | C30: 0 | D30: 0.09 | E30: 1.18 | F30: 0.35 | G30: 0.12 | H30: 0.23 | I30: 0 | J30: 2.67 | K30: 0.21 | L30: 0 | M30: 0.22
B31: Total Other | C31: =SUM(C28:C30) -> 0 | D31: =SUM(D28:D30) -> 0.43 | E31: 64.1 | F31: 0.35 | G31: 1.72 | H31: 50.03 | I31: 0 | J31: 13.61 | K31: 37.83 | L31: 0.23 | M31: 0.22
A33: Total - FCX Global | C33: =C31+C26+C20+C16 -> 379.51 | D33: 1347.19 | E33: 1571.94 | F33: 2271.56 | G33: 10411.5 | H33: 212.96 | I33: 64.51 | J33: 15440.29 | K33: 3693.85 | L33: 160.26 | M33: =M31+M26+M20+M16 -> 320.92
A36: 1. PT-FI generates its own electricity; as a result, there are no indirect energy entries in this table.
A37: 2. At our Rotterdam processing facility, we purchase renewable energy certificates for all electricity. Since 2020, at our Atlantic Copper smelter & refinery, we have purchased RECs for a portion of our electricity.

Sheet 2022 Direct Energy - Source
A1: FCX - ESG PERFORMANCE DATA
A2: 2022 DIRECT ENERGY CONSUMED BY SOURCE
A3: (terajoules) | C3: Coal/ Coke | D3: Diesel | E3: B5 Biodiesel | F3: B20 Biodiesel | G3: B30 Biodiesel | H3: Gasoline | I3: Natural Gas | J3: Propane/ LPG | K3: Aviation Fuel | L3: Used Oil | M3: Other
A4: Copper Mining | B4: North America
B5: Bagdad | C5: 0 | D5: 2115.4 | E5: 0 | F5: 0 | G5: 0 | H5: 31.5 | I5: 86.8 | J5: 1.1 | K5: 0 | L5: 0 | M5: 0
B6: Chino / Cobre | C6: 0 | D6: 953.6 | E6: 0 | F6: 0 | G6: 0 | H6: 26.8 | I6: 124.5 | J6: 3.4 | K6: 0 | L6: 0 | M6: 0
B7: Morenci | C7: 0 | D7: 7386.8 | E7: 0 | F7: 0 | G7: 0 | H7: 192.2 | I7: 715.2 | J7: 1.3 | K7: 0 | L7: 0 | M7: 0
B8: Safford / Lone Star | C8: 0 | D8: 2411.7 | E8: 0 | F8: 0 | G8: 0 | H8: 59.6 | I8: 0 | J8: 19.9 | K8: 0 | L8: 0 | M8: 0
B9: Sierrita | C9: 0 | D9: 1636.5 | E9: 0 | F9: 0 | G9: 0 | H9: 38.4 | I9: 168.7 | J9: 6.7 | K9: 0 | L9: 0 | M9: 0
B10: Tyrone | C10: 0 | D10: 530.1 | E10: 0 | F10: 0.9 | G10: 0 | H10: 16.4 | I10: 21.2 | J10: 2.5 | K10: 0 | L10: 0 | M10: 0
B11: South America
B12: Cerro Verde | C12: 0 | D12: 0 | E12: 8314.3 | F12: 0 | G12: 0 | H12: 25 | I12: 0 | J12: 0 | K12: 0 | L12: 0 | M12: 0
B13: El Abra1 | C13: 0 | D13: 1011.7 | E13: 0 | F13: 0 | G13: 0 | H13: 14.6 | I13: 0 | J13: 4.5 | K13: 0 | L13: 0 | M13: 39.1
B14: Indonesia
B15: PT-FI (Grasberg) | C15: 17602.2 | D15: 10406.2 | E15: 0 | F15: 0 | G15: 429.6 | H15: 31.4 | I15: 0 | J15: 0 | K15: 226.6 | L15: 158.1 | M15: 0
B16: Total Copper Mining | C16: =SUM(C5:C15) -> 17602.2 | D16: =SUM(D5:D15) -> 26452 | E16: 8314.3 | F16: 0.9 | G16: 429.6 | H16: 435.9 | I16: 1116.4 | J16: 39.4 | K16: 226.6 | L16: 158.1 | M16: 39.1
A17: Molybdenum Mining | B17: North America
B18: Climax | C18: 0 | D18: 567.2 | E18: 0 | F18: 0 | G18: 0 | H18: 10.5 | I18: 200.6 | J18: 1 | K18: 0 | L18: 0 | M18: 0
B19: Henderson | C19: 0 | D19: 13.7 | E19: 0 | F19: 0 | G19: 38.2 | H19: 4.1 | I19: 260.6 | J19: 1.9 | K19: 0 | L19: 0 | M19: 0
B20: Total Molybdenum Mining | C20: =SUM(C18:C19) -> 0 | D20: =SUM(D18:D19) -> 580.9 | E20: 0 | F20: 0 | G20: 38.2 | H20: 14.6 | I20: 461.2 | J20: 2.9 | K20: 0 | L20: 0 | M20: 0
A21: Smelting & Refining | B21: North America
B22: El Paso Refinery & Rod | C22: 0 | D22: 5.5 | E22: 0 | F22: 0 | G22: 0 | H22: 0.3 | I22: 2168.3 | J22: 9.5 | K22: 0 | L22: 0 | M22: 0
B23: Miami Smelter & Rod | C23: 0 | D23: 51.4 | E23: 0 | F23: 0 | G23: 0 | H23: 12 | I23: 1802.7 | J23: 2.7 | K23: 0 | L23: 0 | M23: 0
B24: Europe
B25: Atlantic Copper Smelter & Refinery | C25: 42 | D25: 174.1 | E25: 0 | F25: 0 | G25: 0 | H25: 0 | I25: 509.1 | J25: 0 | K25: 0 | L25: 0 | M25: 0
B26: Total Smelting & Refining | C26: =SUM(C22:C25) -> 42 | D26: 231 | E26: 0 | F26: 0 | G26: 0 | H26: 12.3 | I26: 4480.1 | J26: 12.2 | K26: 0 | L26: 0 | M26: 0
A27: Other | B27: Other
B28: Fort Madison Moly Special Products | C28: 0 | D28: 0.3 | E28: 0 | F28: 0 | G28: 0 | H28: 0.1 | I28: 390.5 | J28: 1.8 | K28: 0 | L28: 0 | M28: 0
B29: Rotterdam | C29: 0 | D29: 0.2 | E29: 0 | F29: 0 | G29: 0 | H29: 0 | I29: 153.2 | J29: 0 | K29: 0 | L29: 0 | M29: 0
B30: Stowmarket | C30: 0 | D30: 0.8 | E30: 0 | F30: 0 | G30: 0 | H30: 0 | I30: 0.5 | J30: 0 | K30: 0 | L30: 0 | M30: 0
B31: Total Other | C31: =SUM(C28:C30) -> 0 | D31: =SUM(D28:D30) -> 1.3 | E31: 0 | F31: 0 | G31: 0 | H31: 0.1 | I31: 544.2 | J31: 1.8 | K31: 0 | L31: 0 | M31: 0
A33: Total - FCX Global | C33: =C31+C26+C20+C16 -> 17644.2 | D33: 27265.2 | E33: 8314.3 | F33: 0.9 | G33: =G31+G26+G20+G16 -> 467.8 | H33: 462.9 | I33: 6601.9 | J33: 56.3 | K33: 226.6 | L33: 158.1 | M33: 39.1
A35: 1. El Abra has a regenerative downhill conveyor system that is 20km in length that generates electricity for use on site as it transports material for processing.

Sheet Water
A1: FCX - ESG PERFORMANCE DATA
A2: ENVIRONMENT
B3: 2018 | C3: 2019 | D3: 2020 | E3: 2021 | F3: 2022
A4: Water Utilization - FCX Global (thousand cubic meters)
A5: Groundwater | B5: 111722.6159 | C5: 99323.44165 | D5: 96749.452 | E5: 112828.26 | F5: 102636
A6: Surface Water | B6: 68177.04389 | C6: 60475.318 | D6: 49787.893 | E6: 56351.75052 | F6: 67182
A7: Sea Water | B7: 46843.61539 | C7: 48578.18 | D7: 49217.925 | E7: 43020.047 | F7: 34719.35
A8: Stormwater | B8: 52750.21512 | C8: 57153.05102 | D8: 41982.818 | E8: 53023.41169 | F8: 54475.21
A9: Third-party Sources | B9: 31126.65666 | C9: 37033.731 | D9: 23560.609 | E9: 31581.96539 | F9: 32669.37
A10: Total New Water Withdrawn1 | B10: 310620.1469 | C10: 302563.7217 | D10: 261298.697 | E10: 296805.4346 | F10: 291681.89
A11: Total Water Recycled/Reused | B11: 1377971.277 | C11: 1408513.265 | D11: 1231053.229 | E11: 1325183.961 | F11: 1526886.01
A12: Total Utilized Water (Withdrawn + Recycled/Reused) | B12: 1688591.424 | C12: 1711076.987 | D12: 1492351.926 | E12: 1621989.395 | F12: 1818567.9
A13: Total Water Discharged3 | B13: 106182.5232 | C13: 95884.564 | D13: 101962.798 | E13: 106126.9395 | F13: 97346.5
A14: Total Water Consumption | B14: 192663.42 | C14: 192792.34 | D14: 166752.21 | E14: 184713.77 | F14: 197982.58
A16: Change in Water Storage Volume | B16: =B10-B13-B14 -> 11774.20373 | C16: =C10-C13-C14 -> 13886.81767 | D16: =D10-D13-D14 -> -7416.311 | E16: =E10-E13-E14 -> 5964.72515 | F16: =F10-F13-F14 -> -3647.19
A18: Water Recycle/Reuse Rate2 (%) | B18: 0.8160477766 | C18: 0.8231735194 | D18: 0.8249081249 | E18: 0.8168 | F18: 0.8396
A19: Water Use Efficiency4 (%) | B19: 0.8708060707 | C19: 0.8720405354 | D19: 0.8854019384 | E19: 0.874 | F19: 0.8871
A21: 1. New water withdrawal includes new water that is received or extracted by operation and used for the first time. New water withdrawals include high quality freshwater and lower quality water and are categorized by type: groundwater, surface water, stormwater, sea water or third-party water. Water withdrawals exclude water diverted away from operational areas without use.
A23: 2. Water recycle/reuse rate = (total water recycled + reused) / total water utilized.
A24: 3. Water discharged is water removed from an operation and returned to the environment or a third party after meeting all required treatment and discharge standards.
A25: 4. Water use efficiency rate = total water recycled/reused / (total water utilization – discharged water).
A27: 2022 Water Quality (thousand cubic meters) | B27: High Quality1 | C27: Low Quality1 | D27: Total
A28: Water Withdrawals
A29: Groundwater | B29: 87126.14 | C29: 15509.86 | D29: 102636
A30: Surface Water | B30: 67182 | C30: 0 | D30: 67182
A31: Sea Water | B31: 0 | C31: 34719.35 | D31: 34719.35
A32: Stormwater | B32: 50862.89 | C32: 3612.32 | D32: 54475.21
A33: Third-party Sources | B33: 32206.13 | C33: 463.24 | D33: 32669.37
A34: Total New Water Withdrawn2 | B34: =SUM(B29:B33) -> 237377.16 | C34: =SUM(C29:C33) -> 54304.77 | D34: =SUM(D29:D33) -> 291681.93
A36: Water Discharged Off-site3
A37: To Surface | B37: 12207.29 | C37: 19.85 | D37: 12227.14
A38: To Sea, Ocean, or Estuary4 | B38: 14181.54 | C38: 70926.75 | D38: 85108.29
A39: To Third-party | B39: 0 | C39: 11.07 | D39: 11.07
A40: Total Water Discharged Off-site | B40: 26388.83 | C40: 70957.67 | D40: 97346.5
A42: Total Water Consumption5
A43: Total Water Consumption | D43: 197982.5715
A45: Change in Water Storage Volume | D45: =D34-D40-D43 -> -3647.141477
A47: Total Water Recycled/Reused | D47: 1526886.01
A48: Total Utilized Water (Withdrawan + Recycled/Reused) | D48: 1818567.9
A49: Water Recycle/Reuse Rate6 (%) | D49: =D47/D48 -> 0.8396090187
A50: Water Use Efficiency Rate7 (%) | D50: =D47/(D48-D40) -> 0.8870944842
A53: 1. Per ICMM guidance, we differentiate the quality of water withdrawn and discharged into high quality and low quality. ICMM high quality is equivalent to freshwater as defined by the International Financial Reporting Standards Foundation’s SASB Standards. See table below for more information.
A56: 2. New water withdrawal includes new water that is received or extracted by operation and used for the first time. This includes high quality freshwater and lower quality water and are categorized by type: groundwater, surface water, stormwater, sea water or third-party water. Water withdrawals exclude water diverted away from operational areas without use.
A59: 3. Approximately 36% of water quantities discharged were associated with our Atlantic Copper Smelter where estuarine water is used for cooling and then returned to its source, 51% associated with PT-FI’s controlled riverine tailings management system, and the remaining 12% is associated with our Climax and Henderson mines in Colorado.
A62: 4. Per ICMM guidelines, low quality discharged water to sea, ocean, or estuary is categorized as such due primarily to (a) the estuarine source water used at Atlantic Copper, which is already low quality due to salinity, and (b) the discharged water associated with the function of PT-FI’s controlled riverine Tailings system, which contains alkaline pH.
A65: 5. Water consumption = Total water withdrawn - discharged water - change in water storage volume.
A66: 6. Water recycle / reuse rate = total water reused + recycled / total water utilized.
A67: 7. Water use efficiency rate = total water reused + recycled / (total water utilization – discharged water).
A69: ICMM WATER QUALITY CATEGORIES
A70: High Quality (Freshwater1) | B70: Category 1 High-quality water that may require minimal and inexpensive treatment to raise quality to appropriate drinking water standard (e.g., near potable water quality).
B71: Category 2 Medium-quality water that would require a moderate level of treatment to meet appropriate drinking water standard (e.g., agricultural use).
A72: Low Quality | B72: Category 3 Low-quality water that would require significant treatment to raise quality to appropriate drinking water standards (e.g., industrial and wastewater).
A73: 1. High quality water, as defined by ICMM, is equivalent to Fresh Water as defined by International Financial Reporting Standards Foundation’s SASB Standards.
A77: WATER SUPPLY RISKS
A78: OPERATION | B78: CLIMATE CONDITIONS1 | C78: WATER SOURCES2 | D78: WATER SUPPLY RISKS
D79: WATER STRESS3 | E79: EXCESS WATER4 | F79: ACCESS CHALLENGES5
A80: Bagdad | B80: Arid; Semi-desert | C80: Groundwater | D80: Low-Med
A81: Arizona | C81: Surface water
C82: Stormwater
C83: Third Party6
A84: Cerro Verde | B84: Arid; Desert | C84: Groundwater | D84: High | F84: X
A85: Arequipa, Peru | C85: Surface water
C86: Stormwater
C87: Third Party6
A88: Chino | B88: Arid; Semi-desert | C88: Groundwater | D88: Low-Med
A89: New Mexico | C89: Stormwater
C90: Third Party6
A92: Climax | B92: Snow; Fully humid | C92: Groundwater | D92: Low-Med
A93: Colorado | C93: Surface water
C94: Stormwater
A96: El Abra | B96: Arid; Desert | C96: Groundwater | D96: Extremely High | F96: X
A97: Calama, Chile | C97: Stormwater
A100: Henderson | B100: Snow; Fully humid | C100: Groundwater | D100: Med-High | E100: X
A101: Colorado | C101: Surface water
C102: Stormwater
A104: Miami | B104: Arid; Semi-desert | C104: Groundwater | D104: Med-High | E104: X | F104: X
A105: Arizona | C105: Surface water
C106: Stormwater
C107: Third Party6
A108: Morenci | B108: Arid; Semi-desert | C108: Groundwater | D108: Med-High | F108: X
A109: Arizona | C109: Surface water
C110: Stormwater
C111: Third Party6
A112: PT-FI | B112: Tropical; Fully humid | C112: Groundwater | D112: Low | E112: X
A113: Papua, Indonesia | C113: Surface water
C114: Stormwater
A116: Safford | B116: Arid; Semi-desert | C116: Groundwater | D116: Med-High | F116: X
A117: Arizona | C117: Stormwater
A120: Sierrita | B120: Arid; Semi-desert | C120: Groundwater | D120: Med-High | F120: X
A121: Arizona | C121: Stormwater
A124: Tyrone | B124: Arid; Semi-desert | C124: Groundwater | D124: Low-Med
A125: New Mexico | C125: Stormwater
C126: Stormwater
A129: 1. Climate conditions based on the Köppen-Geiger climate classification terminology.
A130: 2. Water sources can include groundwater, surface water, stormwater, sea water, or third-party sources (including effluent).
A131: 3. Baseline water stress ratings are defined by a combination of the World Resources Institute’s (WRI) Aqueduct tool and its associated descriptors for baseline water stress, as well as our own qualitative assessments and local knowledge of the site-specific circumstances of withdrawal at each operation. The WRI Aqueduct tool measures baseline water stress as the ratio of total water withdrawals (including domestic, industrial, irrigation, and livestock consumptive and non-consumptive uses) to available renewable surface (including the impact of upstream consumptive water users and large dams on downstream water availability) and groundwater supplies. WRI classifications are as follows: low (<10%); low to medium (10–20%); medium to high (20–40%); high (40–80%); extremely high (>80%); arid and low water use; and no data.
A136: 4. Large-scale water treatment plants have abated excess water risk at sites which would otherwise be considered at-risk.
A137: 5. Access challenges can include legal challenges or potential changes in law or regulations that could impact our access to certain water supplies.
A138: 6. Third-party water sources are primarily sourced from wastewater effluent.

Sheet Water - by region
A1: FCX - ESG PERFORMANCE DATA
A2: ENVIRONMENT
D3: 2018 | E3: 2019 | F3: 2020 | G3: 2021 | H3: 2022
A4: Water Utilization by Region (thousand cubic meters)
A5: COPPER MINING | B5: North America | C5: Groundwater | D5: 67563.72 | E5: 67589.44 | F5: 65921.58 | G5: 71089.42 | H5: 60754
C6: Surface Water | D6: 22768.98 | E6: 20794.66 | F6: 16244.97 | G6: 18857.06 | H6: 27240
C7: Sea Water | D7: 0 | E7: 0 | F7: 0 | G7: 0 | H7: 0
C8: Stormwater | D8: 12252.1 | E8: 16217.61 | F8: 8945.45 | G8: 18574.95 | H8: 20980.45
C9: Third-party Sources | D9: 1557.37 | E9: 8472.45 | F9: 3540.07 | G9: 2053.58 | H9: 2377.94
C10: Total New Water Withdrawn1 | D10: 104142.19 | E10: 113074.14 | F10: 94652.04 | G10: 110574.98 | H10: 111352.22
C11: Total Water Recycled/Reused | D11: 654547.25 | E11: 685170.41 | F11: 613440.27 | G11: 574320.59 | H11: 711682.29
C12: Total Utilized Water (Withdrawn + Recycled/Reused) | D12: 758689.45 | E12: 798244.53 | F12: 708092.3 | G12: 684895.57 | H12: 823034.53
C13: Total Water Discharged3 | D13: 0 | E13: 0 | F13: 0 | G13: 190.51 | H13: 0
C14: Total Water Consumption | D14: 105994.32 | E14: 113946.24 | F14: 100035.24 | G14: 104279.12 | H14: 112739.52
C15: Change in Water Storage Volume | D15: -1852.12 | E15: -872.08 | F15: -5383.21 | G15: 6105.36 | H15: -1387.28
C16: Water Recycle/Reuse Rate2 (%) | D16: 0.862734087 | E16: 0.8583465144 | F16: 0.8663281185 | G16: 0.8385520584 | H16: 0.8647052633
C17: Water Use Efficiency4 (%) | D17: 0.862734087 | E17: 0.8583465144 | F17: 0.8663281185 | G17: 0.8387853742 | H17: 0.8647052633
B18: South America | C18: Groundwater | D18: 6367.26 | E18: 6901.96 | F18: 5944.6 | G18: 6065.64 | H18: 6588.92
C19: Surface Water | D19: 34236.98 | E19: 26482.56 | F19: 24360.18 | G19: 29278.55 | H19: 31202.48
C20: Sea Water | D20: 0 | E20: 0 | F20: 0 | G20: 0 | H20: 0
C21: Stormwater | D21: 432.45 | E21: 779.02 | F21: 1496.16 | G21: 207.83 | H21: 577.01
C22: Third-party Sources | D22: 27114.59 | E22: 26129.41 | F22: 17716.82 | G22: 27241.93 | H22: 28333.03
C23: Total New Water Withdrawn1 | D23: 68151.28 | E23: 60292.94 | F23: 49517.74 | G23: 62793.96 | H23: 66701.42
C24: Total Water Recycled/Reused | D24: 543855.02 | E24: 575890.54 | F24: 495862.89 | G24: 595595.99 | H24: 644344.34
C25: Total Utilized Water (Withdrawn + Recycled/Reused) | D25: 612006.28 | E25: 636183.48 | F25: 545380.64 | G25: 658389.94 | H25: 711045.77
C26: Total Water Discharged3 | D26: 0 | E26: 0 | F26: 0 | G26: 0 | H26: 0
C27: Total Water Consumption | D27: 67863.14 | E27: 59800.92 | F27: 48879.26 | G27: 62540.24 | H27: 67321.01
C28: Change in Water Storage Volume | D28: 288.14 | E28: 492.02 | F28: 638.5 | G28: 253.71 | H28: -619.58
C29: Water Recycle/Reuse Rate2 (%) | D29: 0.8886428747 | E29: 0.905227121 | F29: 0.9092051562 | G29: 0.9046249856 | H29: 0.9061924945
C30: Water Use Efficiency4 (%) | D30: 0.8886428747 | E30: 0.905227121 | F30: 0.9092051562 | G30: 0.9046249856 | H30: 0.9061924945
B31: Indonesia | C31: Groundwater | D31: 33949.28 | E31: 21123.18 | F31: 21035.99 | G31: 31984.4 | H31: 31525.65
C32: Surface Water | D32: 6358.64 | E32: 6709.79 | F32: 4734.45 | G32: 5959.98 | H32: 6528.66
C33: Sea Water | D33: 0 | E33: 0 | F33: 0 | G33: 0 | H33: 0
C34: Stormwater | D34: 22798.91 | E34: 17082.48 | F34: 16348.12 | G34: 16830.55 | H34: 16133.75
C35: Third-party Sources | D35: 0 | E35: 0 | F35: 0 | G35: 0 | H35: 0
C36: Total New Water Withdrawn1 | D36: 63106.83 | E36: 44915.45 | F36: 42118.56 | G36: 54774.93 | H36: 54188.06
C37: Total Water Recycled/Reused | D37: 113049.12 | E37: 77985.64 | F37: 64301.79 | G37: 101534.31 | H37: 118650.56
C38: Total Utilized Water (Withdrawn + Recycled/Reused) | D38: 176155.94 | E38: 122901.08 | F38: 106420.34 | G38: 156309.24 | H38: 172838.62
C39: Total Water Discharged3 | D39: 42323.08 | E39: 28089.22 | F39: 38721.41 | G39: 51022.27 | H39: 49966.11
C40: Total Water Consumption | D40: 3822.43 | E40: 4259.48 | F40: 3338.6 | G40: 3751.04 | H40: 4215.5
C41: Change in Water Storage Volume | D41: 16961.33 | E41: 12566.75 | F41: 58.54 | G41: 1.61 | H41: 6.45
C42: Water Recycle/Reuse Rate2 (%) | D42: 0.6418 | E42: 0.6345 | F42: 0.6042 | G42: 64.96 | H42: 0.6865
C43: Water Use Efficiency4 (%) | D43: 0.8447 | E43: 0.8225 | F43: 0.9498 | G43: 96.44 | H43: 0.9656
B44: TOTAL Copper Mining | C44: Groundwater | D44: 107880.26 | E44: 95614.58 | F44: 92902.17 | G44: 109139.46 | H44: 98869
C45: Surface Water | D45: 63364.6 | E45: 53987.01 | F45: 45339.6 | G45: 54095.59 | H45: 64971
C46: Sea Water | D46: 0 | E46: 0 | F46: 0 | G46: 0 | H46: 0
C47: Stormwater | D47: 35483.46 | E47: 34079.11 | F47: 26789.73 | G47: 35613.33 | H47: 37691.21
C48: Third-party Sources | D48: 28671.96 | E48: 34601.86 | F48: 21256.89 | G48: 29295.51 | H48: 30710.97
C49: Total New Water Withdrawn1 | D49: 235400.3 | E49: 218282.53 | F49: 186288.34 | G49: 228143.87 | H49: 232241.7
C50: Total Water Recycled/Reused | D50: 1311451.39 | E50: 1339046.59 | F50: 1173604.95 | G50: 1271450.89 | H50: 1474677.19
C51: Total Utilized Water (Withdrawn + Recycled/Reused) | D51: 1546851.67 | E51: 1557329.09 | F51: 1359893.28 | G51: 1499594.75 | H51: 1706918.92
C52: Total Water Discharged3 | D52: 42323.08 | E52: 28089.22 | F52: 38721.41 | G52: 51212.78 | H52: 49966.11
C53: Total Water Consumption | D53: 177679.89 | E53: 178006.64 | F53: 152253.1 | G53: 170570.4 | H53: 184276.03
C54: Change in Water Storage Volume | D54: 15397.35 | E54: 12186.69 | F54: -4686.17 | G54: 6360.68 | H54: -2000.41
C55: Water Recycle/Reuse Rate2 (%) | D55: 0.847819746 | E55: 0.8598353415 | F55: 0.8630125373 | G55: 0.847862991 | H55: 0.8639409715
C56: Water Use Efficiency4 (%) | D56: 0.8716693047 | E56: 0.875628877 | F56: 0.8883060385 | G56: 0.8778422518 | H56: 0.8899934754
A57: MOLYBDENUM MINING | B57: North America | C57: Groundwater | D57: 1315.08 | E57: 1461.59 | F57: 1256.07 | G57: 1150.15 | H57: 1255.75
C58: Surface Water | D58: 782.4 | E58: 2663.14 | F58: 2469.9 | G58: 1212.91 | H58: 1269.65
C59: Sea Water | D59: 0 | E59: 0 | F59: 0 | G59: 0 | H59: 0
C60: Stormwater | D60: 14648.52 | E60: 19494.39 | F60: 13990.03 | G60: 13174.08 | H60: 14575.59
C61: Third-party Sources | D61: 0 | E61: 0 | F61: 0 | G61: 0 | H61: 0
C62: Total New Water Withdrawn1 | D62: 16746 | E62: 23619.12 | F62: 17716 | G62: 15537.14 | H62: 17100.99
C63: Total Water Recycled/Reused | D63: 23044.11 | E63: 26127.94 | F63: 20458.4 | G63: 20114.97 | H63: 20807.86
C64: Total Utilized Water (Withdrawn + Recycled/Reused) | D64: 39790.11 | E64: 49747.06 | F64: 38174.41 | G64: 35652.1 | H64: 37908.86
C65: Total Water Discharged3 | D65: 12801.17 | E65: 15104.67 | F65: 11937.74 | G65: 10954.04 | H65: 11834.74
C66: Total Water Consumption | D66: 5753.96 | E66: 5746.86 | F66: 5025.42 | G66: 5209.83 | H66: 5726.61
C67: Change in Water Storage Volume | D67: -1809.12 | E67: 2767.58 | F67: 752.85 | G67: -626.74 | H67: -460.37
C68: Water Recycle/Reuse Rate2 (%) | D68: 0.579141651 | E68: 0.5252157615 | F68: 0.5359192192 | G68: 0.5642015477 | H68: 0.5488917367
C69: Water Use Efficiency4 (%) | D69: 0.8538353118 | E69: 0.7542187476 | F69: 0.7797635904 | G69: 0.8144352228 | H69: 0.798027316
A70: SMELTING & REFINING | B70: North America | C70: Groundwater | D70: 2019.48 | E70: 1855.07 | F70: 2067.42 | G70: 2039.69 | H70: 2042.87
C71: Surface Water | D71: 901.88 | E71: 795.43 | F71: 998.61 | G71: 1043.26 | H71: 941.01
C72: Sea Water | D72: 0 | E72: 0 | F72: 0 | G72: 0 | H72: 0
C73: Stormwater | D73: 2327.49 | E73: 3321.67 | F73: 1033.93 | G73: 4076.8 | H73: 2052.95
C74: Third-party Sources | D74: 122.1 | E74: 86.84 | F74: 198.11 | G74: 258 | H74: 229.08
C75: Total New Water Withdrawn1 | D75: 5370.93 | E75: 6059.01 | F75: 4298.06 | G75: 7417.75 | H75: 5265.92
C76: Total Water Recycled/Reused | D76: 27131.66 | E76: 26868.06 | F76: 29384.73 | G76: 30785.03 | H76: 29188.9
C77: Total Utilized Water (Withdrawn + Recycled/Reused) | D77: 32502.59 | E77: 32927.06 | F77: 33682.79 | G77: 38202.77 | H77: 34454.81
C78: Total Water Discharged3 | D78: 39.44 | E78: 0.67 | F78: 0 | G78: 0 | H78: 0
C79: Total Water Consumption | D79: 7437.02 | E79: 7132.29 | F79: 7726.98 | G79: 7314.76 | H79: 6634.71
C80: Change in Water Storage Volume | D80: -2105.53 | E80: -1073.95 | F80: -3428.92 | G80: 102.99 | H80: -1368.79
C81: Water Recycle/Reuse Rate2 (%) | D81: 0.8347537842 | E81: 0.8159872154 | F81: 0.8723959624 | G81: 0.8058324043 | H81: 0.8471647355
C82: Water Use Efficiency4 (%) | D82: 0.83576794 | E82: 0.8160038194 | F82: 0.8723959624 | G82: 0.8058324043 | H82: 0.8471647355
B83: Europe | C83: Groundwater | D83: 0 | E83: 0 | F83: 0 | G83: 0 | H83: 0
C84: Surface Water | D84: 3128.16 | E84: 3029.74 | F84: 979.79 | G84: 0 | H84: 0
C85: Sea Water | D85: 46843.62 | E85: 48578.18 | F85: 49217.93 | G85: 43020.05 | H85: 34719.35
C86: Stormwater | D86: 76.26 | E86: 79.02 | F86: 76.85 | G86: 42.05 | H86: 47.17
C87: Third-party Sources | D87: 2184.11 | E87: 2200.21 | F87: 1986.25 | G87: 1927.66 | H87: 1607.5
C88: Total New Water Withdrawn1 | D88: 52232.15 | E88: 53887.15 | F88: 52260.81 | G88: 44989.76 | H88: 36374.02
C89: Total Water Recycled/Reused | D89: 16327.79 | E89: 16463.73 | F89: 7597.02 | G89: 2820.45 | H89: 2201.97
C90: Total Utilized Water (Withdrawn + Recycled/Reused) | D90: 68559.93 | E90: 70350.88 | F90: 59857.83 | G90: 47810.21 | H90: 38575.99
C91: Total Water Discharged3 | D91: 50505.7 | E91: 52325.25 | F91: 50702.38 | G91: 43478.44 | H91: 35151.36
C92: Total Water Consumption | D92: 1545.55 | E92: 1667.78 | F92: 1533.39 | G92: 1511.31 | H92: 1222.66
C93: Change in Water Storage Volume | D93: 180.9 | E93: -105.89 | F93: 25.03 | G93: 0 | H93: 0
C94: Water Recycle/Reuse Rate2 (%) | D94: 0.2381535395 | E94: 0.2340230854 | F94: 0.1269177316 | G94: 0.0589926294 | H94: 0.05708136071
C95: Water Use Efficiency4 (%) | D95: 0.9043747643 | E95: 0.9133511561 | F95: 0.8297811686 | G95: 0.6511079766 | H95: 0.6429804096
B96: TOTAL Smelting & Refining | C96: Groundwater | D96: 2019.48 | E96: 1855.07 | F96: 2067.42 | G96: 2039.69 | H96: 2042.87
C97: Surface Water | D97: 4030.04 | E97: 3825.17 | F97: 1978.4 | G97: 1043.26 | H97: 941.01
C98: Sea Water | D98: 46843.62 | E98: 48578.18 | F98: 49217.93 | G98: 43020.05 | H98: 34719.35
C99: Stormwater | D99: 2403.75 | E99: 3400.69 | F99: 1110.78 | G99: 4118.85 | H99: 2100.12
C100: Third-party Sources | D100: 2306.21 | E100: 2287.05 | F100: 2184.36 | G100: 2185.66 | H100: 1836.58
C101: Total New Water Withdrawn1 | D101: 57603.08 | E101: 59946.16 | F101: 56558.87 | G101: 52407.51 | H101: 41639.94
C102: Total Water Recycled/Reused | D102: 43459.45 | E102: 43331.79 | F102: 36981.75 | G102: 33605.48 | H102: 31390.87
C103: Total Utilized Water (Withdrawn + Recycled/Reused) | D103: 101062.52 | E103: 103277.94 | F103: 93540.62 | G103: 86012.98 | H103: 73030.8
C104: Total Water Discharged3 | D104: 50545.14 | E104: 52325.92 | F104: 50702.38 | G104: 43478.44 | H104: 35151.36
C105: Total Water Consumption | D105: 8982.57 | E105: 8800.07 | F105: 9260.37 | G105: 8826.07 | H105: 7857.37
C106: Change in Water Storage Volume | D106: -1924.63 | E106: -1179.84 | F106: -3403.89 | G106: 102.99 | H106: -1368.79
C107: Water Recycle/Reuse Rate2 (%) | D107: 0.4300253942 | E107: 0.419564817 | F107: 0.3953549805 | G107: 0.3907024265 | H107: 0.4298305646
C108: Water Use Efficiency4 (%) | D108: 0.8602870933 | E108: 0.8504430246 | F108: 0.8632882677 | G108: 0.7900750778 | H108: 0.828704701
A109: OTHER | C109: Groundwater | D109: 507.79 | E109: 392.22 | F109: 523.81 | G109: 498.97 | H109: 469.14
C110: Surface Water | D110: 0 | E110: 0 | F110: 0 | G110: 0 | H110: 0
C111: Sea Water | D111: 0 | E111: 0 | F111: 0 | G111: 0 | H111: 0
C112: Stormwater | D112: 214.49 | E112: 178.88 | F112: 92.29 | G112: 117.15 | H112: 108.28
C113: Third-party Sources | D113: 148.49 | E113: 144.84 | F113: 119.38 | G113: 100.8 | H113: 121.83
C114: Total New Water Withdrawn1 | D114: 870.77 | E114: 715.94 | F114: 735.49 | G114: 716.92 | H114: 699.25
C115: Total Water Recycled/Reused | D115: 16.35 | E115: 6.95 | F115: 8.12 | G115: 12.64 | H115: 10.09
C116: Total Utilized Water (Withdrawn + Recycled/Reused) | D116: 887.12 | E116: 722.89 | F116: 743.61 | G116: 729.57 | H116: 709.34
C117: Total Water Discharged3 | D117: 513.14 | E117: 364.76 | F117: 601.27 | G117: 481.66 | H117: 394.29
C118: Total Water Consumption | D118: 247 | E118: 238.77 | F118: 213.32 | G118: 107.47 | H118: 122.57
C119: Change in Water Storage Volume | D119: 110.64 | E119: 112.41 | F119: -79.11 | G119: 127.78 | H119: 182.41
C120: Water Recycle/Reuse Rate2 (%) | D120: 0.01843042655 | E120: 0.009614187497 | F120: 0.01091970253 | G120: 0.01732527379 | H120: 0.01422449037
C121: Water Use Efficiency4 (%) | D121: 0.04371891545 | E121: 0.01940636082 | F121: 0.05704650836 | G121: 0.05098624501 | H121: 0.03202666243
A122: FCX Global | C122: Groundwater | D122: 111722.6159 | E122: 99323.44165 | F122: 96749.452 | G122: 112828.26 | H122: 102636
C123: Surface Water | D123: 68177.04389 | E123: 60475.318 | F123: 49787.893 | G123: 56351.75052 | H123: 67182
C124: Sea Water | D124: 46843.61539 | E124: 48578.18 | F124: 49217.925 | G124: 43020.047 | H124: 34719.35
C125: Stormwater | D125: 52750.21512 | E125: 57153.05102 | F125: 41982.818 | G125: 53023.41169 | H125: 54475.21
C126: Third-party Sources | D126: 31126.65666 | E126: 37033.731 | F126: 23560.609 | G126: 31581.96539 | H126: 32669.37
C127: Total New Water Withdrawn1 | D127: 310620.1469 | E127: 302563.7217 | F127: 261298.697 | G127: 296805.4346 | H127: 291681.89
C128: Total Water Recycled/Reused | D128: 1377971.277 | E128: 1408513.265 | F128: 1231053.229 | G128: 1325183.961 | H128: 1526886.01
C129: Total Utilized Water (Withdrawn + Recycled/Reused) | D129: 1688591.424 | E129: 1711076.987 | F129: 1492351.926 | G129: 1621989.395 | H129: 1818567.9
C130: Total Water Discharged3 | D130: 106182.5232 | E130: 95884.564 | F130: 101962.798 | G130: 106126.9395 | H130: 97346.5
C131: Total Water Consumption | D131: =D53+D66+D105+D118 -> 192663.42 | E131: 192792.34 | F131: 166752.21 | G131: 184713.77 | H131: =H53+H66+H105+H118 -> 197982.58
C132: Change in Water Storage Volume | D132: =D127-D130-D131 -> 11774.20373 | E132: 13886.81767 | F132: -7416.311 | G132: 5964.72515 | H132: =H127-H130-H131 -> -3647.19
C133: Water Recycle/Reuse Rate2 (%) | D133: 0.8160477766 | E133: 0.8231735194 | F133: 0.8249081249 | G133: 0.8168 | H133: 0.8396
C134: Water Use Efficiency4 (%) | D134: 0.8708060707 | E134: 0.8720405354 | F134: 0.8854019384 | G134: 0.874 | H134: 0.8871
A136: 1. New water withdrawal includes new water that is received or extracted by operation and used for the first time. New water withdrawals include high quality freshwater and lower quality water and are categorized by type: groundwater, surface water, stormwater, sea water or third-party water. Water withdrawals exclude water diverted away from operational areas without use.
A138: 2. Water recycle/reuse rate = (total water recycled + reused) / total water utilized.
A139: 3. Water discharged is water removed from an operation and returned to the environment or a third party after meeting all required treatment and discharge standards.
A140: 4. Water use efficiency rate = total water recycled + reused / (total water utilization – discharged water).

Sheet Mining.Mineral Processing Waste
A1: FCX - ESG PERFORMANCE DATA
A2: ENVIRONMENT
B3: 2018 | C3: 2019 | D3: 2020 | E3: 2021 | F3: 2022
A4: Mining & Mineral Processing Waste (million metric tons)
A5: Tailings | B5: 324 | C5: 309 | D5: 259 | E5: 294.9278033 | F5: 330.5839783
A6: Overburden and Waste Rock | B6: 371 | C6: 445 | D6: 349 | E6: 364.6975407 | F6: 414.0396521
A7: Slags | B7: 0.5873 | C7: 0.532 | D7: 0.6295 | E7: 0.5822626 | F7: 0.683398

Sheet Non-Mineral Waste.Recycled
A1: FCX - ESG PERFORMANCE DATA
A2: ENVIRONMENT
B3: 2018 | C3: 2019 | D3: 2020 | E3: 2021 | F3: 2022
A4: Non-Mineral Waste & Recyclable Material (thousand metric tons)
A5: Non-Hazardous
A6: Recycled | B6: 74.58588 | C6: 92.08583924 | D6: 61.307735 | E6: 118.29687 | F6: 126.52
A7: Disposed - Landfill | B7: 58.9 | C7: 77.7 | D7: 52.7 | E7: 59.80718 | F7: 62.68
A8: Disposed - Other | B8: 4.3 | C8: 4 | D8: 16.1 | E8: 23.06158 | F8: 25.14
A9: Disposed On-site | B9: 41.9 | C9: 61.4 | D9: 25 | E9: 30.9213 | F9: 27.42
A10: Total Non-Hazardous Waste and Recyclable Material | B10: =B6+B7+B8+B9 -> 179.68588 | C10: =C6+C7+C8+C9 -> 235.1858392 | D10: =D6+D7+D8+D9 -> 155.107735 | E10: =E6+E7+E8+E9 -> 232.08693 | F10: =F6+F7+F8+F9 -> 241.76
A11: Hazardous
A12: Recycled | B12: 48.083181 | C12: 51.412274 | D12: 52.6756848 | E12: 7.06241 | F12: 7.37
A13: Disposed - Landfill | B13: 27.3 | C13: 26.6 | D13: 4 | E13: 4.4901 | F13: 6.7
A14: Stored On-site | B14: 0 | C14: 0 | D14: 0 | E14: 0 | F14: 0
A15: Treated | B15: 22.6 | C15: 25.7 | D15: 17.5 | E15: 17.86592 | F15: 18.51
A16: Total Hazardous Waste and Recyclable Material | B16: =B12+B13+B14+B15 -> 97.983181 | C16: =C12+C13+C14+C15 -> 103.712274 | D16: =D12+D13+D14+D15 -> 74.1756848 | E16: =E12+E13+E14+E15 -> 29.41843 | F16: =F12+F13+F14+F15 -> 32.58
A18: Total Non-Mineral Waste Generated | B18: =B16+B10 -> 277.669061 | C18: =C16+C10 -> 338.8981132 | D18: =D16+D10 -> 229.2834198 | E18: =E16+E10 -> 261.50536 | F18: =F16+F10 -> 274.34
A19: % Recycled | B19: =(B6+B12)/B18 -> 0.4417815242 | C19: =(C6+C12)/C18 -> 0.4234255301 | D19: =(D6+D12)/D18 -> 0.4971289241 | E19: =(E6+E12)/E18 -> 0.4793755661 | F19: =(F6+F12)/F18 -> 0.488044033

Sheet Biodiversity and Land
A1: FCX - ESG PERFORMANCE DATA
A2: ENVIRONMENT
B3: 2018 | C3: 2019 | D3: 2020 | E3: 2021 | F3: 2022
A4: Land (in hectares)
A5: New land disturbed during the year | B5: 971.36 | C5: 1465.14 | D5: 586.56 | E5: 577.7 | F5: 976.17
A6: Land rehabilitated during the year1 | B6: 80.2 | C6: 40.5 | D6: 35 | E6: 43 | F6: 102.84
A7: Total land disturbed to be rehabilitated1 | B7: 60963.66 | C7: 62388.3 | D7: 62912.79 | E7: 63444.42 | F7: 64317.75
A8: Total area owned, leased or managed including lands not used for production or extractive purposes | B8: 547853 | C8: 548194 | D8: 544898 | E8: 547526 | F8: 547764
A10: 1. Amounts have been adjusted based on updated land survey data.
A13: Biodiversity
A14: Number of sites adjacent to globally or nationally important biodiversity areas | F14: 1
A15: Number of sites adjacent to globally or nationally important biodiversity areas with biodiversity management plan in place | F15: 1
A16: Note: PT-FI’s operations are adjacent to Lorentz National Park, however, we have not and will not conduct any mining or exploration activities in Lorentz National Park, which is a UNESCO World Heritage Site. PT-FI is in the process of fully implementing a biodiversity action plan.

Sheet Tailings Impoundments
A1: FCX - ESG PERFORMANCE DATA
A2: ENVIRONMENT
B3: 2018 | C3: 2019 | D3: 2020 | E3: 2021 | F3: 2022
A4: Number of Tailings Impoundments1
A5: Active2 | B5: 19 | C5: 18 | D5: 17 | E5: 16 | F5: 15
A6: Inactive or Closed3 | B6: 55 | C6: 58 | D6: 56 | E6: 52 | F6: 48
A7: Safely Closed4 | B7: 0 | C7: 0 | D7: 0 | E7: 5 | F7: 9
A8: Total Tailings Impoundments | B8: =B5+B6+B7 -> 74 | C8: 76 | D8: 73 | E8: =E5+E6+E7 -> 73 | F8: =F5+F6+F7 -> 72
A10: 1. Tailings impoundment counts include non-operating sites and are reviewed at least annually and updated according to construction of new facilities, changes in operating conditions, closure, business transactions, and legal reviews. FCX provides a full disclosure of tailings facilities, location, status, construction type and hazard categorization available at fcx.com/sustainability/environment/tailings-americas_documents.
A13: 2. In 2022, the status of one Tailings Storage Facility (TSF) at Morenci was changed to inactive.
A14: 3. In 2022, one TSF at Morenci was fully integrated into another TSF, and therefore, the total tailings impoundments count reduced.
A15: 4. "Safely closed" is defined by the Tailings Standard and requires confirmation by an external independent reviewer and an internal Accountable Executive. While many of our inactive/closed facilities have not yet gone through the specific review process to confirm the "safely closed" designation, we consistently apply our tailings management system to all facilities to support their safe management.

Sheet Environmental Compliance
A1: FCX - ESG PERFORMANCE DATA
A2: ENVIRONMENT
B3: 2018 | C3: 2019 | D3: 2020 | E3: 2021 | F3: 2022
A4: Environmental Compliance Indicators
A5: Reportable spills or releases of hazardous or toxic chemicals1,2 | B5: 17 | C5: 33 | D5: 19 | E5: 20 | F5: 16
A6: NOVs related to permit exceedances, spills, releases or other compliance matters3 | B6: 10 | C6: 5 | D6: 6 | E6: 9 | F6: 12
A7: # of Significant Environmental Events4 | B7: 1 | C7: 0 | D7: 0 | E7: 0 | F7: 1
A8: Environmental penalties5 | B8: 0 | C8: 124682 | D8: 67100 | E8: 18951 | F8: 24301
A10: 1. Reportable spills excludes spills at PT-FI associated with pipeline sabotage. Due to increased security efforts, the number of sabotage-related spills reported at PT-FI decreased from 68 in 2018, to 16 in 2019, to 8 in 2020, to 5 in 2021. There were 8 sabotage related-spills in 2022.
A12: 2. In 2019, there were multiple small (75 kg or less) but reportable events associated with a malfunctioning catalytic oxidizer at our Rotterdam molybdenum processing facility.
A13: 3. NOV is Notice of Violation. When NOVs are rescinded based on the legal appeals process, prior year data are updated.
A14: 4. Our risk assessment uses a likelihood and consequence matrix with a scale on each axis from 1 through 4, with 4 being the highest likelihood or consequence. Significant environmental events are defined as those with a rating of 3 or higher on the consequence scale. Information on the significant environmental event that occurred at El Abra operation in 2022 can be found on page 111 in FCX's 2022 Annual Report on Sustainability, which is available at fcx.com/sustainability.
A17: 5. 2019 penalties paid were from NOVs at Sierrita for dust events in 2018 ($30,000) and a NOV at Cerro Verde in 2007 ($94,682). In addition, we agreed to fund a $200,000 Supplemental Environmental Project associated with the Sierrita dust events. The Cerro Verde fine was paid in 2019 from a regulatory inspection conducted in 2007 due to an extended legal appeal process. 2020 penalties paid were principally from a Sierrita dust event ($55,000) and the failure to obtain a CO2 permit at Rotterdam ($12,000). 2021 penalties paid were associated with delays in commissioning an online, real-time groundwater monitoring system at El Abra. 2022 penalties included $12,959 at Cerro Verde associated with a NOV related to water discharge monitoring and reporting; $9,842 at El Abra associated with an NOV related to waste and chemical safety programs; and $1,500 at the El Paso Refinery and Rod Mill associated with two wastewater discharge permit NOVs.

Sheet SASB
A1: 2022 SASB STANDARDS
A3: We disclose in alignment with the SASB Standards for the Metals & Mining industry (EM-MM; version 2021-12) with information as of the year ended December 31, 2022. Overseen by the International Sustainability Standards Board, which was created by the IFRS Foundation Trustees, SASB Standards are a voluntary sustainability disclosure framework of ESG issues most relevant to financial performance and enterprise value. For further information on the topics disclosed, please see FCX’s 2022 Form 10-K and the other related documents on our website referenced in the following table.
A5: Websites and links can be found in the references tab.
A6: Note: Reported amounts are approximate.
A7: TOPIC | B7: ACCOUNTING METRIC | C7: CATEGORY | D7: UNIT OF MEASURE | E7: CODE | F7: FCX RESPONSE | G7: REFERENCES
A8: Greenhouse Gas Emissions | B8: (1) Gross global Scope 1 emissions (2) Percentage covered under emissions-limiting regulations | C8: Quantitative | D8: Metric tons (t) CO2-e, Percentage (%) | E8: EM-MM-110a.1 | F8: (1) 4,927,823 metric tons of carbon dioxide equivalent (2) 1.1% | G8: (1) ESG Performance Trend Data: Climate
B9: Discussion of long-term and short-term strategy or plan to manage Scope 1 emissions, emissions reduction targets, and an analysis of performance against those targets | C9: Discussion and Analysis | D9: N/A | E9: EM-MM-110a.2 | F9: We are dedicated to supplying the world with responsibly produced copper, which includes operating in a way that manages and mitigates our greenhouse gas (GHG) emissions and other climate-related risks. We aspire to participate in and positively contribute to a 2050 net zero economy. We have set 2030 GHG emissions reduction targets that cover nearly 100% our global Scope 1 and 2 GHG emissions in order to help manage relevant, climate-related risks and support the decarbonization of our business. Our Americas Copper GHG emissions reduction target evaluates the performance of the copper producing mines and refining facilities of our Americas operations. Our Americas target includes by-product molybdenum produced at our primary copper mines. We continue to pursue our target to reduce our GHG emissions intensity in the Americas by 15% per metric ton of copper cathode by 2030 from our 2018 baseline. PT-FI’s operations generate approximately 30% of our global absolute GHG emissions and approximately 50% of our global Scope 1 emissions, due in part to the high carbon intensity of its coal-fired electricity. We have committed to reduce GHG emissions intensity at PT-FI by 30% per metric ton of payable copper by 2030 from our 2018 baseline. The third and fourth targets, established in 2022, are both on an absolute basis and seek to reduce the GHG emissions of our Atlantic Copper smelter & refinery by 50% and of our primary molybdenum sites by 35%, both by 2030 from our 2018 baseline year. We will continue aligning our disclosures with the recommendations of the Taskforce on Climate-related Financial Disclosures (TCFD), and we have committed to validating our interim 2030 GHG emissions reduction targets with the Science Based Target initiative (SBTi). We believe that validating our GHG emissions reduction targets against the SBTi criteria is critical to understanding if our 2030 targets sufficiently align with the Paris Agreement’s goals and specifically to a 1.5°C scenario. For more information on our commitments and progress, please see our reference documents. | G9: (1) 2022 Annual Report on Sustainability: Climate (2) 2021 Climate Report
A10: Air Quality | B10: Air emissions of the following pollutants: (1) CO, (2) NOx (excluding N2O), (3) SOx, (4) particulate matter (PM10), (5) mercury (Hg), (6) lead (Pb), and (7) volatile organic compounds (VOCs) | C10: Quantitative | D10: Metric tons (t) | E10: EM-MM-120a.1 | F10: (1) 38.4 thousand metric tons (2) 49.7 thousand metric tons (3) 6.9 thousand metric tons (4) 14.6 thousand metric tons (5) Less than one metric ton (6) 12.1 metric tons (7) 4.2 thousand metric tons | G10: (1) ESG Performance Trend Data: Air Emissions
A11: Energy Management | B11: (1) Total energy consumed, (2) percentage grid electricity, (3) percentage renewable | C11: Quantitative | D11: Terajoules (TJ), Percentage (%) | E11: EM-MM-130a.1 | F11: (1) Total energy consumed: 97,072 TJ (2) Percentage grid electricity: 37% (3) Percentage renewable: 4.0%* *These data include renewable energy sources such as wind, solar and geothermal contracts for energy consumption, and a percentage associated with biofuels used onsite. Our Americas operations also receive power from hydro and biomass sources, which are not included in the SASB EM-MM standard definition of renewable energy but are considered low-emission sources. The percentage renewable including hydro and biomass sources was 14.9% in 2022. | G11: (1) ESG Performance Trend Data: Climate
A12: Water Management | B12: (1) Total freshwater withdrawn (2) Total freshwater consumed, + percentage of each in regions with High or Extremely High Baseline Water Stress | C12: Quantitative | D12: Thousand cubic meters (m³), Percentage (%) | E12: EM-MM-140a.1 | F12: (1) Total freshwater withdrawn: 237,377 thousand cubic meters; 25% with High or Extremely High Baseline Water Stress (2) Total freshwater consumed: 128,253 thousand cubic meters; 43% with High or Extremely High Baseline Water Stress Freshwater totals above are defined by SASB and equivalent to high quality freshwater as defined by ICMM. For more comprehensive information on our water performance and the water stress classifications, please see reference documents. | G12: (1) ESG Performance Trend Data: Water
B13: Number of incidents of non-compliance associated with water quality permits, standards, and regulations | C13: Quantitative | D13: Number | E13: EM-MM-140a.2 | F13: No incidents of non-compliance associated with water quality permits, standards, and regulations resulted in a formal enforcement action in 2022.
A14: Waste & Hazardous Materials Management | B14: Total weight of non-mineral waste generated | C14: Quantitative | D14: Metric tons (t) | E14: EM-MM-150a.4 | F14: 274.3 thousand metric tons | G14: (1) 2022 Form 10-K, Item 1A. Risk Factors: Operational Risks (2) ESG Performance Trend Data: Mining.Mineral Processing Waste (3) 2022 Annual Report on Sustainability: Tailings Management (4) 2022 Annual Report on Sustainability: Waste
B15: Total weight of tailings produced | C15: Quantitative | D15: Metric tons (t) | E15: EM-MM-150a.5 | F15: 331 million metric tons
B16: Total weight of waste rock generated | C16: Quantitative | D16: Metric tons (t) | E16: EM-MM-150a.6 | F16: 414 million metric tons
B17: Total weight of hazardous waste generated | C17: Quantitative | D17: Metric tons (t) | E17: EM-MM-150a.7 | F17: 32.6 thousand metric tons
B18: Total weight of hazardous waste recycled | C18: Quantitative | D18: Metric tons (t) | E18: EM-MM-150a.8 | F18: 7.4 thousand metric tons
B19: Number of significant incidents associated with hazardous materials and waste management | C19: Quantitative | D19: Metric tons (t) | E19: EM-MM-150a.9 | F19: One significant (defined as a consequence rating of 3 or higher on our risk matrix) incident associated with hazardous materials and waste management occurred in 2022. Our El Abra operation experienced an incident that was identified as significant in our risk register process during the year. In March 2022, because of a failure along the pipeline, approximately 13,000 cubic meters of an acidic solution flowed from a containment dam at our operations through an already modified area downstream of the dam and along the access road to the open pit. The site activated the contingency plan and immediately implemented corrective actions to stop the flow and cleaned up the impacted area. | G19: (1) 2022 Annual Report on Sustainability: Environmental Compliance (2) 2022 Annual Report on Sustainability: Our Approach
B20: Description of waste and hazardous materials management policies and procedures for active and inactive operations | C20: Discussion and Analysis | D20: n/a | E20: EM-MM-150a.10 | F20: We are committed to reducing our environmental impact, which includes the effective management of our mining and non-mining wastes alike. Mining and mineral processing wastes are typically managed in designated, engineered stockpiles or impoundments. In addition to responsibly managing our mining and mineral processing waste, we continuously evaluate opportunities to reduce the quantity of non-mining waste generated. We seek to apply the standard protocol of reduce, reuse, recycle wherever possible and implement robust practices to identify, categorize, store and manage non-mining wastes. Through our asset recovery programs, we divert certain materials from the landfill, and we strive to increase recycling and reuse of those materials in our operations whenever possible. We also evaluate our hazardous waste streams and, when possible, substitute materials with lower toxicity into our processes. | G20: (1) 2022 Annual Report on Sustainability: Waste
A21: Biodiversity Impacts | B21: Description of environmental management policies and practices for active sites | C21: Discussion and Analysis | D21: N/A | E21: EM-MM-160a.1 | F21: We are committed to sound environmental practices at all of our operations. Our Environmental Policy serves as the framework for the protection of natural resources in the regions where we live and work. In addition to maintaining compliance with laws and regulations, we utilize risk management strategies based on valid data and sound science throughout the mining life cycle, and we plan and conduct our operations in a manner that optimizes the economic use of resources while minimizing the adverse environmental effects. All our mining and mineral processing operations and technology centers maintain Environmental Management Systems (EMS) certified to ISO 14001:2015. Our practices and policies apply to all active sites across the portfolio and address critical environmental aspects including biodiversity, water stewardship, waste and hazardous chemicals, air emissions, and natural resource conservation and recycling. The environmental management programs implemented at our sites are based upon corporate policies, regulatory compliance, and voluntary commitments to good international industrial practices and standards and are verified through independent third-party assurance reviews. These programs are enabled through implementation of our risk register and project development sustainability review processes as well as project specific environmental and social impact assessments (ESIA). | G21: (1) 2022 Annual Report on Sustainability: Thriving Environments
B22: Percentage of mine sites where acid rock drainage is: (1) predicted to occur, (2) actively mitigated, and (3) under treatment or remediation | C22: Quantitative | D22: Percentage (%) | E22: EM-MM-160a.2 | F22: We do not report the percentage of mine sites where acid rock drainage (ARD) occurs or is predicted to occur. We implement robust programs to identify, mitigate and manage ARD from waste rock and tailings. ARD is a geochemical process that releases sulfate, acid and/or metals into the environment when certain rock materials are exposed to water and oxygen. ARD forms either naturally or following human caused activities when metal sulfide minerals present in host rock are exposed to air and natural precipitation. The resulting acid that forms can dissolve metals from the surrounding rock and be a source of pollution to surface water or groundwater resources if not properly managed. The formation of ARD can be exacerbated by large earth moving activities, like mining or construction, particularly when these activities expose sulfide bearing minerals to additional air and water, which can accelerate the oxidation process. However, through implementation of targeted management practices, environmental impacts from ARD can be prevented or minimized. Our environmental policy requires that we review and account for environmental effects of each activity, throughout the mine life cycle. Based on material classifications and geochemical characterizations of our ore bodies, ARD is predicted to occur to some degree at nearly all of our operations and is actively mitigated in those locations throughout the mine life cycle utilizing best available control technologies. When potentially acid generating materials are identified in the planning phase, we implement strategies for prevention of ARD formation or management of ARD if it occurs. These strategies include, but are not limited to, designing storage facilities to prevent or minimize ARD formation, blending acid generating materials with materials with sufficient buffering capacity to eliminate the net acid generating potential during operations, installing engineering controls to manage stormwater that infiltrates or runs-off from these facilities, and monitoring controls systems over the mine life cycle including the closure and post-closure phases. Additionally, we consider site specific factors such as rock type, climate, and other geographic considerations in order to minimize operations risk and reduce post mining closure and reclamation liability. Finally, if the formation of ARD cannot be eliminated, we implement mitigation measures such as water management, water treatment or reclamation and, at our PT-FI operations, studies that include risk assessments to determine additional monitoring and mitigation efforts that may be effective. The objective of these controls is to limit or eliminate the exposure of sulfide minerals to the atmosphere, minimize the amount of water contacting mine materials, including waste rock or tailings, and ensure effective monitoring and maintenance systems are in place to minimize the potential ARD generation. Mitigation strategies at our mining operations are also subject to regulatory review, approval and oversight to ensure the effectiveness of the selected control measures.
B23: Percentage of (1) proved and (2) probable reserves in or near sites with protected conservation status or endangered species habitat FCX METRIC: Percentage of total proven and probable reserves (2P reserves) (1)(a) in sites with protected conservation status, (1)(b) near sites with protected conservation status, (2)(a) in areas of endangered species habitat, and (2)(b) near areas of endangered species habitat | C23: Quantitative | D23: Percentage (%) | E23: EM-MM-160a.3 | F23: Protected Areas (1)(a) 0% of total 2P reserves are in protected areas (1)(b) 9.0% of total 2P reserves are near (within 5 kilometers of) protected areas (100% PT-FI and 100% Henderson) Our proven and probable (2P) reserves near protected areas are associated with our Henderson mine in Colorado and PT-FI operations in Indonesia. Both are underground operations and therefore have limited potential to adversely affect the integrity and essential values for which the protected areas were designated. | G23: (1) 2022 Form 10-K, Items 1. and 2. Business and Properties: Mineral Reserves (2) 2022 Annual Report on Sustainability: Biodiversity
F24: Endangered Species Habitat (2)(a) 0.3% of total 2P reserves are in endangered species habitat (<1% Sierrita; <1% Cerro Verde) (2)(b) 66.3% of total 2P reserves are near (within 5 kilometers of) endangered species habitat (100% of PT-FI, Cerro Verde, Climax and Sierrita; 71% Morenci; 13% Chino) Our proven and probable (2P) reserves that are located near endangered species habitats do not affect those habitats. The endangered species habitats near Morenci, Chino, and Climax reserves are located on federal lands managed by the U.S. Forest Service; we do not conduct activities within the habitat. Cerro Verde’s reserves qualify due to an endangered bat species that is known to occur and forage in the general region of the operations and we actively seek to protect the species. PT-FI’s reserves qualify due to the district’s proximity to Lorentz National Park, however, we have not and will not conduct any mining or exploration activities in Lorentz National Park, which is a UNESCO World Heritage Site. As part of our Environmental Policy and our ICMM commitment, we will not explore nor mine at any UNESCO World Heritage Sites. Furthermore, PT-FI mining operations have fully transitioned underground. Percentages reported above are based on total ore metric tons. Refer to page 38 of FCX's 2022 Form 10-K for average ore grades,
A25: Security, Human Rights & Rights of Indigenous Peoples | B25: Percentage of (1) proved and (2) probable reserves in or near areas of conflict FCX METRIC: Percentage of total proven and probable reserves (2P reserves) in or near areas of conflict | C25: Quantitative | D25: Percentage (%) | E25: EM-MM-210a.1 | F25: 8.8% of total proven and probable reserves are in or near (within 5 kilometers of) areas of conflict, representing PT-FI in Indonesia, as defined by the latest available data from the 2021 Uppsala Conflict Data Program (UCDP). Per UCDP data, the level of organized violence in Indonesia increased in 2021. In Central Papua, Indonesia, there have been attacks in recent years on civilians by separatists and highly publicized conflicts between separatists and the Indonesia military and police, some of which occurred in or near PT-FI’s operational and support area. No such incidents have occurred in or near PT-FI’s operational and support area in 2022 or since February 2021. Our Cerro Verde operations located 20 miles southwest of the city of Arequipa, Peru, is not located in or near active conflict per UCDP data. However, since December 2022, there have been widespread and sometimes violent political protests, including attacks on civil infrastructure and businesses throughout Peru. A state of emergency has been declared, and military forces deployed to augment national police, which have resulted in civilian and police fatalities. Although the impact on Cerro Verde’s operations has been limited, the situation in Peru remains uncertain. FCX is a founding member, guided by, and implements The Voluntary Principles on Security and Human Rights for our security and human rights programs, including interactions with host government police, military personnel and private security contractors. For more information on our approach to human rights and security, please see the relevant sections of our 2022 Annual Report on Sustainability and the human rights section of our website. | G25: (1) Voluntary Principles on Security and Human Rights, Annual Reports to the Plenary (2) 2022 Annual Report on Sustainability: Human Rights (3) 2022 Annual Report on Sustainability: Communities & Indigenous Peoples (4) 2022 Annual Report on Sustainability: Responsible Value Chains (5) 2022 Form 10-K, Items 1. and 2. Business and Properties: Mineral Reserves (6) Sustainability > Robust Governance > Human Rights page on fcx.com
B26: Percentage of (1) proved and (2) probable reserves in or near indigenous land FCX METRIC: Percentage of total proven and probable reserves (2P reserves) in or near Indigenous land | C26: Quantitative | D26: Percentage(%) | E26: EM-MM-210a.2 | F26: 8.8% of total proven and probable reserves are in or near (within 5 kilometers of) Indigenous lands, representing PT-FI in Indonesia, which is located where Indigenous Peoples of Central Papua hold customary land rights. Indigenous lands for purposes of this calculation are defined by Article 33 of the United Nations Declaration on the Rights of Indigenous Peoples and the International Labor Organization Convention No. 169. While they do not meet the SASB threshold for inclusion, Indigenous Peoples in Chile and Native Americans in the United States either currently or have historically occupied lands in proximity to our operations or have ancestral connections to these lands. We are committed to constructively engaging with all Indigenous Peoples to support shared value for all stakeholders. Percentages reported above are based on total ore metric tons. Refer to page 38 of FCX's 2022 Form 10-K for average ore grades. | G26: (1) 2022 Form 10-K, Items 1. and 2. Business and Properties: Mineral Reserves (2) 2022 Annual Report on Sustainability: Communities & Indigenous Peoples (3) Sustainability > People > Communities & Indigenous Peoples > Land Use & Customary Rights page on fcx.com (4) Sustainability > People > Communities & Indigenous Peoples page on fcx.com
B27: Discussion of engagement processes and due diligence practices with respect to human rights, indigenous rights, and operation in areas of conflict | C27: Discussion and Analysis | D27: N/A | E27: EM-MM-210a.3 | F27: For information on our engagement processes and due diligence practices with respect to human rights and Indigenous rights, please refer to the Communities, Indigenous Peoples, Land Use & Customary Rights and Human Rights sections of our 2022 Annual Report on Sustainability and information on fcx.com. PT-FI has engaged with Central Papua’s Indigenous populations – the Amungme and Kamoro as well as the five neighboring ethnic groups – Dani, Damal, Nduga, Mee and Moni (collectively known as the “seven suku”) – for decades through multiple formal agreements that promote capacity building through workforce skills training as well as health, education, economic development, public infrastructure development, and participatory monitoring and evaluation of PT-FI funded projects. In addition, we are continuously investing in our local communities in Central Papua by implementing programs to support capacity building through the development of their skills and employability. While there are no Indigenous Populations within Cerro Verde’s operational influence, as noted above, there have been widespread and sometimes violent political protests, including attacks on civil infrastructure and businesses throughout Peru. For both Cerro Verde and PT-FI Grasberg, we continue to conduct human rights training of security forces and across our workforce to respect human rights and maintain strong community programs at both operations. For information on the above-mentioned engagement processes and how PT-FI operates in this context, please see reference documents. | G27: (1) Voluntary Principles on Security and Human Rights, Annual Reports to the Plenary (2) 2022 Annual Report on Sustainability: Communities & Indigenous Peoples (3) 2022 Annual Report on Sustainability: Responsible Value Chains (4) 2021 OECD Step 5 Due Diligence Report
A28: Community Relations | B28: Discussion of process to manage risks and opportunities associated with community rights and interests | C28: Discussion and Analysis | D28: N/A | E28: EM-MM-210b.1 | F28: We are committed to responsibly manage our relationships with host communities and Indigenous neighbors. Constructive dialogue is at the foundation of our relationships with host communities and stakeholders. Our engagements help to inform understanding of our actual, potential and perceived impacts. It also helps us build a localized understanding of what contributes to community welfare and long-term sustainability, and mutually identify relevant social investment and development priorities to support any gaps. Engagements also enable us to share information about our own operational activities, facilitate dialogue and ultimately build trust. While our community programs are tailored to the site-specific dynamics of the operation and host community, our overarching objectives in partnership with our local stakeholders are to: (1) build enduring trust, (2) minimize or mitigate any negative impacts from our operations, (3) maximize the positive benefits, (4) support our communities in building resiliency and well-being over the life of the mine, and (5) develop the skills and capacity to thrive beyond the mine. For more information on our approach to management of risks and opportunities associated with community rights and interests, please see reference documents. | G28: (1) 2022 Annual Report on Sustainability: Communities & Indigenous Peoples (2) Sustainability > People > Communities & Indigenous Peoples > Assessing & Managing Impacts page on fcx.com (3) Sustainability > People > Communities & Indigenous Peoples > Land Use and Customary Rights page on fcx.com (4) Sustainability > People > Communities & Indigenous Peoples > Public Health page on fcx.com
B29: Number and duration of non-technical delays | C29: Quantitative | D29: Number, Days | E29: EM-MM-210b.2 | F29: There were no non-technical delays at any of our operations in 2022. | G29: (1) 2022 Form 10-K, Items 1. and 2. Business and Properties: General: Mining Operations
A30: Labor Relations | B30: Percentage of active workforce covered under collective bargaining agreements, broken down by U.S. and foreign employees | C30: Quantitative | D30: Percentage (%) | E30: EM-MM-310a.1 | F30: Approximately 30% of our global full-time employee population was covered by collective labor agreements on December 31, 2022, broken down as follows: 0% North America 47% Indonesia 67% South America 60% Europe / Other While our North American workforce is not represented by unions, our hourly employees elect to work directly with company management rather than through union representation using our Guiding Principles agreement, which outlines how we work together within the values of the company to achieve our collective goals. Please see references for more information on our approach to labor relations. | G30: (1) 2022 Form 10-K, Items 1. and 2. Business and Properties: Human Capital: Workforce (2) 2022 Form 10-K, Note 16. Business Segment Information: Labor Matters (3) ESG Performance Trend Data: Workforce (4) 2022 Annual Report on Sustainability: Workforce
B31: Number and duration of strikes and lockouts | C31: Quantitative | D31: Number, Days | E31: EM-MM-310a.2 | F31: There were no strikes or lockouts at any of our operations in 2022. | G31: (1) 2022 Form 10-K, Items 1. and 2. Business and Properties: Human Capital: Workforce (2) 2022 Annual Report on Sustainability: Workforce
A32: Workforce Health & Safety | B32: (1) MSHA all-incidence rate, (2) fatality rate, (3) near miss frequency rate (NMFR) and (4) average hours of health, safety, and emergency response training for (a) full-time employees and (b) contract employees | C32: Quantitative | D32: Rate | E32: EM-MM-320a.1 | F32: For full year 2022: (1)(a) MSHA all-incidence rate for full-time employees: 0.93 (1)(b) MSHA all-incidence rate contract employees: 0.60 (2)(a) fatality rate for full-time employees: 0.000 (2)(b) fatality rate for contract employees: 0.003 (3)(a) near miss frequency rate (NMFR) for full-time employees: 1.03 (3)(b) near miss frequency rate (NMFR) for contract employees: 0.64 (4) We do not currently disclose this information. | G32: (1) 2022 Form 10-K, Item 4. Mine Safety Disclosures (2) ESG Performance Trend Data: Health & Safety
A33: Business Ethics & Transparency | B33: Description of the management system for prevention of corruption and bribery throughout the value chain | C33: Discussion and Analysis | D33: N/A | E33: EM-MM-510a.1 | F33: We use a combination of tools to help gather critical data on suppliers with regard to compliance, ESG and other related risks. In recognition of the potential legal and reputational liability that could result from actions of our business partners and contractors under the Foreign Corrupt Practices Act (FCPA) and other laws, the company operates an online due diligence platform, the Freeport Compliance eXchange (FCeX). FCeX is a survey-based software platform designed to assess risk in areas of anti-corruption, international trade, human rights and responsible sourcing, and includes a number of sustainability-related questions. FCeX enhances our ability to identify, assess and mitigate compliance risks. The survey is utilized for all new vendors as our first line of due diligence in our responsible sourcing program. In recent years, we enhanced the responsible sourcing section in the FCeX survey, completed the global roll out of the FCeX tool, and implemented SAP Ariba Supplier Risk Management and Supplier Lifecycle and Performance onboarding tools, which enable us to more effectively identify and mitigate risks in supplier relationships. The SAP Ariba software enhances our supplier risk assessment using data from external sources – including operations, regulatory (anti-corruption and human rights), environmental and financial – and provides more in-depth risk-based assessments through targeted questionnaires and audits. We track these assessments and resulting actions, engagement and approvals for ongoing supplier life cycle management. We perform annual company-wide program and risk assessments with assistance from our internal audit firm, Deloitte, and specialized external legal counsel, who both contribute to the following year’s assessment strategies. Business controls resulting from periodic fraud risk assessments are tested and reviewed annually at our corporate offices as well as at PT-FI, Cerro Verde, El Abra and Atlantic Copper. | G33: (1) 2022 Annual Report on Sustainability: Responsible Value Chains (2) 2022 Annual Report on Sustainability: Business Conduct & Policies
B34: Production in countries that have the 20 lowest rankings in Transparency International’s Corruption Perception Index | C34: Quantitative | D34: Metric tons (t) saleable | E34: EM-MM-510a.2 | F34: We have no production in the countries that have the 20 lowest rankings in Transparency International's Corruption Perception Index. | G34: (1) 2022 Form 10-K, Items 1. and 2. Business and Properties: General
A35: Tailings Storage Facilities Management | B35: Tailings storage facility inventory table: (1) facility name, (2) location, (3) ownership status, (4) operational status, (5) construction method, (6) maximum permitted storage capacity, (7) current amount of tailings stored, (8) consequence classification, (9) date of most recent independent technical review, (10) material findings, (11) mitigation measures, (12) site-specific EPRP | C35: Quantitative; Discussion and Analysis | D35: Various | E35: EM-MM-540a.1 | F35: FCX is in the process of implementing the Global Industry Standard on Tailings Management (the Tailings Standard) at our Americas Tailings Storage Facilities (TSFs). As a member of the International Council on Metals and Mining, FCX has agreed that all TSFs with “extreme” or “very high” potential consequence (based on credible failure modes) should demonstrate conformance with the Tailings Standard by August 2023, and conformance of all other TSFs by August 2025. For detailed information on FCX’s TSFs, please refer to the detailed TSF information, which is dated as of April 21, 2022, on fcx.com. FCX plans to update its detailed TSF disclosures in the future as we complete conformance with the Tailings Standard. An aspect of conforming with the Tailings Standard is aligning TSF consequence classifications with the Tailings Standard’s outlined approach. To learn more about our implementation of the Tailings Standard, please see the Tailings Management section of the 2022 Annual Report on Sustainability. | G35: (1) Sustainability > Thriving Environments > Tailings – Americas on fcx.com (2) 2022 Annual Report on Sustainability: Tailings Management
B36: Summary of tailings management systems and governance structure used to monitor and maintain the stability of tailings storage facilities | C36: Discussion and Analysis | D36: N/A | E36: EM-MM-540a.2 | F36: For more information on our multi-tiered oversight and tailings governance, please see the Tailings Management section of the 2022 Annual Report on Sustainability. | G36: (1) 2022 Annual Report on Sustainability: Tailings Management
B37: Approach to development of Emergency Preparedness and Response Plans (EPRPs) for tailings storage facilities | C37: Discussion and Analysis | D37: N/A | E37: EM-MM-540a.3 | F37: In accordance with our commitment to conform our TSFs with “extreme” or “very high” potential consequences with the Tailings Standard by August 2023 and all other TSFs by August 2025, we are updating our processes and documents to include additional elements for those TSFs that require Emergency Preparedness and Response Plans (EPRP) as defined by the Tailings Standard. For information on our commitment to update our processes and documents to include EPRPs for tailings storage facilities, please see the Tailings Management section of the 2022 Annual Report on Sustainability. | G37: (1) Sustainability > Thriving Environments > Tailings – Americas on fcx.com
A38: Activity Metric | B38: Production of (1) metal ores and (2) finished metal products | C38: Quantitative | D38: Metric tons (t) saleable | E38: EM-MM-000.A | F38: Full year 2022 consolidated production from our mines: 4,210 million recoverable pounds or 1,909,624 metric tons of copper; 1,811 thousand recoverable ounces or 51 metric tons of gold; and 85 million recoverable pounds or 38,555 metric tons of molybdenum | G38: (1) 2022 Form 10-K, Items 1. and 2. Business and Properties: Mining Production and Sales Data
B39: Total number of employees, percentage contractors | C39: Quantitative | D39: Number, Percentage (%) | E39: EM-MM-000.B | F39: Total workforce (employees and contractors) at year end 2022 approximated 74,500, and 66% were contractors. | G39: (1) 2022 Form 10-K, Items 1. and 2. Business and Properties: Human Capital: Workforce

Sheet GRI Index; SDGs
A1: GRI CONTENT INDEX
A3: The table below provides an overview of the relevant GRI Standards for our most material topics and where to find information in our Annual Report on Sustainability, website or from other sources. We are reporting in reference to the GRI Standards (2021) and the G4 Mining and Metals Sector Supplement. Websites and links can be found in the references tab.
A7: SERIES | B7: MATERIAL TOPIC | C7: DISCLOSURE | D7: DISCLOSURE DESCRIPTION | E7: FCX RESPONSE (Websites and links can be found in the references tab) | F7: Variance | G7: UN SDGs
A8: GRI 2 General Disclosures 2021 | C8: 2-1 | D8: Organizational details | E8: Freeport-McMoRan Inc. (NYSE: FCX) Phoenix, Arizona, USA Our operating mines are located in Chile, Indonesia, Peru and the United States. For further information on our operations, please see: About Us on fcx.com Form 10-K: Part I: General, Mining Operations Annual Report on Sustainability: About This Report
A9: GRI 2 General Disclosures 2021 | C9: 2-2 | D9: Entities included in the organization’s sustainability reporting | E9: Form 10-K: Part I, General Annual Report on Sustainability: About This Report
A10: GRI 2 General Disclosures 2021 | C10: 2-3 | D10: Reporting period, frequency and contact point | E10: Fiscal year ended December 31, 2022 (annual) The 2022 Annual Report on Sustainability is aligned with Freeport's financial reporting period Published April 21, 2023 sustainability@fmi.com
A11: GRI 2 General Disclosures 2021 | C11: 2-4 | D11: Restatements of information | E11: As a result of methodology changes or corrections, prior year data may be updated. Restatements are clearly noted in relevant footnotes if applicable. In the event that a restatement is significant, its effect will be discussed in footnotes or relevant section of the Sustainability Report. Data presentation and comparisons may not meet the direct needs of all stakeholders, and we encourage users of this information to contact our Sustainability Department with inquiries, sustainability@fmi.com.
A12: GRI 2 General Disclosures 2021 | C12: 2-5 | D12: External assurance | E12: Our Annual Reports on Sustainability have been independently verified since 2005. Limited assurance of the 2022 report was obtained from Ernst & Young (EY) LLP as indicated in the Report of Independent Accountants. Since 2009, site-level external assurance has been completed multiple times at all active mining and metals processing operations. We conduct site-level external assurance at each of our operations at least once every three years and annually at PT-FI and Cerro Verde. Additionally, assurance is conducted annually at a corporate level. Following the annual corporate assurance process, the SLT as well as our president receive a formal report out of assurance findings directly from EY. Annual Report on Sustainability: Assurance Statement External Assurance on fcx.com
A13: GRI 2 General Disclosures 2021 | C13: 2-6 | D13: Activities, value chain and other business relationships | E13: Freeport-McMoRan Inc. (Freeport-McMoRan, Freeport, FCX or the company) is a leading international mining company with headquarters in Phoenix, Arizona. FCX operates large, long-lived, geographically diverse assets with significant proven and probable reserves of copper, gold and molybdenum. FCX’s portfolio of assets includes the Grasberg minerals district in Indonesia (PT Freeport Indonesia or PT-FI), one of the world’s largest copper and gold deposits; and significant mining operations in North America and South America (Freeport Minerals Corporation or FMC), including the large-scale Morenci minerals district in Arizona and the Cerro Verde operation in Peru. About Us on fcx.com Form 10-K: Part I Products and Sales; General; Items 1. and 2. Business and Properties; Mining Production and Sales Data; Part I, Sources and Availability of Energy, Natural Resources and Raw Materials; Part II, Revenues; Part II, Management's Discussion and Analysis of Financial Condition and Results of Operations and Quantitative and Qualitative Disclosures About Market Risk Annual Report on Sustainability: Responsible Value Chains; Economic Contributions; Performance Data; Our Strategy in Action: Responsible Production; Responsible Value Chains; Workforce Global Supply Chain webpage on fcx.com Commodity Management webpage on fcx.com | G13: SDG 8: Decent Work and Economic Growth
A14: GRI 2 General Disclosures 2021 | C14: 2-7 | D14: Employees | E14: Form 10-K: Items 1 and 2. Business and Properties: Human Capital: Workforce Annual Report on Sustainability: Workforce; Performance Data: Workforce | F14: We report the total number of employees by gender for the U.S. in line with EEO requirements. We also report the overall number of employees and a percentage breakdown by gender for each region. At this time, we do not report: total number of employees by gender and by region; total number of permanent employees for each region; total number of female employees employed by region; temporary employees; non-guaranteed hours employees; full-time employees vs part-time employees; methodologies and assumptions used to compile the data. | G14: SDG 8: Decent Work and Economic Growth SDG 10: Reduced Inequalities
A15: GRI 2 General Disclosures 2021 | C15: 2-8 | D15: Workers who are not employees | E15: Form 10-K: Items 1 and 2. Business and Properties: Human Capital: Workforce Annual Report on Sustainability: Workforce; Performance Data: Workforce | F15: We report the number of contractors employed; however, we do not discuss the most common types of contractor, the work they perform, their contractual relationship with the organization, or methodologies and assumptions used to compile the data. | G15: SDG 8: Decent Work and Economic Growth SDG 10: Reduced Inequalities
A16: GRI 2 General Disclosures 2021 | C16: 2-9 | D16: Governance structure and composition | E16: Annual Report on Sustainability: Robust Governance Freeport-McMoRan Inc. Corporate Governance Guidelines Proxy Statement 2022: Corporate Governance; Board Composition and Refreshment | G16: SDG 5: Gender Equality SDG 16: Peace, Justice and Strong Institutions
A17: GRI 2 General Disclosures 2021 | C17: 2-10 | D17: Nominating and selecting the highest governance body | E17: Proxy Statement: Board and Corporate Governance Matters Freeport-McMoRan Inc. Corporate Governance Guidelines | G17: SDG 5: Gender Equality SDG 16: Peace, Justice and Strong Institutions
A18: GRI 2 General Disclosures 2021 | C18: 2-11 | D18: Chair of the highest governance body | E18: Richard C. Adkerson is the Chairman of the Board and CEO of Freeport-McMoRan Inc. Proxy Statement: Board Leadership Structure | G18: SDG 16: Peace, Justice and Strong Institutions
A19: GRI 2 General Disclosures 2021 | C19: 2-12 | D19: Role of the highest governance body in overseeing the management of impacts | E19: Annual Report on Sustainability: Our Approach; Robust Governance; Stakeholder Engagement & Materiality; Business Conduct & Policies Proxy Statement 2022: ESG / Sustainability; Corporate Governance; Stakeholder Engagement Freeport-McMoRan Inc. Corporate Governance Guidelines Corporate Responsibility Committee Charter | G19: SDG 16: Peace, Justice and Strong Institutions SDG 17: Partnerships for the Goals
A20: GRI 2 General Disclosures 2021 | C20: 2-13 | D20: Delegation of responsibility for managing impacts | E20: Annual Report on Sustainability: Robust Governance Proxy Statement: ESG / Sustainability
A21: GRI 2 General Disclosures 2021 | C21: 2-14 | D21: Highest governance body’s role in sustainability reporting | E21: Our Chairman and CEO has responsibility for the company’s sustainability performance, with active oversight from the Board. Our cross-functional Sustainability Leadership Team (SLT) includes members of the management team tasked with defining the sustainability strategy and implementing our sustainability policies, systems, and programs across the organization to achieve integrated decision-making for responsible production and performance. The SLT is sponsored by our Chief Administrative Officer and is led by our Chief Sustainability Officer, with active participation from other members of the SLT, including our five business unit Presidents. SLT membership also includes senior leadership from functional groups, including health and safety, security, supply chain, human resources, sales, legal, compliance, sustainability and finance. Executive officers are held accountable for the company’s sustainability performance through the company’s performance-based annual incentive program (AIP). In 2022, ESG metrics collectively accounted for 25% of the AIP (15% safety and 10% sustainability). The results of the 2021 materiality assessment were presented to and approved by the SLT. The materiality matrix was reviewed and approved again in early 2023 to ensure that it still appropriately reflects the evolving sustainability landscape and our priority focus areas. Both the SLT and senior management also contributed directly to the development of our updated sustainability strategy in 2022, including our strategic focus areas. Annual Report on Sustainability: Letter to Stakeholders; Views from Our Corporate Responsibility Committee Chair; Robust Governance Proxy Statement 2022 GRI Content Index (this index)
A22: GRI 2 General Disclosures 2021 | C22: 2-15 | D22: Conflicts of interest | E22: Freeport-McMoRan maintains Conflicts of Interest Guidelines that are designed to provide guidance to directors, officers and employees so that conflicts of interest may be avoided. The guidelines establish procedures for disclosure of actual or potential conflicts of interest so that concerns may be addressed and any necessary corrective action may be taken. Annual Report on Sustainability: Robust Governance Freeport-McMoRan Inc. Corporate Governance Guidelines Proxy Statement 2022: Board Independence and Related Persons Transactions | G22: SDG 16: Peace, Justice and Strong Institutions
A23: GRI 2 General Disclosures 2021 | C23: 2-16 | D23: Communicating critical concerns | E23: Annual Report on Sustainability: Robust Governance Proxy Statement 2022: Communications with the Board Freeport-McMoRan Inc. Corporate Governance Guidelines | F23: We publicly report on key ESG topics communicated to the CRC, the Compensation Committee and Audit Committee. We do not report the total number of critical concerns that were communicated to the highest governance body during the reporting period.
A24: GRI 2 General Disclosures 2021 | C24: 2-17 | D24: Collective knowledge of highest governance body | E24: Annual Report on Sustainability: Robust Governance Proxy Statement 2022: Information About Director Nominees
A25: GRI 2 General Disclosures 2021 | C25: 2-18 | D25: Evaluating the highest governance body’s performance | E25: Freeport-McMoRan Inc. Corporate Governance Guidelines Proxy Statement: Board and Committee Evaluation Process; Executive Compensation Philosophy
A26: GRI 2 General Disclosures 2021 | C26: 2-19 | D26: Remuneration policies | E26: Proxy Statement 2022: Process of Setting Director Compensation Sustainability Report: Robust Governance
A27: GRI 2 General Disclosures 2021 | C27: 2-20 | D27: Process for determining remuneration | E27: We are committed to respecting the rights of our workforce, including paying fair and equal wages. Our approach to compensation and benefits is market-based, competitive and informed by annual benchmarking and analysis. This includes equal pay for equal work and compensation levels that support the acquisition of the goods and services necessary for an average-size family to meet their basic needs in the geographic locations where we operate – often referred to as a living wage. We are committed to providing equal pay for equal work regardless of gender, race, ethnicity or any area protected by law. We periodically conduct internal compensation reviews to identify possible pay gaps which cannot be explained through performance, distribution of jobs, experience, time in role and other legitimate business-related factors. Proxy Statement 2022: Process of Setting Director Compensation and Compensation Governance and Best Practices Annual Report on Sustainability: Workforce
A28: GRI 2 General Disclosures 2021 | C28: 2-21 | D28: Annual total compensation ratio | E28: Proxy Statement 2022: CEO Pay Ratio | F28: We report on CEO Pay Ratio. At this time we do not report the ratio of the percentage increase in annual total compensation for the organization’s highest-paid individual to the median percentage increase in annual total compensation for all employees (excluding the highest-paid individual).
A29: GRI 2 General Disclosures 2021 | C29: 2-22 | D29: Statement on sustainable development strategy | E29: Annual Report on Sustainability: Letter to Stakeholders; Views from Our Corporate Responsibility Committee Chair; Our Approach
A30: GRI 2 General Disclosures 2021 | C30: 2-23 | D30: Policy Commitments | E30: Freeport-McMoRan is a leading responsible copper producer. Our commitment to responsible copper production is visible in everything we do, driven by our core values of Safety, Respect, Integrity, Excellence and Commitment. Our values direct the decisions we make as a company and as individual employees. These values represent who we are and how we work – everyone, everywhere, every day. Our focus on responsible production is critical to establish and maintain acceptance from our local stakeholders through shared value creation and to meet society's responsible sourcing objectives necessary to supply the world with copper. Annual Report on Sustainability: Our Strategy; Business Conduct & Policies; Our Strategy in Action: Responsible Production; Empowered People & Resilient Communities; Thriving Environments ; Stakeholder Engagement & Materiality Freeport-McMoRan Human Rights Policy Freeport-McMoRan Business Partner Code of Conduct Freeport-McMoRan Corporate Governance | F30: We describe our policy commitments, how they are communicated, application and approach for responsible production, including due diligence and risk assessment. We disclose our policy commitments publicly and indicate the level at which each policy was approved. We do not describe whether the commitments stipulate applying the precautionary principle. | G30: SDG 16: Peace, Justice and Strong Institutions
A31: GRI 2 General Disclosures 2021 | C31: 2-24 | D31: Embedding policy commitments | E31: Annual Report on Sustainability: Business Conduct and Policies; Human Rights; Responsible Value Chains Freeport-McMoRan Principles of Business Conduct Freeport-McMoRan Business Partner Code of Conduct
A32: GRI 2 General Disclosures 2021 | C32: 2-25 | D32: Processes to remediate negative impacts | E32: Annual Report on Sustainability: Business Conduct and Policies; Human Rights; Responsible Value Chains https://www.fcx.com/sustainability/people/grievance-mechanism
A33: GRI 2 General Disclosures 2021 | C33: 2-26 | D33: Mechanisms for seeking advice and raising concerns | E33: Annual Report on Sustainability: Business Conduct and Policies Principles of Business Conduct: FCX Compliance Line | G33: SDG 16: Peace, Justice and Strong Institutions
A34: GRI 2 General Disclosures 2021 | C34: 2-27 | D34: Compliance with laws and regulations | E34: Sustainability Report: Environmental Compliance; Human Rights Freeport-McMoRan Form 10-K: Governmental Regulations; Item 3: Legal Proceedings; Note: 12 Contingencies | F34: We disclose significant instances of non-compliance during the reporting period, as well as the total amount of environmental fines paid in the current reporting period and previous reporting periods. We do not currently disclose the total number and value for all fines incurred or paid for instances of non-compliance with laws or regulations. | G34: SDG 16: Peace, Justice and Strong Institutions
A35: GRI 2 General Disclosures 2021 | C35: 2-28 | D35: Membership of associations | E35: Annual Report on Sustainability: Stakeholder Engagement & Materiality | G35: SDG 17: Partnerships for the Goals
A36: GRI 2 General Disclosures 2021 | C36: 2-29 | D36: Approach to Stakeholder engagement | E36: Freeport’s sustainability strategy relies upon, and is consistently informed by, engagement with our stakeholders. Our approach is characterized by transparency, collaboration, and meaningful dialogue with the primary goal of fostering mutual understanding, trust and cooperation with stakeholder groups. Annual Report on Sustainability: Stakeholder Engagement & Materiality; Communities & Indigenous Peoples; Human Rights; Workforce 2022 Proxy Statement: Stakeholder Engagement | G36: SDG 16: Peace, Justice and Strong Institutions SDG 17: Partnerships for the Goals
A37: GRI 2 General Disclosures 2021 | C37: 2-30 | D37: Collective bargaining agreements | E37: Annual Report on Sustainability: Workforce Form 10-K: Part I, Human Capital | G37: SDG 8: Decent Work and Economic Growth
A38: GRI 3 Material Topics 2021 | C38: 3-1 | D38: Process to determine material topics | E38: Annual Report on Sustainability: Our Approach; About this Report | F38: Our current approach to materiality is based on a formal materiality assessment, which was last conducted in 2021. It is not yet fully aligned with the GRI 2021 update.
A39: GRI 3 Material Topics 2021 | C39: 3-2 | D39: List of material topics | E39: Annual Report on Sustainability: Our Approach; About this Report
A40: GRI 200 ECONOMIC | B40: 201 Economic Performance 2016 | C40: 3-3 | D40: Management of material topics | E40: Form 10-K: Part II, Consolidated Results Annual Report on Sustainability: Our Approach; Economic Contributions; Business Conduct & Policies; Community Grievance Mechanism; Letter to Stakeholders; Message from our Corporate Responsibility Committee Chair Economic Impact on fcx.com
A41: GRI 200 ECONOMIC | B41: 201 Economic Performance 2016 | C41: 201-1 | D41: Direct economic value generated and distributed | E41: Form 10-K: Part II, Consolidated Results Annual Report on Sustainability: Community Resilience; Economic Contributions; Performance Data Economic Impact on fcx.com | G41: SDG 1: No Poverty SDG 2: Zero Hunger SDG 5: Gender Equality SDG 7: Affordable and Clean Energy SDG 8: Decent Work and Economic Growth SDG 9: Industry, Innovation and Infrastructure
A42: GRI 200 ECONOMIC | B42: 201 Economic Performance 2016 | C42: 201-2 | D42: Financial implications and other risks and opportunities due to climate change | E42: Form 10-K: Environmental Risks Annual Report on Sustainability: Climate; Water Stewardship Climate Report Water Report | F42: We do disclose detailed information on risks and opportunities due to climate change. We do not report the financial implications of risks and opportunities or costs to manage them before action is taken. | G42: SDG 13: Climate Action
A43: GRI 200 ECONOMIC | B43: 201 Economic Performance 2016 | C43: 201-3 | D43: Defined benefit plan obligations and other retirement plans | E43: Form 10-K: Consolidated Statements of Cash Flows; Note 7 Accounts Payable and Accrued Liabilities; Note 9 Other Liabilities, including Employee Benefits North America Employee Benefits Overview on fcx.com (page 7) | F43: We provide information on our pension plan obligations and North American benefits package. We do not report the level of participation in retirement plans.
A44: GRI 200 ECONOMIC | B44: 203 Indirect Economic Impacts 2016 | C44: 3-3 | D44: Management of material topics | E44: Annual Report on Sustainability: Our Approach; Community Resilience; Economic Contributions; Stakeholder Engagement & Materiality; Communities & Indigenous Peoples; Business Conduct & Policies; Letter to Stakeholders; Views from Our Corporate Responsibility Committee Chair; Economic Contributions Performance Data Form 10-K: Part II, Consolidated Results Economic Impact; Assessing & Managing Impacts on fcx.com
A45: GRI 200 ECONOMIC | B45: 203 Indirect Economic Impacts 2016 | C45: 203-1 | D45: Infrastructure investments and services supported | E45: Annual Report on Sustainability: Stakeholder Engagement & Materiality; Health, Safety & Well-being; Communities & Indigenous Peoples; Economic Contributions; Environment Economic Impact on fcx.com | F45: We report on a variety of community investments, and provide examples of infrastructure projects; we do not provide detailed data on the full extent of their impacts. | G45: SDG 2: Zero Hunger SDG 5: Gender Equality SDG 7: Affordable and Clean Energy SDG 9: Industry Innovation and Infrastructure SDG 11: Sustainable Cities and Communities
A46: GRI 200 ECONOMIC | B46: 203 Indirect Economic Impacts 2016 | C46: 203-2 | D46: Significant indirect economic impacts | E46: Annual Report on Sustainability: Stakeholder Engagement & Materiality; Communities & Indigenous Peoples; Economic Contributions; Performance Data Economic Impact on fcx.com | G46: SDG 1: No Poverty SDG 2: Zero Hunger SDG 3: Good Health and Well-Being SDG 8: Decent Work and Economic Growth SDG 10: Reduced Inequalities SDG 17: Partnerships for the Goals
A47: GRI 200 ECONOMIC | B47: 204 Procurement Practices 2016 | C47: 3-3 | D47: Management of material topics | E47: Annual Report on Sustainability: Our Approach; Stakeholder Engagement & Materiality; Business Conduct & Policies; Responsible Value Chains; Communities & Indigenous Peoples; Economic Contributions Economic Impact, Assessing & Managing Impacts on fcx.com Form 10-K: Part I, Sources and Availability of Energy, Natural Resources and Raw Materials
A48: GRI 200 ECONOMIC | B48: 204 Procurement Practices 2016 | C48: 204-1 | D48: Proportion of spending on local suppliers | E48: 2022 Procurement Spend Distribution: Local = 27% National = 54% Outside Home Country = 19% Annual Report on Sustainability: Responsible Value Chains > Local Procurement; Economic Contributions; Performance Data Economic Impact > Local Procurement on fcx.com | G48: SDG 12: Responsible Consumption and Production
A49: GRI 200 ECONOMIC | B49: 205 Anti-Corruption 2016 | C49: 3-3 | D49: Management of material topics | E49: Annual Report on Sustainability: Our Approach; Business Conduct & Policies; Economic Contributions; Responsible Value Chains Economic Impact on fcx.com Form 10-K: Part I, Risk Factors
A50: GRI 200 ECONOMIC | B50: 205 Anti-Corruption 2016 | C50: 205-1 | D50: Operations assessed for risks related to corruption | E50: Every year, our internal audit firm performs a company-wide, global business risk assessment to assist in planning the next year’s audit projects. This overall risk assessment includes corruption as a risk factor. Annual Report on Sustainability: Our Approach; Business Conduct & Policies; Our Strategy in Action: Responsible Production | F50: We perform an annual company-wide, global business risk assessment; however, we do not disclose significant risks related to corruption identified through the risk assessment. | G50: SDG 16: Peace, Justice and Strong Institutions
A51: GRI 200 ECONOMIC | B51: 205 Anti-Corruption 2016 | C51: 205-2 | D51: Communication and training about anti-corruption policies and procedures | E51: 100% of our employees completed comprehensive annual training on our PBC, including a 100% certification rate of management-level employees. This process consists of in-person or computer-based training, requiring employees to certify both their understanding of, and compliance with, the PBC. Board members participate in a similar certification process. Annual Report on Sustainability: Our Approach; Business Conduct & Policies | F51: We report on our Principles of Business Conduct and Anti-corruption training and provide percent completion rates; however, we do not provide a breakdown to the level of granularity requested by GRI. We do not disclose the total number of individuals trained or provide breakdowns by each employee category. | G51: SDG 16: Peace, Justice and Strong Institutions
A52: GRI 200 ECONOMIC | B52: 205 Anti-Corruption 2016 | C52: 205-3 | D52: Confirmed incidents of corruption and actions taken | E52: Freeport has zero tolerance for corruption of any kind. In addition to our employees, we hold our contractors and suppliers to this same standard. We do not obtain any business advantage through bribery, improper payments, kickbacks, or any other illegal means. No employee, contractor, or supplier may offer, pay, solicit, or accept bribes in any form, including facilitation payments. There we no public legal cases regarding corruption brought against the organization or its employees during the reporting period. | F52: FCX does not report on the aggregate number nor the nature of individual incidents or cases. | G52: SDG 16: Peace, Justice and Strong Institutions
A53: GRI 300 ENVIRONMENTAL | B53: 302 Energy 2016 | C53: 3-3 | D53: Management of material topics | E53: Annual Report on Sustainability: Letter to Stakeholders; Views from Our Corporate Responsibility Committee Chair; Climate; Our Approach; Thriving Environments > Climate; Performance Data Climate Report Form 10-K: Part I, General
A54: GRI 300 ENVIRONMENTAL | B54: 302 Energy 2016 | C54: 302-1 | D54: Energy consumption within the organization | E54: Annual Report on Sustainability: Climate; Performance Data Climate Report Form 10-K: Part I, General | F54: While we do report our energy consumption, we do not provide the methodology, assumptions, conversion factors, and/or calculation tools, related to these calculations. | G54: SDG 7: Affordable and Clean Energy SDG 8: Decent Work and Economic Growth SDG 12: Responsible Consumption and Production SDG 13: Climate Action
A55: GRI 300 ENVIRONMENTAL | B55: 302 Energy 2016 | C55: 302-2 | D55: Energy consumption outside of the organization | E55: Annual Report on Sustainability: Climate; Performance Data Climate Report | F55: While we do report our Scope 3 GHG emissions per the GHG Protocol in line with this indicator we do not disclose the underlying third-party energy use or all of the methodologies related to these calculations.
A56: GRI 300 ENVIRONMENTAL | B56: 302 Energy 2016 | C56: 302-3 | D56: Energy Intensity | E56: Annual Report on Sustainability: Climate; Performance Data Climate Report | F56: We disclose absolute energy consumption data by site and type; at this time, we do not report an energy intensity ratio. | G56: SDG 7: Affordable and Clean Energy SDG 8: Decent Work and Economic Growth SDG 13: Climate Action
A57: GRI 300 ENVIRONMENTAL | B57: 302 Energy 2016 | C57: 302-4 | D57: Reduction of energy consumption | E57: Annual Report on Sustainability: Climate Climate Report Freeport-McMoRan Inc. CDP - Climate Change 2022 (https://www.cdp.net/) | F57: Trend data and specific examples of reduction in energy consumption are available, however, we do not report a cumulative total for energy reductions achieved across the enterprise as a direct result of our initiatives. | G57: SDG 7: Affordable and Clean Energy SDG 8: Decent Work and Economic Growth SDG 12: Responsible Consumption and Production SDG 13: Climate Action
A58: GRI 300 ENVIRONMENTAL | B58: 302 Energy 2016 | C58: 302-5 | D58: Reductions in energy requirements of products and services | F58: Not applicable
A59: GRI 300 ENVIRONMENTAL | B59: 303 Water and Effluents 2018 | C59: 3-3 | D59: Management of material topics | E59: Annual Report on Sustainability: Our Approach; Letter to Stakeholders; Views from Our Corporate Responsibility Committee Chair; Climate; Water Stewardship; Environment; Business Conduct & Policies; Responsible Value Chains; Water Stewardship; Performance Data Water Report Form 10-K: Part I, General
A60: GRI 300 ENVIRONMENTAL | B60: 303 Water and Effluents 2018 | C60: 303-1 | D60: Interactions with water as a shared resource | E60: Annual Report on Sustainability: Our Strategy in Action: Responsible Production; Water Stewardship; Environmental Compliance; Performance Data Water Report | F60: We provide an description of how the organization interacts with water, our approach used to identify water-related impacts, an description of how water-related impacts are addressed. At this time we do not report on water impacts across our value chain. | G60: SDG 6: Clean Water and Sanitation
A61: GRI 300 ENVIRONMENTAL | B61: 303 Water and Effluents 2018 | C61: 303-2 | D61: Management of water discharge-related impacts | E61: Annual Report on Sustainability: Water Stewardship; Performance Data | F61: We report total water discharged by quality and destination based on ICMM Water Quality Guidelines. We do not report the minimum standards set for the quality of water discharged. | G61: SDG 6: Clean Water and Sanitation
A62: GRI 300 ENVIRONMENTAL | B62: 303 Water and Effluents 2018 | C62: 303-3 | D62: Water Withdrawal | E62: Annual Report on Sustainability: Water Stewardship; Performance Data | F62: We report water withdrawal by source and region. We do not currently provide a further breakdown for areas of water stress. | G62: SDG 6: Clean Water and Sanitation SDG 12: Responsible Consumption and Production
A63: GRI 300 ENVIRONMENTAL | B63: 303 Water and Effluents 2018 | C63: 303-4 | D63: Water Discharge | E63: Annual Report on Sustainability: Water Stewardship; Performance Data | F63: We report water discharge by source and region. We do not currently provide a further breakdown for areas of water stress or report priority substances of concern. | G63: SDG 6: Clean Water and Sanitation SDG 12: Responsible Consumption and Production
A64: GRI 300 ENVIRONMENTAL | B64: 303 Water and Effluents 2018 | C64: 303-5 | D64: Water consumption | E64: Annual Report on Sustainability: Water Stewardship; Performance Data Water Report | F64: We report water consumption by source and region. We do not currently provide a further breakdown for areas of water stress. | G64: SDG 6: Clean Water and Sanitation SDG 12: Responsible Consumption and Production
A65: GRI 300 ENVIRONMENTAL | B65: 304 Biodiversity 2016 | C65: 3-3 | D65: Management of material topics | E65: Annual Report on Sustainability: Biodiversity | G65: SDG 13: Climate Action SDG 14: Life Below Water SDG 15: Life on Land
A66: GRI 300 ENVIRONMENTAL | B66: 304 Biodiversity 2016 | C66: 304-1 | D66: Operational sites owned, leased, managed in, or adjacent to, protected areas and areas of high biodiversity value outside protected areas | E66: Annual Report on Sustainability: Biodiversity SASB Index PT-FI's operations are adjacent to Lorentz National Park - we have not and will not conduct any mining or exploration activities in Lorentz National Park. | G66: SDG 13: Climate Action SDG 14: Life Below Water SDG 15: Life on Land
A67: GRI 300 ENVIRONMENTAL | B67: 304 Biodiversity 2016 | C67: 304-2 | D67: Significant impacts of activities, products, and services on biodiversity | E67: Annual Report on Sustainability: Biodiversity; Tailings Management Tailings Management on fcx.com | G67: SDG 13: Climate Action SDG 14: Life Below Water SDG 15: Life on Land
A68: GRI 300 ENVIRONMENTAL | B68: 304 Biodiversity 2016 | C68: 304-3 | D68: Habitats protected or restored | E68: Annual Report on Sustainability: Biodiversity; Mine Closure & Reclamation; Performance Data | F68: We report examples of restoration, however we do not disclose the status of each site at the end of each reporting period. | G68: SDG 13: Climate Action SDG 14: Life Below Water SDG 15: Life on Land
A69: GRI 300 ENVIRONMENTAL | B69: 304 Biodiversity 2016 | C69: 304-4 | D69: IUCN Red List species and national conservation list species with habitats in areas affected by operations | E69: SASB Index | F69: We report biodiversity impacts relative to endangered species habitat based on SASB Metals & Mining standard, which include similar classifications to GRI 304 but are more relevant to mining. We do not report the total number of IUCN Red List species with habitats in areas affected by operations.
A70: G4 | B70: M&M Sector: Biodiversity | C70: MM1 | D70: Amount of land (owned or leased, and managed for production activities or extractive use) disturbed or rehabilitated | E70: Annual Report on Sustainability: Biodiversity; Mine Closure & Reclamation; Performance Data | G70: SDG 15: Life on Land
A71: G5 | B71: M&M Sector: Biodiversity | C71: MM2 | D71: The number and percentage of total sites identified as requiring biodiversity management plans according to stated criteria, and the number (percentage) of those sites with plans in place | E71: Annual Report on Sustainability: Biodiversity | G71: SDG 13: Climate Action SDG 14: Life Below Water SDG 15: Life on Land
A72: GRI 300 ENVIRONMENTAL | B72: 305 Emissions 2016 | C72: 3-3 | D72: Management of material topics | E72: Annual Report on Sustainability: Our Approach; Letter to Stakeholders; Views from Our Corporate Responsibility Committee Chair; Business Conduct & Policies; Climate Climate Report Form 10-K: Part I, Risk Factors
A73: GRI 300 ENVIRONMENTAL | B73: 305 Emissions 2016 | C73: 305-1 | D73: Direct (Scope I) GHG emissions | E73: Annual Report on Sustainability: Climate; Performance Data Climate Report Freeport-McMoRan Inc. CDP - Climate Change 2022 (https://www.cdp.net/) | F73: We disclose our Scope 1 GHG emissions in CO2 equivalent, however, greenhouse gases that are not applicable to our operations are noted in our CDP response. We do not report the source of the emission factors used, however our Scope 1 emissions are verified by a third party against ISO 14064 Greenhouse gases - Parts 1&3. | G73: SDG 3: Good Health and Well-Being SDG 12: Responsible Consumption and Production SDG 13: Climate Action SDG 14: Life Below Water SDG 15: Life on Land
A74: GRI 300 ENVIRONMENTAL | B74: 305 Emissions 2016 | C74: 305-2 | D74: Energy Indirect (Scope II) GHG emissions | E74: Annual Report on Sustainability: Climate; Performance Data Climate Report Freeport-McMoRan Inc. CDP - Climate Change 2022 (https://www.cdp.net/) | F74: We disclose our Scope 2 emissions in CO2 equivalent, however, greenhouse gases that are not applicable to our operations are noted in our CDP response. We do not report the source of the emission factors used, however our Scope 2 GHG emissions are verified by a third party against ISO 14064 Greenhouse gases - Parts 1&3. | G74: SDG 3: Good Health and Well-Being SDG 12: Responsible Consumption and Production SDG 13: Climate Action SDG 14: Life Below Water SDG 15: Life on Land
A75: GRI 300 ENVIRONMENTAL | B75: 305 Emissions 2016 | C75: 305-3 | D75: Other indirect (Scope III) GHG emissions | E75: Annual Report on Sustainability: Climate; Performance Data Climate Report Freeport-McMoRan Inc. CDP - Climate Change 2022 (https://www.cdp.net/) | F75: We report our scope 3 emissions by category, but do not report our emissions by gas type. We provide a summary overview of our scope 3 GHG emissions estimation methodology, but do not detail emission factors or calculation tools used. | G75: SDG 3: Good Health and Well-Being SDG 12: Responsible Consumption and Production SDG 13: Climate Action SDG 14: Life Below Water SDG 15: Life on Land
A76: GRI 300 ENVIRONMENTAL | B76: 305 Emissions 2016 | C76: 305-4 | D76: GHG emissions intensity | E76: Annual Report on Sustainability: Climate; Performance Data Climate Report Freeport-McMoRan Inc. CDP - Climate Change 2022 (https://www.cdp.net/) | F76: We report GHG emissions intensity data for Americas Copper and PT-FI, which make up over 90% of total scope 1 & 2 GHG emissions. We do not report the GHG emissions intensity ratio for the organization as a whole. | G76: SDG 12: Responsible Consumption and Production SDG 13: Climate Action SDG 14: Life Below Water SDG 15: Life on Land
A77: GRI 300 ENVIRONMENTAL | B77: 305 Emissions 2016 | C77: 305-5 | D77: Reduction of GHG emissions | E77: Annual Report on Sustainability: Climate; Performance Data Climate Report Freeport-McMoRan Inc. CDP - Climate Change 2022 (https://www.cdp.net/) | F77: We report to CDP Climate on our GHG emission reduction activities, as well as GHG emission trend data over time, compared to our base year of 2018. We do not report aggregate emission reductions achieved as a direct result of reduction initiatives. | G77: SDG 12: Responsible Consumption and Production SDG 13: Climate Action SDG 14: Life Below Water SDG 15: Life on Land
A78: GRI 300 ENVIRONMENTAL | B78: 305 Emissions 2016 | C78: 305-6 | D78: Emissions of ozone-depleting substances (ODS) | E78: Annual Report on Sustainability: Performance Data | G78: SDG 3: Good Health and Well-Being SDG 12: Responsible Consumption and Production SDG 13: Climate Action
A79: GRI 300 ENVIRONMENTAL | B79: 305 Emissions 2016 | C79: 305-7 | D79: Nitrogen oxides (NOX), sulfur oxides (SOX), and other significant air emissions | E79: Annual Report on Sustainability: Performance Data | G79: SDG 3: Good Health and Well-Being SDG 12: Responsible Consumption and Production SDG 13: Climate Action SDG 14: Life Below Water SDG 15: Life on Land
A80: GRI 300 ENVIRONMENTAL | B80: 306 Waste 2020 | C80: 3-3 | D80: Management of material topics | E80: Annual Report on Sustainability: Our Approach; Letter to Stakeholders; Views from Our Corporate Responsibility Committee Chair; Business Conduct & Policies; Waste Management; Tailings Management; Water Stewardship; Community Grievance Mechanism Form 10-K: Part I, Risk Factors Tailings Management Documents; Assessing & Managing Impacts on fcx.com
A81: GRI 300 ENVIRONMENTAL | B81: 306 Waste 2020 | C81: 306-1 | D81: Waste generation and significant waste related impacts | E81: Annual Report on Sustainability: Tailings Management; Waste Management; Performance Data Tailings Management Documents on fcx.com | G81: SDG 3: Good Health and Well-Being SDG 6: Clean Water and Sanitation SDG 12: Responsible Consumption and Production
A82: GRI 300 ENVIRONMENTAL | B82: 306 Waste 2020 | C82: 306-2 | D82: Management of significant waste related impacts | E82: Annual Report on Sustainability: Tailings Management; Waste Management; Performance Data Tailings Management Documents on fcx.com | G82: SDG 3: Good Health and Well-Being SDG 6: Clean Water and Sanitation SDG 12: Responsible Consumption and Production SDG 13: Climate Action
A83: GRI 300 ENVIRONMENTAL | B83: 306 Waste and Effluents 2016 | C83: 306-3 | D83: Significant spills | E83: Annual Report on Sustainability: Performance Targets; Environmental Compliance; Performance Data | G83: SDG 3: Good Health and Well-Being SDG 6: Clean Water and Sanitation SDG 12: Responsible Consumption and Production SDG 13: Climate Action SDG 14: Life Below Water SDG 15: Life on Land
A84: GRI 300 ENVIRONMENTAL | B84: 306 Waste 2020 | C84: 306-3 | D84: Waste generated | E84: Annual Report on Sustainability: Waste Management; Performance Data | G84: SDG 3: Good Health and Well-Being SDG 6: Clean Water and Sanitation SDG 12: Responsible Consumption and Production
A85: GRI 300 ENVIRONMENTAL | B85: 306 Waste 2020 | C85: 306-4 | D85: Waste diverted from disposal | E85: Annual Report on Sustainability: Waste Management; Performance Data | G85: SDG 12: Responsible Consumption and Production
A86: GRI 300 ENVIRONMENTAL | B86: 306 Waste 2020 | C86: 306-5 | D86: Waste directed to disposal | E86: Annual Report on Sustainability: Biodiversity; Tailings Management Tailings Management Documents on fcx.com
A87: G4 | B87: M&M: Tailings | C87: MM3 | D87: Total amounts of overburden, rock, tailings and sludges, and, their associated risks | E87: Annual Report on Sustainability: Tailings Management; Waste Management Tailings Management Documents on fcx.com Form 10-K: Part I, Operational Risks | G87: SDG 3: Good Health and Well-Being SDG 6: Clean Water and Sanitation SDG 11: Sustainable Cities and Communities SDG 12: Responsible Consumption and Production
A88: GRI 300 ENVIRONMENTAL | B88: 308 Supplier Environmental Assessment | C88: 3-3 | D88: Management of material topics | E88: Annual Report on Sustainability: Our Approach; Thriving Environments; Business Conduct & Policies; Responsible Value Chains FCX Environmental Policy
A89: GRI 300 ENVIRONMENTAL | B89: 308 Supplier Environmental Assessment | C89: 308-1 | D89: New suppliers that were screened using environmental criteria | E89: Annual Report on Sustainability: Business Conduct & Policies; Responsible Value Chains FCX's Environmental Policy | F89: We do screen new suppliers across a range of sustainability criteria, including environmental; we do not report on the percentage screened. | G89: SDG 12: Responsible Consumption and Production
A90: GRI 300 ENVIRONMENTAL | B90: 308 Supplier Environmental Assessment | C90: 308-2 | D90: Negative environmental impacts in the supply chain and actions taken | E90: For our minerals and metals supply chains, we report our due diligence tools and the number of suppliers flagged for a variety of risk factors, including environmental impact, and the corresponding risk review and actions taken. OECD Step 5 Due Diligence Report | F90: We disclose the number suppliers assessed, the number of orange or red flags, and corresponding action taken in the OECD Report. We do not report the percentage of suppliers identified as having significant impacts or those terminated as a result, nor is this reporting inclusive of our entire supply chain.
A91: GRI 400 SOCIAL | B91: 401 Employment 2016 | C91: 3-3 | D91: Management of material topics | E91: Annual Report on Sustainability: Our Approach; Workforce
A92: GRI 400 SOCIAL | B92: 401 Employment 2016 | C92: 401-1 | D92: New employee hires and employee turnover | E92: Annual Report on Sustainability: Workforce | F92: We report employee turnover statistics by age, gender and region, but we report new hires by region and gender (% globally) only during the period. | G92: SDG 5: Gender Equality SDG 8: Decent Work and Economic Growth SDG 10: Reduced Inequalities
A93: GRI 400 SOCIAL | B93: 401 Employment 2016 | C93: 401-2 | D93: Benefits provided to full-time employees that are not provided to temporary or part-time employees | E93: North America Employee Benefits Overview on fcx.com | F93: We disclose standard North American benefits. We do not disclose which benefits are received by temporary or part-time employees.
A94: GRI 400 SOCIAL | B94: 401 Employment 2016 | C94: 401-3 | D94: Parental leave | F94: Parental leave benefits vary by region. We do not disclose participation or return rates.
A95: G4 | B95: M&M: Labor | C95: MM4 | D95: Number of strikes and lock-outs exceeding one week's duration, by country | E95: Annual Report on Sustainability: Our Approach; Workforce In 2022, there were no strikes or lock-outs at any of our operations. | G95: SDG 3: Good Health and Well-Being SDG 8: Decent Work and Economic Growth SDG 10: Reduced Inequalities
A96: GRI 400 SOCIAL | B96: 403 Occupational Health and Safety 2018 | C96: 3-3 | D96: Management of material topics | E96: Annual Report on Sustainability: Our Approach; Letter to Stakeholders; Views from Our Corporate Responsibility Committee Chair; Health, Safety & Well-being
A97: GRI 400 SOCIAL | B97: 403 Occupational Health and Safety 2018 | C97: 403-1 | D97: Occupational health and safety management system | E97: Annual Report on Sustainability: Health, Safety & Well-being Our Occupational Health and Safety Management System is voluntarily certified in accordance with the ISO 45001 Health and Safety Management System. | G97: SDG 3: Good Health and Well-Being SDG 8: Decent Work and Economic Growth
A98: GRI 400 SOCIAL | B98: 403 Occupational Health and Safety 2018 | C98: 403-2 | D98: Hazard identification, risk assessment, and incident investigation | E98: Annual Report on Sustainability: Health, Safety & Well-being; Our Strategy in Action: Responsible Production | G98: SDG 3: Good Health and Well-Being SDG 8: Decent Work and Economic Growth
A99: GRI 400 SOCIAL | B99: 403 Occupational Health and Safety 2018 | C99: 403-3 | D99: Occupational health services | E99: Annual Report on Sustainability: Health, Safety & Well-being; Our Strategy in Action: Responsible Production | G99: SDG 3: Good Health and Well-Being SDG 8: Decent Work and Economic Growth
A100: GRI 400 SOCIAL | B100: 403 Occupational Health and Safety 2018 | C100: 403-4 | D100: Worker participation, consultation, and communication on occupational health and safety | E100: Annual Report on Sustainability: Health, Safety & Well-being | F100: We report on our expectation that every member of our workforce engage in our health and safety program. We do not report on formal joint management-worker health and safety committees. | G100: SDG 3: Good Health and Well-Being SDG 8: Decent Work and Economic Growth
A101: GRI 400 SOCIAL | B101: 403 Occupational Health and Safety 2018 | C101: 403-5 | D101: Worker training on occupational health and safety | E101: Annual Report on Sustainability: Health, Safety & Well-being | G101: SDG 3: Good Health and Well-Being SDG 8: Decent Work and Economic Growth
A102: GRI 400 SOCIAL | B102: 403 Occupational Health and Safety 2018 | C102: 403-6 | D102: Promotion of worker health | E102: Annual Report on Sustainability: Health, Safety & Well-being | G102: SDG 3: Good Health and Well-Being SDG 8: Decent Work and Economic Growth
A103: GRI 400 SOCIAL | B103: 403 Occupational Health and Safety 2018 | C103: 403-7 | D103: Prevention and mitigation of occupational health and safety impacts directly linked by business relationships | E103: Annual Report on Sustainability: Health, Safety & Well-being | G103: SDG 3: Good Health and Well-Being SDG 8: Decent Work and Economic Growth
A104: GRI 400 SOCIAL | B104: 403 Occupational Health and Safety 2018 | C104: 403-8 | D104: Workers covered by an occupational health and safety management system | E104: Every member of our workforce is empowered to engage in our health and safety program, including our occupational health and safety management system. Annual Report on Sustainability: Health, Safety & Well-being | F104: Our occupational health and safety management system is ISO 45001 certified; we do not report coverage percentages as outlined by GRI.
A105: GRI 400 SOCIAL | B105: 403 Occupational Health and Safety 2018 | C105: 403-9 | D105: Work-related injuries | E105: Annual Report on Sustainability: Health, Safety & Well-being; Performance Data | G105: SDG 3: Good Health and Well-Being SDG 8: Decent Work and Economic Growth
A106: GRI 400 SOCIAL | B106: 403 Occupational Health and Safety 2018 | C106: 403-10 | D106: Work-related ill health | F106: We do not report this indicator at this time.
A107: GRI 400 SOCIAL | B107: 404 Training and Education 2016 | C107: 3-3 | D107: Management of material topics | E107: Annual Report on Sustainability: Our Approach; Workforce; Communities & Indigenous Peoples Communities & Indigenous Peoples on fcx.com
A108: GRI 400 SOCIAL | B108: 404 Training and Education 2016 | C108: 404-1 | D108: Average hours of training per year per employee | E108: Annual Report on Sustainability: Workforce FMJobs.com | F108: We describe various training and development opportunities available to our employees; however, at this time we do not report the average of hours of training provided. | G108: SDG 4: Quality Education SDG 8: Decent Work and Economic Growth
A109: GRI 400 SOCIAL | B109: 404 Training and Education 2016 | C109: 404-2 | D109: Programs for upgrading employee skills and transition assistance programs | E109: Annual Report on Sustainability: Workforce | F109: We describe various training and development opportunities available to our employees; however, at this time we do not describe transition assistance programs.
A110: GRI 400 SOCIAL | B110: 404 Training and Education 2016 | C110: 404-3 | D110: Percentage of employees receiving regular performance and career development reviews | E110: Annual Report on Sustainability: Workforce | F110: We describe career development opportunities; however we do not report the percentage of employees participating in formal reviews.
A111: GRI 400 SOCIAL | B111: 405 Diversity and Equal Opportunity 2016 | C111: 3-3 | D111: Management of material topics | E111: Annual Report on Sustainability: Our Approach; Workforce
A112: GRI 400 SOCIAL | B112: 405 Diversity and Equal Opportunity 2016 | C112: 405-1 | D112: Diversity of governance bodies and employees | E112: Annual Report on Sustainability: Our Approach; Robust Governance; Workforce Proxy Statement: Information About Director Nominees | F112: We provide several breakdowns of our workforce data by age, gender, and ethnicity however, all breakdowns as requested by GRI are not provided for each employee category. | G112: SDG 5: Gender Equality SDG 8: Decent Work and Economic Growth
A113: GRI 400 SOCIAL | B113: 405 Diversity and Equal Opportunity 2016 | C113: 405-2 | D113: Ratio of basic salary and remuneration of women to men | E113: Annual Report on Sustainability: Workforce | G113: SDG 5: Gender Equality SDG 8: Decent Work and Economic Growth SDG 10: Reduced Inequalities
A114: GRI 400 SOCIAL | B114: 406 Non-discrimination 2016 | C114: 3-3 | D114: Management of material topics | E114: Annual Report on Sustainability: Our Approach; Business Conduct & Policies; Workforce Human Rights Policy
A115: GRI 400 SOCIAL | B115: 406 Non-discrimination 2016 | C115: 406-1 | D115: Incidents of discrimination and corrective actions taken | E115: Annual Report on Sustainability: Robust Governance; Workforce | F115: We report on our non-discrimination and grievance programs; however as well as the total number of employee grievances received through our Compliance Line. We do not report the total number or status of incidents of discrimination. | G115: SDG 5: Gender Equality SDG 8: Decent Work and Economic Growth SDG 16: Peace, Justice and Strong Institutions
A116: GRI 400 SOCIAL | B116: 407 Freedom of Association and Collective Bargaining 2016 | C116: 3-3 | D116: Management of material topics | E116: Annual Report on Sustainability: Our Approach; Robust Governance; Workforce Human Rights Policy Form 10-K
A117: GRI 400 SOCIAL | B117: 407 Freedom of Association and Collective Bargaining 2016 | C117: 407-1 | D117: Operations and suppliers in which the right to freedom of association and collective bargaining may be at risk | E117: We do not believe that the right to exercise freedom of association and collective bargaining is at significant risk at any of our operations and we work to embed our human rights policy and respect for people across our operations. Our grievance mechanisms enable workers - without fear of retaliation - to report if they believe this right is being violated. Annual Report on Sustainability: Workforce; Performance Data | G117: SDG 8: Decent Work and Economic Growth
A118: GRI 400 SOCIAL | B118: 408 Child Labor 2016 | C118: 3-3 | D118: Management of material topics | E118: Annual Report on Sustainability: Our Approach; Responsible Value Chains; Human Rights Human Rights Policy Responsible Sourcing of Minerals Policy Human Rights on fcx.com
A119: GRI 400 SOCIAL | B119: 408 Child Labor 2016 | C119: 408-1 | D119: Operations and suppliers at significant risk for incidents of child labor | E119: In late 2022, during an internal review of subcontractor records at PT-FI, potential instances of underage workers at the Manyar smelter project were identified (see Annual Report on Sustainability: Human Rights). Annual Report on Sustainability: Business Conduct & Policies; Human Rights; Responsible Value Chains Human Rights Policy Business Partner Code of Conduct Responsible Souring of Minerals Policy Human Rights on fcx.com UK MSA Statement | G119: SDG 8: Decent Work and Economic Growth SDG 16: Peace, Justice and Strong Institutions
A120: GRI 400 SOCIAL | B120: 409 Forced or Compulsory Labor 2016 | C120: 3-3 | D120: Management of material topics | E120: Annual Report on Sustainability: Our Approach; Human Rights; Responsible Value Chains Human Rights Policy Responsible Sourcing of Minerals Policy Human Rights on fcx.com OECD Step 5 Due Diligence Report
A121: GRI 400 SOCIAL | B121: 409 Forced or Compulsory Labor 2016 | C121: 409-1 | D121: Operations and suppliers at significant risk for incidents of forced or compulsory labor | E121: We prohibit forced, compulsory and child labor and human trafficking. We do not believe that any of our operations are at significant risk for incidents of forced or compulsory labor. Annual Report on Sustainability: Business Conduct & Policies; Human Rights; Responsible Value Chains; Workforce Human Rights Policy Business Partner Code of Conduct Responsible Souring of Minerals Policy Human Rights on fcx.com UK MSA Statement OECD Step 5 Due Diligence Report | G121: SDG 8: Decent Work and Economic Growth
A122: GRI 400 SOCIAL | B122: 410 Security Practices 2016 | C122: 3-3 | D122: Management of material topics | E122: Annual Report on Sustainability: Our Approach Human Rights Policy
A123: GRI 400 SOCIAL | B123: 410 Security Practices 2016 | C123: 410-1 | D123: Security personnel trained in human rights policies or procedures | E123: Security contractors are required to comply with the operations’ Human Rights Policies, including receiving human rights training and instructions to immediately notify the Company of any human rights related incidents or allegations. Voluntary Principles Report | F123: We report number of private security personnel who received human rights training by location in our Voluntary Principles Report, we do not report the percent of security personnel trained. | G123: SDG 16: Peace, Justice and Strong Institutions
A124: GRI 400 SOCIAL | B124: 411 Rights of Indigenous Peoples 2016 | C124: 3-3 | D124: Management of material topics | E124: Annual Report on Sustainability: Our Approach; Human Rights; Communities & Indigenous Peoples Social Performance Policy Human Rights Policy Land Use and Customary Rights at PT-FI on fcx.com
A125: GRI 400 SOCIAL | B125: 411 Rights of Indigenous Peoples 2016 | C125: 411-1 | D125: Incidents of violations involving rights of indigenous peoples | E125: Annual Report on Sustainability: Communities & Indigenous Peoples; Human Rights Human Rights, Assessing and Managing Impacts, Communities & Indigenous Peoples, Land Use and Customary Rights at PT-FI on fcx.com | F125: We report the number of gross human rights violations and disclose our programs and performance in our Voluntary Principles on Security and Human Rights Annual Report to the Plenary. We do not report the total number of incidents or status of violations of indigenous peoples' rights. | G125: SDG 2: Zero Hunger SDG 10: Reduced Inequalities
A126: G4 | B126: M&M: Indigenous Peoples | C126: MM5 | D126: Total number of operations taking place in or adjacent to Indigenous Peoples' territories, and number and percentage of operations or sites where there are formal agreements with Indigenous Peoples' communities | E126: Annual Report on Sustainability: Communities & Indigenous Peoples Land Use and Customary Rights at PT-FI on fcx.com Voluntary Principles Report | F126: We disclose the groups with whom we engage on a routine or periodic basis for each region of our operations. | G126: SDG 1: No Poverty SDG 2: Zero Hunger SDG 3: Good Health and Well-Being SDG 10: Reduced Inequalities
A127: GRI 400 SOCIAL | B127: 413 Local Communities 2016 | C127: 3-3 | D127: Management of material topics | E127: Annual Report on Sustainability: Our Approach; Communities & Indigenous Peoples Social Performance Policy
A128: GRI 400 SOCIAL | B128: 413 Local Communities 2016 | C128: 413-1 | D128: Operations with local community engagement, impact assessments, and development programs | E128: All of our operations have a stakeholder engagement process in place, commensurate with the size and complexity of the operation. Annual Report on Sustainability: Our Approach; Stakeholder Engagement; Communities & Indigenous Peoples Assessing and Managing Impacts on fcx.com | G128: SDG 4: Quality Education SDG 8: Decent Work and Economic Growth SDG 10: Reduced Inequalities SDG 11: Sustainable Cities and Communities
A129: GRI 400 SOCIAL | B129: 413 Local Communities 2016 | C129: 413-2 | D129: Operations with significant actual and potential negative impacts on local communities | E129: To identify potential and actual negative impacts on our host communities we conduct due diligence on an ongoing basis. In all cases there are stakeholder engagement activities that are commensurate with the size and complexity of the operation. For all of our mining operations we conduct Human Rights Impact Assessments (HRIAs) using a third party and publish a summary of the results on our website. In addition our grievance mechanisms enable us to identify potential or actual impacts to communities. We follow UNGP guidelines for providing remedy where actual impacts are identified. Annual Report on Sustainability: Human Rights; Communities and Indigenous Peoples Human Rights: Due Diligence on fcx.com
A130: G4 | B130: M&M: Local Communities | C130: MM6 | D130: Number and description of significant disputes relating to land use, customary rights of local communities and Indigenous Peoples | E130: Communities & Indigenous Peoples, Land Use and Customary Rights and Community Grievance Mechanisms on fcx.com | G130: SDG 1: No Poverty SDG 2: Zero Hunger SDG 8: Decent Work and Economic Growth SDG 10: Reduced Inequalities SDG 11: Sustainable Cities and Communities
A131: G4 | B131: M&M: Local Communities | C131: MM7 | D131: The extent to which grievance mechanisms were used to resolve disputes relating to land use, customary rights of local communities and Indigenous Peoples, and the outcomes | E131: Communities & Indigenous Peoples, Land Use and Customary Rights and Community Grievance Mechanisms on fcx.com | G131: SDG 1: No Poverty SDG 2: Zero Hunger SDG 4: Quality Education SDG 8: Decent Work and Economic Growth SDG 10: Reduced Inequalities SDG 11: Sustainable Cities and Communities
A132: GRI 400 SOCIAL | B132: 414 Supplier Social Assessment 2016 | C132: 3-3 | D132: Management of material topics | E132: Annual Report on Sustainability: Our Approach; Business Conduct & Policies; Responsible Value Chains; Economic Contributions; Local Procurement Business Partner Code of Conduct Economic Impact on fcx.com
A133: GRI 400 SOCIAL | B133: 414 Supplier Social Assessment 2016 | C133: 414-1 | D133: New suppliers that were screened using social criteria | E133: Our online due diligence system, the Freeport Compliance exchange (FCeX), is designed to assess risk in the areas of anti-corruption, international trade, human rights and responsible sourcing. In 2020, Freeport added a number of sustainability-related questions to the FCeX survey to gain a better picture of the risks a supplier may present across ESG issues. In 2021, Freeport completed its global roll out of FCeX and the survey is now being utilized for all new vendors as our first line of due diligence in our responsible sourcing program. Business Partner Code of Conduct Annual Report on Sustainability: Business Conduct & Policies; Responsible Value Chains; Human Rights UK MSA Statement | F133: We screen new suppliers across a range of sustainability criteria, including social aspects of sustainability. We do not report on the percentage screened. | G133: SDG 5: Gender Equality SDG 8: Decent Work and Economic Growth SDG 12: Responsible Consumption and Production SDG 16: Peace, Justice and Strong Institutions
A134: GRI 400 SOCIAL | B134: 414 Supplier Social Assessment 2016 | C134: 414-2 | D134: Negative social impacts in the supply chain and actions taken | E134: For our minerals and metals supply chains, we report our due diligence tools and the number of suppliers flagged for a variety of risk factors. OECD Step 5 Due Diligence Report | F134: We disclose the number suppliers assessed, the number of orange or red flags, and corresponding action taken in the OECD Report. We do not report the percentage of suppliers identified as having significant impacts or those terminated as a result, nor is this reporting inclusive of our entire supply chain.
A135: G4 | B135: M&M Sector: Artisanal and Small-Scale Mining | C135: MM8 | D135: Number (and percentage) of company operating sites where artisanal and small-scale mining (ASM) takes place on, or adjacent to, the site; the associated risks and the actions taken to manage and mitigate these risks | E135: Annual Report on Sustainability: Illegal Artisanal Mining
A136: G4 | B136: M&M Sector: Resettlement | C136: MM9 | D136: Sites where resettlements took place, the number of households resettled in each, and how their livelihoods were affected in the process | E136: We are committed to respecting the human rights of community members and, when unavoidable, conducting community resettlement activities in alignment with international best practice. This commitment is reflected in our Human Rights Policy and Social Performance Management System. We did not have any community resettlement activities in 2022.
A137: G4 | B137: M&M Sector: Closure Planning | C137: MM10 | D137: Number and percentage of operations with closure plans | E137: Annual Report on Sustainability: Mine Closure & Reclamation Form 10-K: Risk Factors | G137: SDG 14: Life Below Water SDG 15: Life on Land
A139: Freeport-McMoRan maintains a sustainability reporting prioritization assessment process to define topics and their level of priority to the company and its stakeholders for inclusion in its sustainability reporting. The process allows for: • A structured and objective approach for decision-making and planning around sustainability reporting • Selecting topics to include in annual sustainability reporting based on a documented measurement approach and evaluation of sustainability topics of importance to internal and external stakeholders • Monitoring trends in sustainability topics of importance to stakeholders over time • Adherence to the GRI Standards framework The prioritization process requires a cross-review of documents and systems that summarize stakeholder engagements, such as queries received from value chain members, as well as community and employee grievance reports, community engagement processes and reports, environmental and social impact assessment reports, employee surveys, and meetings with financial stakeholders, NGOs and industry groups. These reviews are used to prioritize the level of importance of reporting topics to key groups with whom we regularly engage as part of our business at the corporate and operational levels. To align prioritization of reporting topics from the perspective of importance to our business, we review the outputs of our operations’ risk register process and consider the topics addressed in our corporate public reporting, including our filings with the U.S. Securities and Exchange Commission. In most instances, key sustainability topics prioritized by our business are also of high importance to stakeholders. On occasion, we have chosen to report on GRI Standards indicators that may not be of high importance to internal or external stakeholders because our reporting systems historically have captured the information, which is used by certain groups, such as sustainability analysts. Data presented in this section include the primary operations of Freeport-McMoRan’s mining subsidiaries: Freeport Minerals Company (FMC) and PT Freeport Indonesia (PT-FI) for the period January 1, 2022 to December 31, 2022, unless otherwise stated. This index also highlights alignment to the UN Sustainable Development Goals.

Sheet ICMM
A1: INTERNATIONAL COUNCIL OF MINING AND METALS (ICMM) PRINCIPLES
A3: We disclose in alignment with the Performance Expectations at the corporate level. For our asset-level reports, please see our website at fcx.com.
A4: Websites and links can be found in the references tab.
A5: PRINCIPLE | B5: PRINCIPLE DESCRIPTION | C5: PERFORMANCE EXPECTATION | D5: DESCRIPTION | E5: FCX RESPONSE
A6: PRINCIPLE 1: ETHICAL BUSINESS | B6: Apply ethical business practices and sound systems of corporate governance and transparency to support sustainable development. | C6: 1.1 | D6: Establish systems to maintain compliance with applicable law. | E6: FCX is committed to the highest level of ethical and legal conduct in all of our business activities. Acting ethically involves more than simply complying with laws and regulations; it involves recognition that our decisions affect others. By keeping this in mind, we aspire to earn the respect, trust and confidence of our stakeholders. • Form 10-K • Information can be found in our 2022 Annual Report on Sustainability: Robust Governance > Business Conduct & Policies
A7: PRINCIPLE 1: ETHICAL BUSINESS | B7: Apply ethical business practices and sound systems of corporate governance and transparency to support sustainable development. | C7: 1.2 | D7: Implement policies and practices to prevent bribery, corruption and to publicly disclose facilitation payments. | E7: FCX has zero tolerance for corruption of any kind. In addition to employees, FCX holds business partners to this same standard. FCX does not obtain a business advantage through bribery, improper payments, kickbacks or any other illegal means. No employee or business partner may offer, pay, solicit or accept bribes in any form, including facilitation payments. • Principles of Business Conduct (PBC) • Business Partner Code of Conduct (BPCC) • Anti-Corruption Policy • Information can be found in our 2022 Annual Report on Sustainability: Robust Governance > Business Conduct & Policies, Responsible Value Chains
A8: PRINCIPLE 1: ETHICAL BUSINESS | B8: Apply ethical business practices and sound systems of corporate governance and transparency to support sustainable development. | C8: 1.3 | D8: Implement policies and standards consistent with the ICMM policy framework. | E8: To facilitate implementation of our policy commitments and objectives, we utilize a combination of audit and assessment programs along with an annual program for site-level third-party assurance of our sustainability framework—including the implementation of our commitments under the ICMM Mining with Principles Framework and the Copper Mark. We report and track our progress in our Annual Report on Sustainability as well as other external disclosures including the Voluntary Principles Report to the Plenary (VPs), the UK Modern Slavery Act Statement, the OECD Step 5 Report and site summary reports published by the Copper Mark available at coppermark.org. • Voluntary Principles Report to the Plenary • UK Modern Slavery Act Statement • OECD Step 5 Report • Information can be found in our 2022 Annual Report on Sustainability: Robust Governance
A9: PRINCIPLE 1: ETHICAL BUSINESS | B9: Apply ethical business practices and sound systems of corporate governance and transparency to support sustainable development. | C9: 1.4 | D9: Assign accountability for sustainability performance at the Board and/or Executive Committee level. | E9: The Corporate Responsibility Committee (CRC), on behalf of the Board, oversees FCX’s environmental and social policies and implementation programs and related risks. The CRC reviews the effectiveness of FCX's strategies, programs, and policy implementation with respect to health and safety, responsible production frameworks, climate, tailings management and stewardship, water stewardship, biodiversity and land management, waste management, human rights, stakeholder relations, social performance and Indigenous Peoples, responsible sourcing and political activity and spending practices. During 2022, the CRC had four regularly scheduled meetings. Additionally, each of the Audit, Governance and Compensation Committees oversee key ESG matters. The Audit Committee oversees our global compliance program and corporate compliance procedures, our information technology and cybersecurity processes and procedures, and provides ultimate oversight of our global tax strategy as part of its financial oversight responsibilities. The Governance Committee maintains our Corporate Governance Guidelines and oversees our corporate governance practices and procedures. The Compensation Committee oversees our human capital management policies, programs, practices and strategies, including those relating to workforce recruitment, retention and development, pay equity and inclusion and diversity. Our Chairman and CEO has ultimate responsibility for FCX’s sustainability performance, with active oversight from the Board. FCX’s cross-functional Sustainability Leadership Team (SLT) includes members of the management team tasked with defining the sustainability strategy and implementing our sustainability policies, systems and programs across the organization to achieve integrated decision-making for responsible production and performance. The SLT is sponsored by FCX’s Chief Administrative Officer and is led by the Chief Sustainability Officer, with active participation from other members of the SLT, including five business unit Presidents. SLT membership also includes senior leadership from functional groups including health and safety, security, supply chain, human resources, sales, legal, compliance, sustainability and finance. In 2022, the SLT met nine times and members of the SLT regularly reported to executive leadership, including the Chairman and CEO and the president. In addition, members of the SLT regularly report to the relevant Board committees on key ESG matters and periodically report to the full Board. Executive officers are held accountable for the company’s sESG performance through the company’s performance-based annual incentive program (AIP) via pre-determined ESG metrics aligned with our key ESG commitments and priorities.. In 2022, ESG metrics collectively accounted for 25% of the AIP (15% safety and 10% sustainability), with the sustainability metric including the Copper Mark, climate, human rights, tailings management and workforce inclusion and diversity priorities. • 2023 Proxy Statement: ESG & Sustainability - Governance • CRC Charter • Information can be found in our 2022 Annual Report on Sustainability: Our Approach; Letter to Stakeholders; Views from our CRC Chair
A10: PRINCIPLE 1: ETHICAL BUSINESS | B10: Apply ethical business practices and sound systems of corporate governance and transparency to support sustainable development. | C10: 1.5 | D10: Disclose the value and beneficiaries of financial and in-kind political contributions whether directly or through an intermediary. | E10: FCX recognizes that public policy decisions can significantly affect our operations, future business opportunities, employees, shareholders and the communities in which FCX operates. For this reason, FCX exercises its right and responsibility to participate in public policy matters by following public matters that are important to FCX and interacting, where appropriate, with elected and appointed government officials, regulators and their staff. FCX is committed to the highest level of ethical and legal conduct and transparency regarding its political activity and spending practices. This commitment also includes rigorous compliance with applicable laws and regulations. • Information can be found in FCX’s CRC Charter, Anti-Corruption Policy and Political Activity and Spending Practices on our website at fcx.com
A11: PRINCIPLE 2: DECISION MAKING | B11: Integrate sustainable development in corporate strategy and decision-making processes. | C11: 2.1 | D11: Integrate sustainable development principles into corporate strategy and decision-making processes relating to investments and in the design, operation and closure of facilities. | E11: FCX’s cross-functional SLT includes members of the management team tasked with defining the sustainability strategy and implementing sustainability policies, systems, and programs across the organization to achieve integrated decision-making for responsible production and performance. The SLT evolved FCX’s sustainability strategy, formalized its integration throughout the company and clarified the ambition: Accelerate the Future, Responsibly. FCX integrates its voluntary commitments, policies and practices into the risk register process, which drives action both at site and project level. Regular measurement and reporting support FCX’s understanding of the company’s current performance, including any gaps, and the actions to take to improve. FCX seeks to plan and operate its mines in a manner that considers post-mining land use well in advance of mine closure. Likewise, when designing new projects or expanding existing ones, FCX plans for how the land can be reclaimed once the mine closes. FCX’s philosophy of responsible production continues after closure of mining and processing sites through to reclamation. FCX strives to partner collaboratively with host communities and Indigenous Peoples to define and deliver shared value, throughout the mine life cycle. We not only seek to avoid, minimize and mitigate negative impacts from FCX operations but also aim to provide long-lasting benefits to our neighbors – beyond closure. We aim to work in partnership with host communities – which in many cases includes Indigenous Peoples – to help build resiliency and well-being at the individual- and institutional-level to help people thrive over the life of our mines and beyond. • Information can be found in our 2022 Annual Report on Sustainability: Our Approach; Thriving Environments > Mine Closure and Reclamation
A12: PRINCIPLE 2: DECISION MAKING | B12: Integrate sustainable development in corporate strategy and decision-making processes. | C12: 2.2 | D12: Support the adoption of responsible physical and psychological health and safety, environmental, human rights and labour policies and practices by joint venture partners, suppliers and contractors, based on risk. | E12: At each FCX operation, we aim to be a preferred employer, neighbor, business partner and supplier. We are committed to responsibly managing our social impacts on people, which includes focusing on the health, safety and security of our workforce and host communities and respecting the rights of people who may be impacted by FCX’s business. Various programs to address psychological safety are currently under evaluation. FCX recognizes that mining impacts the natural environment. We are committed to conducting our mining and processing operations in a manner that minimizes adverse impacts on the environment and supports protection of the natural environment and ecosystems through responsible environmental stewardship, strong management systems and continuous improvement. Effective environmental protection and stewardship are key to ensuring the long-term viability of our business, including maintaining the necessary support from host communities and governments. FCX’s Business Partner Code of Conduct and compliance screening processes represent the foundation of FCX’s responsible sourcing program for all suppliers globally. Based on the PBC, FCX’s Business Partner Code of Conduct sets forth expectations for business partners in areas such as safety, human rights, anti-corruption, community and environment. FCX mandates human rights standards through its supplier contracts. • Information can be found in our 2022 Annual Report on Sustainability: Robust Governance > Business Conduct & Policies; Our Approach; Empowered People & Resilient Communities; Thriving Environments
A13: PRINCIPLE 3: HUMAN RIGHTS | B13: Respect human rights and the interests, cultures, customs and values of employees and communities affected by our activities. | C13: 3.1 | D13: Support the UN Guiding Principles on Business and Human Rights by developing a policy commitment to respect human rights, undertaking human rights due diligence and providing for or cooperating in processes to enable the remediation of adverse human rights impacts that members have caused or contributed to. | E13: FCX is dedicated to the recognition, respect and promotion of human rights wherever it does business. Respect is a core value that guides how FCX does business . We are committed to respecting the rights of all people, including our employees, business partners, community members and others who potentially may be impacted by our business activities. We take this obligation seriously in all aspects of our business, and we expect the same of our business partners. We also recognize that human rights are overarching and that they connect to every aspect of our business. As such, we aim to promote human rights through proactive engagement with host governments and communities and by training our employees and contractors. As FCX seeks to further embed respect for human rights across our organizational activities, it has various due diligence processes that help to identify and assess which human rights topics are most salient at the site-level so that the company can manage and integrate these risks into ongoing operational work. We use our risk register process to identify risks to people at our existing operations. We also have a risk identification process for our new or growth projects to address potential and actual impacts on rights-holders. We implement and refine our approach to human rights through ongoing stakeholder engagement, grievance management and the findings from our human rights impact assessments (HRIAs). FCX respects internationally recognized human rights, including the rights under the International Bill of Human Rights, and is committed to implementing the United Nations Guiding Principles on Business and Human Rights (UNGPs). We work toward continuous improvement in establishing greater institutional awareness and deeper understanding of what human rights are and how they impact every role within the company. We also are committed to comply with the UK Modern Slavery Act, aimed at minimizing the risk of slavery and human trafficking throughout our business and supply chain. Our most recent UK Modern Slavery Act Statement is available on ‘fcx.com’. • Voluntary Principles Report • UK Modern Slavery Act Statement • 2021 OECD Step 5 Due Diligence Report • Information can be found in our 2022 Annual Report on Sustainability: Robust Governance; Empowered People & Resilient Communities; and on the Robust Governance > Human Rights > Due Diligence page on fcx.com.
A14: PRINCIPLE 3: HUMAN RIGHTS | B14: Respect human rights and the interests, cultures, customs and values of employees and communities affected by our activities. | C14: 3.2 | D14: Avoid the involuntary physical or economic displacement of families and communities. Where this is not possible apply the mitigation hierarchy and implement actions or remedies that address residual adverse effects to restore or improve livelihoods and standards of living of displaced people. | E14: We are committed to respecting the human rights of community members and, when unavoidable, conducting community resettlement activities in alignment with international best practices. This commitment is reflected in our Social Performance Policy, Human Rights Policy and Responsible Sourcing of Minerals Policy. We did not have any community resettlement activities in 2022.
A15: PRINCIPLE 3: HUMAN RIGHTS | B15: Respect human rights and the interests, cultures, customs and values of employees and communities affected by our activities. | C15: 3.3 | D15: Implement, based on risk, a human rights and security approach consistent with the Voluntary Principles on Security and Human Rights. | E15: We are committed to respecting internationally recognized human rights as set out in the VPs. The VPs serve as guidelines for our security and human rights programs, including for interactions with host-government police, military personnel and private security contractors. We focus our implementation primarily on Indonesia and Peru, which are our higher-risk jurisdictions for security and human rights matters. The VPs serve as a key component of our broader human rights program, which includes implementation of the UNGPs. Not all human rights issues are security issues, and not all security issues are human rights issues—it is at the nexus of human rights and security where our implementation of the VPs resides. We have remained an active participant in the VPs Initiative since it was first established in 2000. • Voluntary Principles Report to the Plenary • Information can be found in our 2022 Annual Report on Sustainability: Robust Governance > Responsible Value Chains; and on the Robust Governance > Human Rights > Security & Human Rights page our website at fcx.com.
A16: PRINCIPLE 3: HUMAN RIGHTS | B16: Respect human rights and the interests, cultures, customs and values of employees and communities affected by our activities. | C16: 3.4 | D16: Respect the rights of workers by: not employing child or forced labour; avoiding human trafficking; not assigning hazardous/dangerous work to those under 18; eliminating harassment and discrimination; respecting freedom of association and collective bargaining and; providing a mechanism to address workers grievances. | E16: Our Business Partner Code of Conduct and compliance screening processes are the foundation of our responsible sourcing program for goods and services. We are committed to operating in a manner consistent with the UNGC Ten Principles, including Labour Principles 3, 4, 5 and 6. • PBC • Inclusion & Diversity Policy • Social Performance Policy • Human Rights Policy • Responsible Sourcing of Minerals Policy • Business Partner Code of Conduct • UK Modern Slavery Act Statement • Information can be found in our 2022 Annual Report on Sustainability: Our Approach: Responsible Value Chains; Robust Governance > Human Rights; Empowered People & Resilient Communities > Workforce
A17: PRINCIPLE 3: HUMAN RIGHTS | B17: Respect human rights and the interests, cultures, customs and values of employees and communities affected by our activities. | C17: 3.5 | D17: Equitably remunerate employees with wages that equal or exceed legal requirements or represent a competitive wage within that job market (whichever is higher) and assign regular and overtime working hours within legally required limits. | E17: We focus on attracting and retaining talented people by offering quality employment with fair and equitable compensation and benefits, as well as with opportunities for professional development and advancement. We are committed to respecting the rights of our workforce, including paying fair and equal wages. Our approach to compensation and benefits is market-based, competitive and informed by annual benchmarking and analysis. This includes equal pay for equal work and compensation levels that support the acquisition of the goods and services necessary for an average-size family to meet their basic needs in the geographic locations where we operate—often referred to as a living wage. We also develop schedules that keep regular and overtime hours within legally required limits. In 2022, we continued working with BSR, a global sustainability nonprofit, on a living wage assessment for both full-time and part-time employees. BSR provided expertise as well as living wage benchmark rates for each of FCX’s locations globally, including operating sites, office locations, remediation and discontinued operations, and smaller processing locations. BSR’s living wage benchmark rates exceed the minimum wages in all 42 locations. All applicable employees were tested and found to meet BSR’s living wage benchmark for their respective locations. In 2022, we completed a pilot living wage assessment of on-site contractors, with input and guidance from BSR, with a view to extending our living wage commitment to our on-site contractors in the future. We are working with BSR to evaluate next steps in 2023. • PBC • Information can be found in our 2022 Annual Report on Sustainability: Empowered People & Resilient Communities > Workforce
A18: PRINCIPLE 3: HUMAN RIGHTS | B18: Respect human rights and the interests, cultures, customs and values of employees and communities affected by our activities. | C18: 3.6 | D18: Respect the rights, interests, aspirations, culture and natural resource-based livelihoods of Indigenous Peoples in project design, development and operation; apply the mitigation hierarchy to address adverse impacts and; deliver sustainable benefits for Indigenous Peoples. | E18: FCX is steadfast in its commitment to acknowledge, respect and engage collaboratively with Indigenous Peoples. We strive to understand the values and cultural needs of each group of Indigenous Peoples, develop and maintain ongoing relationships, support effective, ongoing engagement and create opportunities for social benefit, shared value creation and long-term resilience. We do this by consistently applying our Building Trust approach, which aims to foster trust through ongoing engagement, transparency and creating shared value. This approach includes adherence to the ICMM Position Statement on Indigenous Peoples and Mining and working towards obtaining free prior and informed consent (FPIC) for new projects and material expansions of existing projects where significant impacts are likely to occur. • Social Performance Policy & Human Rights Policies • Information can be found in our 2022 Annual Report on Sustainability: Empowered People & Resilient Communities > Communities & Indigenous Peoples
A19: PRINCIPLE 3: HUMAN RIGHTS | B19: Respect human rights and the interests, cultures, customs and values of employees and communities affected by our activities. | C19: 3.7 | D19: Work to obtain the free, prior and informed consent of Indigenous Peoples where significant adverse impacts are likely to occur, as a result of relocation, disturbance of lands and territories or of critical cultural heritage, and capture the outcomes of engagement and consent processes in agreements. | E19: Our approach aims to respect the social, economic and cultural rights of Indigenous Peoples, including supporting their effective representation and participation in engagements with our company. This approach includes adherence to the ICMM Position Statement on Indigenous Peoples and Mining and working towards obtaining FPIC for new projects and material expansions of existing projects of existing projects where significant impacts are likely to occur. Through ongoing engagement, cultural promotion and preservation projects, as well as training and development programs, FCX seeks to address needs while being sensitive to cultures and customs of Indigenous Peoples. • Social Performance Policy • Information can be found in our 2022 Annual Report on Sustainability: Empowered People & Resilient Communities > Communities & Indigenous Peoples
A20: PRINCIPLE 3: HUMAN RIGHTS | B20: Respect human rights and the interests, cultures, customs and values of employees and communities affected by our activities. | C20: 3.8 | D20: Implement policies and practices to respect the rights and interests of women that reflect gender-informed approaches to work practices and job design, and that protect against all forms of discrimination and harassment, and behaviours that adversely impact on women’s successful participation in the workplace. | E20: Gender diversity continues to be an important focus for the company in recognition that progressing an inclusive workplace culture that extends beyond our operational boundaries and into our communities is a critical driver for recruiting, retaining, developing and advancing top female talent. We are proactively working to retain and attract women to work at FCX, and we have been working to promote an inclusive culture and to support well-being initiatives, including flexible work hours at some sites, increasing opportunities for remote work where feasible, and access to health and wellness resources. We are working to implement policies and practices to respect the rights and interests of women that reflect gender-informed approaches to work practices and job design. • Information can be found in our 2022 Annual Report on Sustainability: Empowered People & Resilient Communities > Inclusion & Diversity > Gender Diversity; Robust Governance > Business Conduct & Policies
A21: PRINCIPLE 3: HUMAN RIGHTS | B21: Respect human rights and the interests, cultures, customs and values of employees and communities affected by our activities. | C21: 3.9 | D21: Implement policies and practices to respect the rights and interests of all workers and improve workforce representation in the workplace so it is more inclusive. | E21: Recognizing that inclusion and diversity differs across cultures, we have formalized regional teams and dedicated site leaders to help identify and address local challenges and opportunities unique to each site and culture. We also have a cross-functional inclusion and diversity leadership team to help guide the global strategy and direction of our programs. FCX’s Inclusion and Diversity Policy is applicable to the global workforce, and we continue to advance efforts to strengthen inclusion and diversity in our workforce and talent development pipeline. We have integrated several inclusion and diversity priorities into our core leadership competency models including priorities such as valuing diversity, creating an inclusive culture to lead others and supporting and enhancing psychological safety in the workplace. We are working to implement practices to respect the rights and interests of all workers and improve workforce representation in the workplace so it is more inclusive. • Information can be found in our 2022 Annual Report on Sustainability: Empowered People & Resilient Communities > Inclusion & Diversity; Robust Governance > Business Conduct & Policies
A22: PRINCIPLE 4: RISK MANAGEMENT | B22: Implement effective risk-management strategies and systems based on sound science and which account for stakeholder perceptions of risks. | C22: 4.1 | D22: Assess environmental and social risks and opportunities of new projects and of significant changes to existing operations in consultation with interested and affected stakeholders, and publicly disclose assessment results. | E22: We employ a variety of baselining and risk management tools to identify and evaluate the potential sustainability-related impacts of our operations. Together, these tools help us characterize the current social, economic and environmental conditions and provide a baseline against which we can measure our performance over time. Environmental and Social Impact Assessments identify potentially affected stakeholders and potential impacts from the outset of new projects. We are currently working to integrate human rights impacts into these assessments to help better inform about impacts to people from growth projects. Additionally, as part of the internal risk review process, our Project Development Sustainability Review considers sustainability issues during the evaluation, and implementation of, potential expansion and development projects. The Project Development Sustainability Review process enables us to identify, prioritize and proactively manage potential risks before a project begins and throughout its development. The process is applied during the early stages of mine expansion and project development, particularly during scoping, pre-feasibility and feasibility stages so that risks may be adequately addressed early and continuously throughout. The process also supports preparation for future closure of operations. Since its inception in 2011, we have undertaken reviews and implemented actions for 38 projects. Key focus areas identified at different project stages have included: access to water, energy and materials, potential impacts to hydrology, air quality, biodiversity, human rights, community receptivity, economic impacts, and land acquisition and resettlement. • Information can be found in our 2022 Annual Report on Sustainability: Our Approach > Our Strategy in Action: Responsible Production; Empowered People & Resilient Communities; Empowered People & Resilient Communities > Communities & Indigenous Peoples > Assessing and Managing Impacts page on fcx.com
A23: PRINCIPLE 4: RISK MANAGEMENT | B23: Implement effective risk-management strategies and systems based on sound science and which account for stakeholder perceptions of risks. | C23: 4.2 | D23: Undertake risk-based due diligence on conflict and human rights that aligns with the OECD Due Diligence Guidance on Conflict-Affected and High-Risk Areas, when operating in, or sourcing from, a conflict-affected or high-risk area. | E23: FCX is committed to sourcing, producing, and distributing metals and minerals responsibly across our entire value chain. We have a Responsible Sourcing of Minerals Policy that drives the implementation of the OECD Due Diligence Guidance for Responsible Supply Chains of Minerals in Conflict-Affected and High-Risk Areas across FCX. We produce an annual Step 5 Report that outlines our conformance to the Policy and OECD requirements, detailing risks identified and managed in our mineral supply chains. Following publication of our 2021 OECD Step 5 Due Diligence Report, in which we provided a summary of our efforts in 2021 and early 2022, we continued business-to-business collaborations to evaluate risks and share best practices. • Responsible Sourcing of Minerals Policy • 2021 OECD Step 5 Due Diligence Report • Information can be found in our 2022 Annual Report on Sustainability: Our Approach > Responsible Value Chains and Responsible Sourcing of Minerals & Metals
A24: PRINCIPLE 4: RISK MANAGEMENT | B24: Implement effective risk-management strategies and systems based on sound science and which account for stakeholder perceptions of risks. | C24: 4.3 | D24: Implement risk-based controls to avoid/prevent, minimise, mitigate and/or remedy health, safety and environmental impacts to workers, local communities, cultural heritage and the natural environment, based upon a recognised international standard or management system. | E24: We drive responsible production practices throughout our operations by identifying the commitments and the corresponding responsible production frameworks that we believe will move the industry forward and help to meaningfully advance our operations and our supply chains. These commitments include our strategic focus areas and related ambitions and performance targets, as well as commitments such as the Copper Mark, UNGPs, the VPs and Task Force on Climate-related Financial Disclosures (TCFD), among others. Being a responsible producer also means purposefully working toward achieving the SDGs within our communities and value chain. Ongoing stakeholder engagement is fundamental to informing our policies and processes as well as the voluntary commitments to which we subscribe. • Information can be found in our 2022 Annual Report on Sustainability: Our Approach; Empowered People & Resilient Communities; Thriving Environments
A25: PRINCIPLE 4: RISK MANAGEMENT | B25: Implement effective risk-management strategies and systems based on sound science and which account for stakeholder perceptions of risks. | C25: 4.4 | D25: Develop, maintain and test emergency response plans. Where risks to external stakeholders are significant, this should be in collaboration with potentially affected stakeholders and consistent with established industry good practice. | E25: All FCX sites are required to have a crisis management plan in place to effectively respond and support the safety of all people who could potentially be impacted by a crisis event at or near one of our sites. The plan guides our operational approach to preparing for, responding to and recovering from potential emergencies or crises. Over the years, our sites have utilized these plans when emergencies and crises occur, such as recent wildfires near Bagdad and Miami in Arizona, enabling reduced impacts to the site and local community. Our PT-FI operations in Indonesia have a mature and robust crisis management program and, for many years, PT-FI’s emergency response team has conducted periodic tests of its crisis management plan and is often recognized nationally. Most recently, in February 2023, PT-FI’s emergency response team responded to flooding and landslides which caused damage to infrastructure near the milling complex at our Grasberg operations. Starting in 2021, we worked with a third-party consultant to incorporate the principles of the Tailings Standard into our existing crisis management guidelines and site-specific emergency response plans for the Americas. Our updated guidelines and site-specific emergency action plans are aligned with industry best practice and outline expectations for our workforce, including how they should engage with emergency responders and community members impacted by crisis events related to our operations. Each site is required to periodically test and drill their crisis management plans and site's with TSFs must conduct simulations of tailings emergency response plans based on the sites' TSF consequence classification (based on credible failure modes). The simulations may include partnering with emergency response and preparedness organizations, local government leaders and engaging with host community members. Starting in 2022 and continuing in 2023, our sites are working to update their site-specific plans in alignment with the updated crisis management guidelines, are performing internal tests of the updated plans and are engaging external stakeholders, where applicable. We plan to begin testing our emergency response plans in 2023 with relevant stakeholders and perform site-based tailings emergency response simulations beginning with our sites that have higher risk TSFs based on consequence classification. • Information can be found in our 2022 Annual Report on Sustainability: Empowered People & Resilient Communities > Health, Safety & Well-being
A26: PRINCIPLE 5: HEALTH AND SAFETY | B26: Pursue continual improvement in health and safety performance with the ultimate goal of zero harm. | C26: 5.1 | D26: Implement practices aimed at continually improving workplace health and safety, and monitor performance for the elimination of workplace fatalities, serious injuries and prevention of occupational diseases, based upon a recognised international standard or management system. | E26: Safety is a core company value and is foundational to our sustainability approach. Our highest priority is the health, safety and well-being of our employees, contractors, suppliers and the communities where we operate. We strive to achieve zero workplace fatalities, high-risk incidents, injuries and occupational illnesses by creating a safe and healthy workplace. This includes providing the training, tools and resources needed so our workforce can identify risks and consistently apply effective controls. We share information and key learnings about potential fatal events, high-risk incidents, and best practices throughout the company, and we engage with industry peers and professional organizations to learn and continuously improve our health and safety program. Our framework for managing risks and compliance obligations is certified in accordance with the ISO 45001 Health and Safety Management System, which requires third-party site-level verification of requirements. • Safety & Health Policy • Information can be found in our 2022 Annual Report on Sustainability: Empowered People & Resilient Communities > Health, Safety & Well-being; Performance Data
A27: PRINCIPLE 5: HEALTH AND SAFETY | B27: Pursue continual improvement in health and safety performance with the ultimate goal of zero harm. | C27: 5.2 | D27: Provide workers with training in accordance with their responsibilities for health and safety, and implement health surveillance and risk-based monitoring programmes based on occupational exposures. | E27: Safety is a core company value and is foundational to our sustainability approach. Our highest priority is the health, safety and well-being of our employees, contractors, suppliers and the communities where we operate. We believe that health and safety considerations are integral to, and fundamental for our operational success and efficiency and ultimately to our ability to deliver long-term value to our stakeholders. We strive to achieve zero workplace fatalities, high-risk incidents, injuries and occupational illnesses by creating a safe and healthy workplace. This includes providing the training, tools and resources needed so our workforce can identify risks and consistently apply effective controls. We share information and key learnings about potential fatal events, high-risk incidents, and best practices throughout the company, and we engage with industry peers and professional organizations to learn and continuously improve our health and safety program. Our Safe Production Matters strategy is focused on fatality prevention and continuous improvement through robust management systems, safe work behaviors and our safety culture, supported by leaders empowering our teams to work safely. We further seek to prevent fatalities and high-risk incidents by leveraging technology to support safe work practices in the field and leveraging analytics to support data driven decision making in combination with behavioral science principles. • Safety & Health Policy • Information can be found in our 2022 Annual Report on Sustainability: Empowered People & Resilient Communities > Health, Safety & Well-being; Performance Data
A28: PRINCIPLE 6: ENVIRONMENTAL PERFORMANCE | B28: Pursue continual improvement in environmental performance issues, such as water stewardship, energy use and climate change. | C28: 6.1 | D28: Plan and design for closure in consultation with relevant authorities and stakeholders, implement measures to address closure-related environmental and social aspects, and make financial provision to enable agreed closure and post-closure commitments to be realised. | E28: We seek to plan and operate our mines in a manner that considers post-mining land use well in advance of mine closure. Likewise, when designing new projects, or expanding existing ones, we plan for how the land can be reclaimed once the mine closes. Our philosophy of responsible production continues when we close our mining and processing sites through to reclamation. FCX strives to work in partnership with our host communities – which in many cases includes Indigenous Peoples—to define and deliver shared value, throughout the mine life cycle. We not only seek to avoid, minimize and mitigate negative impacts from our operations but also aim to provide long-lasting benefits to our neighbors—beyond closure so people can thrive over the life of our mines and beyond. At each of our operations, we have mine closure and reclamation plans with site-specific environmental measures designed to minimize long-term impacts, promote ecosystem reestablishment, and protect the watersheds where we operate. To support future anticipated closure and reclamation costs, each operating mine site has asset retirement obligations aligned with approved closure plans. These are estimated and accounted for in accordance with GAAP and are audited by an independent accounting firm. • Environmental Policy • Social Performance Policy • Information can be found in our 2022 Annual Report on Sustainability: Thriving Environments > Mine Closure & Reclamation
A29: PRINCIPLE 6: ENVIRONMENTAL PERFORMANCE | B29: Pursue continual improvement in environmenal performance issues, such as water stewardship, energy use and climate change. | C29: 6.2 | D29: Implement water stewardship practices that provide for strong and transparent water governance, effective and efficient management of water at operations, and collaboration with stakeholders at a catchment level to achieve responsible and sustainable water use. | E29: FCX’s water stewardship program focuses on maximizing water use efficiency within our operations so that we can minimize our use of new freshwater taken from the natural environment. We are also focused on shifting our water supplies to more sustainable sources (recycled, reused, renewable and lower quality sources), minimizing negative impacts from our operations on water quality and availability in the local catchments, and supporting the development of access to previously unknown, unavailable, or undeveloped water resources. In addition to focusing on our own water-related supply risks surrounding our operations, water stewardship also means we are focused on promoting long-term water security for our host communities in and around our operations. We recognize the importance of working collaboratively with our stakeholders to secure access to water in a socially and environmentally responsible manner, and we are dedicated to continuously improving our water programs over time. • Environmental Policy • Information can be found in our 2022 Annual Report on Sustainability: Thriving Environments > Water Stewardship
A30: PRINCIPLE 6: ENVIRONMENTAL PERFORMANCE | B30: Pursue continual improvement in environmenal performance issues, such as water stewardship, energy use and climate change. | C30: 6.3 | D30: Design, construct, operate, monitor and decommission tailings disposal/storage facilities using comprehensive, risk-based management and governance practices in line with internationally recognised good practice, to minimise the risk of catastrophic failure. | E30: FCX has comprehensive measures in place to ensure our facilities are designed, built, operated and monitored to minimize risk to employees, neighboring host communities and the environment. These measures include substantial internal and external engineering expertise, technological monitoring (including remote sensing), local responsibility and corporate and independent third-party oversight. Our safeguards generally fall within four categories that include: (1) good engineering practices and safe designs, (2) rigorous adherence to construction and operational parameters through monitoring and use of technology, (3) multi-tiered oversight, and (4) adherence to practices grounded in continuous improvement and learning from past experiences, including industry failures and best practices. The safeguards are effectively implemented through the promotion of open and ongoing communication throughout the organization and action at all levels. We remain focused on the safe execution of our tailings management systems by maintaining robust, multi-tiered governance of our tailings programs. Our Board and executive management are firmly committed to providing the necessary financial and technical resources to maintain the safety and integrity of our tailings management systems globally, with a focus on risk management and continuous improvement. FCX’s Tailings Management Policy outlines our continued commitment to managing our tailings responsibly and effectively across our sites globally. The policy also includes our commitment to implement the Global Industry Standard on Tailings Management (the Tailings Standard) at our tailings storage facilities. • Environmental Policy • Tailings Management Policy • Information can be found in our 2022 Annual Report on Sustainability: Thriving Environments > Tailings Management; Site-Specific Tailings Management and Information on fcx.com
A31: PRINCIPLE 6: ENVIRONMENTAL PERFORMANCE | B31: Pursue continual improvement in environmenal performance issues, such as water stewardship, energy use and climate change. | C31: 6.4 | D31: Apply the mitigation hierarchy to prevent pollution, manage releases and waste, and address potential impacts on human health and the environment. | E31: Our Environmental Policy serves as the framework for the protection of natural resources in the regions where we live and work. In addition to maintaining compliance with laws and regulations, our policy objectives are to minimize environmental impacts using risk management strategies based on valid data and sound science. Our Policy also requires that we review and account for the environmental effects of our activities throughout the mining life cycle, and we plan and conduct our operations in a manner that optimizes the economic use of resources while minimizing adverse environmental effects. All of our mining and mineral processing operations and technology centers maintain Environmental Management Systems (EMS) that are certified to the ISO 14001:2015 standard by independent auditors. As part of our EMS, our workforce is trained on site-specific subject areas and annually on environmental issues, and is supported by environmental professionals working in the field. Site management teams identify, manage, and mitigate environmental risks through our risk register process and the use of environmental critical control systems designed to prevent environmental incidents at our operations. Critical controls are focused on the elimination of unplanned off-site releases and prevention or minimization of impacts to water and other natural resources. At the corporate level, subject matter experts train, develop and support our site teams, routinely conduct site visits, and in some cases, directly manage a group of site-based experts. Collectively, they are responsible for building technical expertise, ensuring consistency in our environmental programs and sharing best practices. In 2022, we fully adopted across all sites the mitigation hierarchy approach — a framework that emphasizes best practices for managing biodiversity and ecosystems through the avoidance, minimization, restoration and offsetting of impacts. Through consistent and rigorous application of the mitigation hierarchy, we aim to manage risks and potential impacts with the long-term ambition of No Net Loss for new mines and major expansion projects at existing mines. Notably, in 2022, we also developed a mitigation hierarchy process beyond major expansion projects to include smaller projects and deployed site-specific trainings during the year. • Environmental Policy • Information can be found in our 2022 Annual Report on Sustainability: Thriving Environments > Biodiversity
A32: PRINCIPLE 6: ENVIRONMENTAL PERFORMANCE | B32: Pursue continual improvement in environmenal performance issues, such as water stewardship, energy use and climate change. | C32: 6.5 | D32: Implement measures to improve energy efficiency and contribute to a low-carbon future, and report the outcomes based on internationally recognised protocols for measuring CO2 equivalent (GHG) emissions. | E32: As one of the world’s largest copper producers, we understand our critical role in the low-carbon energy transition. We are dedicated to supplying the global economy with responsibly produced copper which includes operating in a manner that manages and mitigates our greenhouse gas (GHG) emissions and other climate-related risks and impacts. FCX is committed to implementing the requirements outlined in the ICMM Climate Change Position Statement and Performance Expectations for energy and climate change. In addition, our commitment to the Copper Mark requires that we develop and achieve targets over time and report our progress at a site level. Operational-level data is available in our ESG Performance Data tables. We are advancing important initiatives to reduce our GHG emissions, improve energy efficiency, evaluate and integrate the use of lower carbon and renewable energy and enhance our resilience to future climate-related risks. We have multiple decarbonization initiatives either already in process or under evaluation across our global business. In Fall of 2022, we published our updated climate report, which outlines substantial progress in advancing our climate strategy and commitments. • 2021 Climate Report • ESG Performance Data - Climate • Information can be found in our 2022 Annual Report on Sustainability
A33: PRINCIPLE 7: CONSERVATION OF BIODIVERSITY | B33: Contribute to the conservation of biodiversity and integrated approaches to land-use planning. | C33: 7.1 | D33: Neither explore nor develop new mines in World Heritage sites, respect legally designated protected areas, and design and operate any new operations or changes to existing operations to be compatible with the value for which such areas were designated. | E33: FCX is committed to operating in a manner that respects legally designated protected areas, including a commitment to no mining and exploring in UNESCO World Heritage sites, which is included in our Environmental Policy. Our proven and probable reserves located near endangered species habitats do not affect those habitats. The endangered species habitats near Morenci, Chino, and Climax reserves are located on federal lands managed by the U.S. Forest Service; we do not conduct activities within the habitat. Cerro Verde’s reserves qualify due to an endangered bat species that is known to occur and forage in the general region of the operations and we actively seek to protect the species. PT-FI’s reserves qualify due to the district’s proximity to Lorentz National Park, however we have not and will not conduct any mining or exploration activities in Lorentz National Park, which is a UNESCO World Heritage Site. We maintain significant programs at PT-FI’s operations to protect biodiversity in the area. •Environmental Policy • Information can be found in our 2022 Annual Report on Sustainability: Thriving Environments > Biodiversity; 2022 SASB Standards
A34: PRINCIPLE 7: CONSERVATION OF BIODIVERSITY | B34: Contribute to the conservation of biodiversity and integrated approaches to land-use planning. | C34: 7.2 | D34: Assess and address risks and impacts to biodiversity and ecosystem services by implementing the mitigation hierarchy, with the ambition of achieving no-net-loss of biodiversity. | E34: FCX implements a variety of programs and strategies at its operations that seek to proactively identify and mitigate biodiversity risks while promoting conservation opportunities in collaboration with government agencies and other voluntary opportunities. In 2022, we fully adopted across all sites the mitigation hierarchy approach — a framework that emphasizes best practices for managing biodiversity and ecosystems through the avoidance, minimization, restoration and offsetting of impacts. Through consistent and rigorous application of the mitigation hierarchy, we aim to manage risks and potential impacts with the long-term ambition of No Net Loss for new mines and major expansion projects at existing mines. Notably, in 2022, we also developed a mitigation hierarchy process beyond major expansion projects to smaller projects and deployed site-specific trainings during the year. We recognize the mitigation hierarchy is most effective when implemented during the earliest phases of project planning to help maximize opportunities for avoidance and minimization of impacts. We have integrated the hierarchy into our existing project development process and trained our environmental and operational teams to routinely apply it. • Environmental Policy • Information can be found in our 2022 Annual Report on Sustainability: Thriving Environments > Biodiversity
A35: PRINCIPLE 8: RESPONSIBLE PRODUCTION | B35: Facilitate and support the knowledge-base and systems for responsible design, use, re-use, recycling and disposal of products containing metals and minerals. | C35: 8.1 | D35: In project design, operation and de-commissioning, implement cost-effective measures for the recovery, re-use or recycling of energy, natural resources, and materials. | E35: In addition to mining and mineral processing wastes, such as tailings, waste rock, overburden and slag, our operations generate non-mining waste, which requires proper end-of-life management. Responsible management of all these materials is critical to complying with environmental regulations, maintaining community and environmental health, and social acceptance of our operations. FCX is committed to reducing our environmental impact, which includes the effective management of our mining and mineral processing waste (such as tailings, overburden and slag, waste rock) as well as non-mining waste (such as recycled material and landfilled waste). The volume of mining and mineral processing waste we generate varies depending on site-specific mine plans. In addition to responsibly managing our mining and mineral processing waste, we continuously evaluate opportunities to reduce the quantity of non-mining waste generated. We seek to apply the standard protocol of reduce, reuse, recycle wherever possible and implement robust practices to identify, categorize, store and manage non-mining wastes. Through our asset recovery programs, we divert certain materials from the landfill, and we strive to increase recycling and reuse of materials in our operations. Furthermore, we evaluate our hazardous waste streams and, when possible, substitute materials with lower toxicity into our processes. • 2021 Climate Report • Information can be found in our 2022 Annual Report on Sustainability: Our Approach > Our Strategy in Action: Responsible Production
A36: PRINCIPLE 8: RESPONSIBLE PRODUCTION | B36: Facilitate and support the knowledge-base and systems for responsible design, use, re-use, recycling and disposal of products containing metals and minerals. | C36: 8.2 | D36: Assess the hazards of the products of mining according to UN Globally Harmonised System of Hazard Classification and Labelling or equivalent relevant regulatory systems and communicate through safety data sheets and labelling as appropriate. | E36: Our framework for managing risks and compliance obligations is certified in accordance with the internationally recognized ISO 45001 Health and Safety Management System. Our safety management system ISO 45001 covers handling and use of hazardous materials on site, including maintenance of safety data sheets. • Safety & Health Policy • Information can be found in our 2022 Annual Report on Sustainability: Empowered People & Resilient Communities > Health, Safety & Well-being
A37: PRINCIPLE 9: SOCIAL PERFORMANCE | B37: Pursue continual improvement in social performance and contribute to the social, economic and institutional development of host countries and communities. | C37: 9.1 | D37: Implement inclusive approaches with local communities to identify their development priorities and support activities that contribute to their lasting social and economic wellbeing, in partnership with government, civil society and development agencies, as appropriate. | E37: Proactive, ongoing engagements and constructive dialogue are foundational to our approach. This is how we understand actual, potential and perceived impacts on our host communities, build trust, and mutually identify the most relevant social investments and development priorities to address our impacts and support enhanced resilience. We also work actively through engagement and capacity-building activities to support host communities in maximizing the social and economic benefits of our operations. • Social Performance Policy • Information can be found in our 2022 Annual Report on Sustainability: Our Approach > Stakeholder Engagement; Empowered People & Resilient Communities > Communities & Indigenous Peoples; Economic Contributions
A38: PRINCIPLE 9: SOCIAL PERFORMANCE | B38: Pursue continual improvement in social performance and contribute to the social, economic and institutional development of host countries and communities. | C38: 9.2 | D38: Enable access by local enterprises to procurement and contracting opportunities across the project life-cycle, both directly and by encouraging larger contractors and suppliers, and also by supporting initiatives to enhance economic opportunities for local communities. | E38: Purchasing goods and services from local suppliers provides a significant direct and indirect benefit to our local communities. Our investment in local communities helps to support the economic vitality of small and medium size enterprises and local entrepreneurship. When we purchase locally, we provide the stimulus for community development and the potential for capacity building. We continue to prioritize greater transparency in our local procurement spending, with a focus on expanding opportunities for local suppliers, where feasible. We have implemented standard operating procedures emphasizing local procurement at our North America, PT-FI and El Abra operation. In 2022, we continued our engagement with the Mining Local Procurement Reporting Mechanism (LPRM), which is an initiative that seeks to develop, through disclosures, a set of common standards agreed by both host countries and mining companies for what constitutes local procurement. FCX has met the LPRM disclosure requirements which requires a disclosure of local procurement spend by site and additional information for existing and potential suppliers, which is available on our website. • Information can be found in our 2022 Annual Report on Sustainability: Robust Governance > Responsible Value Chains; Empowered People & Resilient Communities > Economic Contributions; Performance Data • LPRM disclosure on the Supplier page of fcx.com
A39: PRINCIPLE 9: SOCIAL PERFORMANCE | B39: Pursue continual improvement in social performance and contribute to the social, economic and institutional development of host countries and communities. | C39: 9.3 | D39: Conduct stakeholder engagement based upon an analysis of the local context and provide local stakeholders with access to effective mechanisms for seeking resolution of grievances related to the company and its activities. | E39: FCX’s approach to stakeholder engagement is characterized by transparency, collaboration and meaningful dialogue, with the primary goal of fostering mutual understanding, trust and cooperation. the interests and concerns of our various stakeholders can change over time, which underscores the need for ongoing and proactive engagement to learn about these changing needs and expectations. For this reason, we seek to maintain ongoing, constructive and proactive stakeholder engagement programs at both the corporate- and site-level throughout the year. We have a broad range of stakeholders with whom we engage, including shareholders, employees, host communities and Indigenous Peoples, customers and suppliers, industry associations, regulators and policymakers, host governments, and nongovernmental organizations. We have established site-level grievance mechanisms for employees, community members and members of our supply chain and others to support constructive engagement and resolution of issues that may arise where questions, concerns and complaints can be shared outside of any other engagement forum. • Social Performance Policy • Human Rights Policy • Information can be found in our 2022 Annual Report on Sustainability: Our Approach > Stakeholder Engagement; Robust Governance > Human Rights; Empowered People & Resilient Communities > Communities & Indigenous Peoples and Economic Contributions and Community Grievance Mechanism
A40: PRINCIPLE 9: SOCIAL PERFORMANCE | B40: Pursue continual improvement in social performance and contribute to the social, economic and institutional development of host countries and communities. | C40: 9.4 | D40: Collaborate with government, where appropriate, to support improvements in environmental and social practices of local Artisanal and Small-scale Mining (ASM). | E40: The only site where we encounter artisanal miners is at PT-FI’s Grasberg operations in Central Papua, Indonesia. At Grasberg, illegal artisanal miners seek economic opportunity by panning for unrecovered gold from our milling operations in our controlled riverine tailings system. While artisanal mining within PT-FI’s area of work is illegal under Indonesian law, on average, approximately 4,000 artisanal miners and additional women and children associated with the artisanal miners have established camps at various points within the Lowlands and Highlands. About 75% of artisanal miners in the Lowlands come from outside Papua and represent over 45 different ethnic groups, while artisanal miners in the Highlands are 99% ethnic Papuans. Many of the illegal artisanal miners do not have expertise operating in hazardous conditions, including the remote terrain and varied climatic conditions experienced at Grasberg. Additional safety challenges exist as PT-FI’s ongoing levee maintenance and earthworks, which are needed to responsibly manage the controlled riverine system, occur alongside illegal artisanal miners. PT-FI cannot address illegal artisanal mining on its own. A multi-faceted approach — including government cooperation, security risk management, stakeholder engagement and socioeconomic development for alternative livelihoods — is essential. PT-FI’s artisanal mining management plan includes regional and national objectives to help build strategic partnerships for a multi-stakeholder artisanal mining strategy. • Information can be found in our 2022 Annual Report on Sustainability: Robust Governance > Human Rights > Illegal Artisanal Mining
A41: PRINCIPLE 10: STAKEHOLDER ENGAGEMENT | B41: Proactively engage key stakeholders on sustainable development challenges and opportunities in an open and transparent manner. Effectively report and independently verify progress and performance. | C41: 10.1 | D41: Identify and engage with key corporate-level external stakeholders on sustainable development issues in an open and transparent manner | E41: Our approach to stakeholder engagement is characterized by transparency, collaboration and meaningful dialogue, with the primary goal of fostering mutual understanding, trust and cooperation. We recognize the interests and concerns of our various stakeholders can change over time, which underscores the need for ongoing and proactive engagement to learn about these changing needs and expectations. For this reason, we seek to maintain ongoing, constructive and proactive stakeholder engagement programs at both the corporate- and site-level throughout the year. We have a broad range of stakeholders with whom we engage, including shareholders, employees, host communities and Indigenous Peoples, customers and suppliers, industry associations, regulators and policymakers, host governments and nongovernmental organizations. Our community engagement takes a variety of forms across our active operations and new projects. We believe our dialogue with stakeholders strengthens our company and helps us learn about our various stakeholders’ perspectives while simultaneously providing an opportunity to share information about our strategy, practices and performance. These conversations inform management’s decision-making and the Board of Director's oversight, particularly in relation to our policies, practices, programs and initiatives. • 2023 Proxy Statement - Stockholder and Stakeholder Engagement • Information can be found in our 2022 Annual Report on Sustainability: Our Approach > Stakeholder Engagement
A42: PRINCIPLE 10: STAKEHOLDER ENGAGEMENT | B42: Proactively engage key stakeholders on sustainable development challenges and opportunities in an open and transparent manner. Effectively report and independently verify progress and performance. | C42: 10.2 | D42: Publicly support the implementation of the Extractive Industries Transparency Initiative (EITI) and compile information on all material payments, at the appropriate levels of government, by country and by project. | E42: We have endorsed and committed to support the EITI since 2008. We maintain significant mining operations in Indonesia and Peru, both of which have implemented EITI, and we actively support and participate in associated in-country processes as part of EITI. We also aim to support governments’ ambitions to achieve contract transparency. In addition to our country-level EITI commitments and regulatory reporting obligations, our practice is to provide transparency by voluntarily reporting cash payments to governments in all significant jurisdictions where we conduct business. Our support includes direct financial contributions as well as contributions through ICMM. • Information can be found in our 2022 Annual Report on Sustainability: Empowered People & Resilient Communities > Economic Contributions
A43: PRINCIPLE 10: STAKEHOLDER ENGAGEMENT | B43: Proactively engage key stakeholders on sustainable development challenges and opportunities in an open and transparent manner. Effectively report and independently verify progress and performance. | C43: 10.3 | D43: Report annually on economic, social and environmental performance at the corporate level using the GRI Sustainability Reporting Standards. | E43: Our 2022 Annual Report on Sustainability and sustainability website disclosures have been prepared in reference to the GRI Standards and the G4 Mining and Metals Sector Supplement. We have reported under GRI guidelines and standards since 2005. • Information can be found in the ESG Performance Data file and the GRI Content Index tab in this file
A44: PRINCIPLE 10: STAKEHOLDER ENGAGEMENT | B44: Proactively engage key stakeholders on sustainable development challenges and opportunities in an open and transparent manner. Effectively report and independently verify progress and performance. | C44: 10.4 | D44: Each year, conduct independent assurance of sustainability performance following the ICMM guidance on assuring and verifying membership requirements. | E44: FCX’s sustainability reports have been independently verified since 2005. External assurance of our 2022 reporting was conducted by EY in accordance with the ICMM Mining Principles Assurance and Validation Procedure, which can be found at ICMM website. Since 2009, site-level external assurance has been completed multiple times at all active mining and metals processing operations. We conduct site-level external assurance at operations at a minimum of once every three years, with annual assurance engagements at PT-FI and Cerro Verde. In addition, all FCX sites which carry the Copper Mark (currently all eligible copper operations) or Molybdenum Mark are assured at a reasonable level once every three years, the results of which are reported on the Copper Mark website at coppermark.org. • Information can be found in our 2022 Annual Report on Sustainability and on the External Assurance webpage of fcx.com
